Workbook

Sheet Overview
C3: Stormwater Retention Credit (SRC) Price Lock Program Financial Return Calculator Regulatory Review Division
C5: This calculator estimates the potential SRC eligibility and return on investment for a runoff-reducing green infrastructure project participating in DOEE's SRC Price Lock Program. To begin your estimate, please complete the fields below. If complete site, construction, and financial information is not available, the tool will use assumptions to provide a rough estimate. This calculator will not continue to subsequent pages if required information is missing or if information provided is inconsistent. This calculator is a planning and estimation tool only. DOEE does not guarantee financial return, SRC eligibility, or other results. The use of this tool does not submit information to DOEE. By enabling macros and using the "Clear All Fields" button you can remove your previous inputs and return to a blank template.
C11: Voluntary SRC Project Overview
C14: Project Address:
C16: 1. Is the project a voluntary retrofit or a regulated activity? | H16: Please Select | I16: Voluntary
D17: *Projects that trigger Stormwater Regulations have a Stormwater Retention Volume (SWRv) obligation that must be met. Retention volume that exceeds the regulatory requirement may have SRC eligibility.
C18: 1. Did your project receive any funding from DOEE? | F18: $i | H18: Please Select | J18: =IF(Activity="Regulated","No",I18) -> 0 | K18: =IF(Activity="Regulated",0,IF(I18="No",0,G18)) -> 0
C20: =IF(Activity="Voluntary","2. Is the project located within Municipal Separate Storm Sewer System (MS4) or Combined Sewer System (CSS)?","2. Is the regulated project a Major Land Disturbing activity or a Major Substantial Improvement activity?") -> 2. Is the project located within Municipal Separate Storm Sewer System (MS4) or Combined Sewer System (CSS)? | K20: =(IF(Activity="Regulated",1,0)) -> 0 | L20: =IF(OR(MS4_MLD="MLD",MS4_MLD="MSI"),1,0) -> 0
C22: =IF(Activity="Voluntary"," *For MS4 areas, please indicate whether the project is within the MS4 Tidal or Non-tidal area."," *Please distinguish between Major Land Disturbing (MLD) activity or Major Substantial Improvement (MSI) activity.") -> *For MS4 areas, please indicate whether the project is within the MS4 Tidal or Non-tidal area.
D23: =IF(Activity="Voluntary",HYPERLINK("http://dcgis.maps.arcgis.com/home/webmap/viewer.html?webmap=9519ba345997482d9f66a8513cc4289b","MS4 Map"),HYPERLINK("https://doee.dc.gov/sites/default/files/dc/sites/ddoe/publication/attachments/Appendix%20U%20%20Definitions.pdf","Appendix U")) -> MS4 Map | E23: =IF(Activity="Regulated"," The definition for these activities can be found in the Stormwater Management Guidebook.","") -> 
C24: *Projects located in the CSS are not eligible for participation in the SRC Price Lock Program
C25: =IF(Activity="Voluntary","3. Is the project participating in DOEE's SRC Price Lock Program?","3. Is the project an Anacostia Waterfront Development Zone (AWDZ) Site?") -> 3. Is the project participating in DOEE's SRC Price Lock Program? | J25: =IF(Activity="Regulated","No",IF(MS4_MLD="CSS","No",Price_AWDZ)) -> 0
D26: =IF(AND(Activity="Regulated",Price_AWDZ="Yes"),"*AWDZ projects are unlikely to result in SRC eligibility as they are required to retain or treat runoff from a 1.7-inch storm.",IF(AND(Activity="Voluntary",Price_AWDZ="Yes"),"To participate in this program you must submit an SRC Price Lock Program application","")) -> 
D27: =IF(Activity="Voluntary",HYPERLINK("https://doee.dc.gov/service/src-price-lock-program","SRC Price Lock"),HYPERLINK("https://octo.quickbase.com/up/bjkxxcfcp/g/rcg/eg/va/info_page.html?pagerecord=27","AWDZ Map")) -> SRC Price Lock
C28: =IF(Activity="Voluntary","4. What is your total project area square footage?","4. What is the square footahge of the project's Limit of Disturbance (LOD)?") -> 4. What is your total project area square footage?
C29: =IF(Activity="Voluntary"," Enter the total project area, limited to the BMP(s), contributing drainage areas to the BMP(s), and land cover change."," LOD includes area within which all construction, materials storage, grading, landscaping, and related activities shall occur.") -> Enter the total project area, limited to the BMP(s), contributing drainage areas to the BMP(s), and land cover change.
C30: =IF(MS4_MLD="MSI"," *Please include the building footprint in your LOD.","") -> 
I31: =IF(Activity="",HYPERLINK("#Activity","Continue"),IF(AND(Activity="Voluntary",I18=""),HYPERLINK("#'Overview'!I18","Continue"),IF(AND(I18="Yes",G18=""),HYPERLINK("#'Overview'!g18","Continue"),IF(AND(I18="Yes",G18<1),HYPERLINK("#'Overview'!g18","Continue"),IF(I20="",HYPERLINK("#'Overview'!I20","Continue"),IF(OR(J25=0,J25=""),HYPERLINK("#'Overview'!I25","Continue"),IF(K20-L20<>0,HYPERLINK("#'Overview'!I20","Continue"),IF(AND(I25="",MS4_MLD<>"CSS"),HYPERLINK("#'Overview'!I25","Continue"),IF(I28="",HYPERLINK("#'Overview'!I27","Continue"),IF(I16="Voluntary",HYPERLINK("#1!e5","Continue"),HYPERLINK("#2!e5","Continue"))))))))))) -> Continue
B32: Version 1.3 (1/31/2020)
C34: =IF(Activity="Voluntary","MS4 Tidal","MLD") -> MS4 Tidal
C35: =IF(Activity="Voluntary","MS4 Non-tidal","MSI") -> MS4 Non-tidal
C36: =IF(Activity="Voluntary","CSS","") -> CSS

Sheet 1
C3: Enter Land Cover Area by Type If land cover information is unavailable, the calculator will assume 100% impervious pre-project land cover and 90% impervious and 10% BMP post-project land cover.
C5: Total Project Area (ft2):ii | E5: =Overview!I28 -> 0 | F5: =IF(OR(Pre>0,Post>0)," "," For a more detailed estimate, include land cover square footage below.") -> For a more detailed estimate, include land cover square footage below.
C7: Land Cover Type: | E7: Natural | F7: Compacted | G7: Impervious | H7: BMP
C8: Post-project (ft2) | I8: =SUM(E8:H8) -> 0
C9: Pre-project (ft2) | I9: =SUM(E9:H9) -> 0
E10: =IF(I32="123456",E34,IF(I32="12345",E35,IF(I32="12346",E36,IF(I32="12356",E37,IF(I32="12456",E38,IF(I32="13456",E39,IF(I32="23456",E40,IF(I32="1234",E41,IF(I32="1235",E42,IF(I32="1236",E43,IF(I32="1245",E44,IF(I32="1246",E45,IF(I32="1256",E46,IF(I32="1345",E47,IF(I32="1346",E48,IF(I32="1356",E49,IF(I32="1456",E50,IF(I32="2345",E51,IF(I32="2346",E52,IF(I32="2456",E53,IF(I32="3456",E54,IF(I32="123",E55,IF(I32="124",E56,IF(I32="125",E57,IF(I32="126",E58,IF(I32="134",E59,IF(I32="135",E60,IF(I32="136",E61,IF(I32="145",E62,IF(I32="146",E63,IF(I32="234",E64,IF(I32="235",E65,IF(I32="236",E66,IF(I32="245",E67,IF(I32="246",E68,IF(I32="256",E69,IF(I32="345",E70,IF(I32="346",E71,IF(I32="456",E72,IF(I32="12",E73,IF(I32="13",E74,IF(I32="14",E75,IF(I32="15",E76,IF(I32="16",E77,IF(I32="23",E78,IF(I32="24",E79,IF(I32="25",E80,IF(I32="26",E81,IF(I32="34",E82,IF(I32="35",E83,IF(I32="36",E84,IF(I32="45",E85,IF(I32="46",E86,IF(I32="56",E87,IF(I32="1",E88,IF(I32="2",E89,IF(I32="3",E90,IF(I32="4",E91,IF(I32="5",E92,IF(I32="6",E93,"")))))))))))))))))))))))))))))))))))))))))))))))))))))))))))) -> 
C11: =HYPERLINK("#'Overview'!i16","Go Back") -> Go Back | I11: =IF(AND(Post>0,Post<>E5),HYPERLINK("#1!I8:I9","Continue"),IF(Post<>Pre,HYPERLINK("#1!e8:h9","Continue"),IF(AND(H9>0,SUM(J21:K23)<>H9),HYPERLINK("#1!J21:J23","Continue"),HYPERLINK("#'BMP Design'!d7","Continue")))) -> Continue
F12: Pre | G12: =IF(AND(ISBLANK(G9),Pre=0),E5,G9) -> 0 | H12: =IF(AND(ISBLANK(H9),Pre=0),0,H9) -> 0
F13: Post | G13: =IF(AND(ISBLANK(G8),Post=0),$E$5*0.9,G8) -> 0 | H13: =IF(AND(ISBLANK(H8),Post=0),$E$5*0.1,H8) -> 0
C16: Enter Pre-Project BMP Information If existing BMP storage volume information is unavailable, the calculator will assume BMPs manage the 1.7-inch storm across the Contributing Drainage Area.
C18: BMP | E18: BMP Subtype | G18: Contributing Drainage Area (CDA) (ft2) | L18: Storage Volume (ft3) | M18: Sv Calc | N18: If Sv Blank | O18: 1.7 Rv | P18: if blank | Q18: Receiving Area (ft2) | R18: Ra Calc | S18: If Ra Blank | T18: Number of Trees | U18: Retention Value | V18: BMP Retention Vol. Achieved (ft3) | X18: BMP Retention (gal)
G19: CDA Required
C20: BMP Type and Subtype do not match | E20: BMP Subtype Required | G20: Natural | H20: Compacted | I20: Impervious | J20: BMP
M21: =IF(ISBLANK(L21),N21,L21) ->  | N21: =IF(E21="Rainwater harvesting",((References!$E$2*O21)*7.48),"") ->  | O21: =IF(C21="Tree Planting and Preservation","Tree",1.7/12*(G21*0.05+H21*0.25+I21*0.95+J21*0.95)) -> 0 | P21: =IF(ISBLANK(L21),O21,L21) -> 0 | R21: =IF(ISBLANK(Q21),S21,Q21) -> 0 | S21: =IF(E21="Simple disconnection to amended soils",(N21/40)*100,IF(E21="Simple disconnection to a conservation area",(N21/60)*100,IF(E21="Simple disconnection to a pervious area",(N21/20)*100,0))) -> 0 | U21: =IFERROR(INDIRECT(Z21)," ") ->  | V21: =IF(OR(C21="",E21="",SUM(H21:J21)=0),0,IFERROR(IF(U21>1,MIN(U21,P21),MIN((U21*P21),(1.7/12*(G21*References!$B$16+H21*References!$B$17+I21*References!$B$18+J21*References!$B$18)))),"0.0")) -> 0 | X21: =V21*7.48 -> 0 | Y21: =IF(C21="","",IF(C21="Green Roof","Green",IF(C21="Rainwater Harvesting","Rainwater",IF(C21="Impervious Surface Disconnection","Impervious",IF(C21="Permeable Pavement","Permeable",IF(C21="Tree Planting and Preservation","Tree",IF(C21="Open Channel","Open",C21))))))) ->  | Z21: =IF(E21="","",IF(E21="Extensive green roof","Extensive",IF(E21="Intensive green roof","Intensive",IF(E21="Rainwater harvesting","RWHarvest",IF(E21="Simple disconnection to a conservation area","Conservation",IF(E21="Simple disconnection to amended soils","IDAmended",IF(E21="Simple disconnection to a pervious area","Pervious",IF(E21="Permeable pavement - Enhanced","PPEnhanced",IF(E21="Permeable pavement - Standard","PPStandard",IF(E21="Bioretention - Enhanced","BioEnhanced",IF(E21="Bioretention - Standard","BioStandard",IF(E21="Infiltration trench","Trench",IF(E21="Infiltration basin","Basin",IF(E21="Grass channel","Grass",IF(E21="Grass channel - amended soils","GCAmended",IF(E21="Dry swale","DrySwale",IF(E21="wet swale","WetSwale",IF(E21="Micropool ED pond","Micropool",IF(E21="Wet pond","WetPond",IF(E21="Wet ED pond","EDPond",IF(E21="Shallow wetland","Shallow",IF(E21="ED shallow wetland","EDWet",IF(E21="Tree preservation","Preservation",IF(E21="Tree planting","Planting")))))))))))))))))))))))) ->  | AA21: =VLOOKUP(C21,Match,2,0) ->  | AB21: =VLOOKUP(E21,Match1,2,0) ->  | AC21: =IF(AA21=AB21,"",1) -> 
M22: =IF(ISBLANK(L22),N22,L22) ->  | N22: =IF(E22="Rainwater harvesting",((References!$E$2*O22)*7.48),"") ->  | O22: =IF(C22="Tree Planting and Preservation","Tree",1.7/12*(G22*0.05+H22*0.25+I22*0.95+J22*0.95)) -> 0 | P22: =IF(ISBLANK(L22),O22,L22) -> 0 | R22: =IF(ISBLANK(Q22),S22,Q22) -> 0 | S22: =IF(E22="Simple disconnection to amended soils",(N22/40)*100,IF(E22="Simple disconnection to a conservation area",(N22/60)*100,IF(E22="Simple disconnection to a pervious area",(N22/20)*100,0))) -> 0 | U22: =IFERROR(INDIRECT(Z22)," ") ->  | V22: =IF(OR(C22="",E22="",SUM(H22:J22)=0),0,IFERROR(IF(U22>1,MIN(U22,P22),MIN((U22*P22),(1.7/12*(G22*References!$B$16+H22*References!$B$17+I22*References!$B$18+J22*References!$B$18)))),"0.0")) -> 0 | X22: =V22*7.48 -> 0 | Y22: =IF(C22="","",IF(C22="Green Roof","Green",IF(C22="Rainwater Harvesting","Rainwater",IF(C22="Impervious Surface Disconnection","Impervious",IF(C22="Permeable Pavement","Permeable",IF(C22="Tree Planting and Preservation","Tree",IF(C22="Open Channel","Open",C22))))))) ->  | Z22: =IF(E22="","",IF(E22="Extensive green roof","Extensive",IF(E22="Intensive green roof","Intensive",IF(E22="Rainwater harvesting","RWHarvest",IF(E22="Simple disconnection to a conservation area","Conservation",IF(E22="Simple disconnection to amended soils","IDAmended",IF(E22="Simple disconnection to a pervious area","Pervious",IF(E22="Permeable pavement - Enhanced","PPEnhanced",IF(E22="Permeable pavement - Standard","PPStandard",IF(E22="Bioretention - Enhanced","BioEnhanced",IF(E22="Bioretention - Standard","BioStandard",IF(E22="Infiltration trench","Trench",IF(E22="Infiltration basin","Basin",IF(E22="Grass channel","Grass",IF(E22="Grass channel - amended soils","GCAmended",IF(E22="Dry swale","DrySwale",IF(E22="wet swale","WetSwale",IF(E22="Micropool ED pond","Micropool",IF(E22="Wet pond","WetPond",IF(E22="Wet ED pond","EDPond",IF(E22="Shallow wetland","Shallow",IF(E22="ED shallow wetland","EDWet",IF(E22="Tree preservation","Preservation",IF(E22="Tree planting","Planting")))))))))))))))))))))))) ->  | AA22: =VLOOKUP(C22,Match,2,0) ->  | AB22: =VLOOKUP(E22,Match1,2,0) ->  | AC22: =IF(AA22=AB22,"",1) -> 
N23: =IF(E23="Rainwater harvesting",((References!$E$2*O23)*7.48),"") ->  | O23: 0 | P23: 0 | R23: 0 | S23: =IF(E23="Simple disconnection to amended soils",(N23/40)*100,IF(E23="Simple disconnection to a conservation area",(N23/60)*100,IF(E23="Simple disconnection to a pervious area",(N23/20)*100,0))) -> 0 | U23: =IFERROR(INDIRECT(Z23)," ") ->  | V23: =IF(OR(C23="",E23="",SUM(H23:J23)=0),0,IFERROR(IF(U23>1,MIN(U23,P23),MIN((U23*P23),(1.7/12*(G23*References!$B$16+H23*References!$B$17+I23*References!$B$18+J23*References!$B$18)))),"0.0")) -> 0 | X23: =V23*7.48 -> 0 | Y23: =IF(C23="","",IF(C23="Green Roof","Green",IF(C23="Rainwater Harvesting","Rainwater",IF(C23="Impervious Surface Disconnection","Impervious",IF(C23="Permeable Pavement","Permeable",IF(C23="Tree Planting and Preservation","Tree",IF(C23="Open Channel","Open",C23))))))) ->  | Z23: =IF(E23="","",IF(E23="Extensive green roof","Extensive",IF(E23="Intensive green roof","Intensive",IF(E23="Rainwater harvesting","RWHarvest",IF(E23="Simple disconnection to a conservation area","Conservation",IF(E23="Simple disconnection to amended soils","IDAmended",IF(E23="Simple disconnection to a pervious area","Pervious",IF(E23="Permeable pavement - Enhanced","PPEnhanced",IF(E23="Permeable pavement - Standard","PPStandard",IF(E23="Bioretention - Enhanced","BioEnhanced",IF(E23="Bioretention - Standard","BioStandard",IF(E23="Infiltration trench","Trench",IF(E23="Infiltration basin","Basin",IF(E23="Grass channel","Grass",IF(E23="Grass channel - amended soils","GCAmended",IF(E23="Dry swale","DrySwale",IF(E23="wet swale","WetSwale",IF(E23="Micropool ED pond","Micropool",IF(E23="Wet pond","WetPond",IF(E23="Wet ED pond","EDPond",IF(E23="Shallow wetland","Shallow",IF(E23="ED shallow wetland","EDWet",IF(E23="Tree preservation","Preservation",IF(E23="Tree planting","Planting")))))))))))))))))))))))) ->  | AA23: =VLOOKUP(C23,Match,2,0) ->  | AB23: =VLOOKUP(E23,Match1,2,0) ->  | AC23: =IF(AA23=AB23,"",1) -> 
X24: =SUM(X21:X23) -> 0 | AC24: =COUNTIF(AC21:AC23,1) -> 0
C25: =COUNTIF(C21:D23,"Tree Planting and Preservation")>0 -> FALSE
C26: =COUNTIF(C21:D23,"Impervious Surface Disconnection")>0 -> FALSE | E26: =IF(SUM(E8:H8)=SUM(E9:H9),"","Pre and post-project land cover square footage must be equivalent") ->  | I26: =IF(E26="","",1) -> 
E27: =IF(OR(E5<>I8,E5<>I9),"Total Project Area does not match pre and/or Post project totals","") ->  | I27: =IF(E27="","",2) -> 
E28: =IF(E8<E9,"Retrofitting natural area does not result in SRC eligibility.","") ->  | I28: =IF(E28="","",3) -> 
E29: =IF(F8<F9,"Retrofitting compacted area results in less SRC eligibility than retrofitting impervious area.","") ->  | I29: =IF(E29="","",4) -> 
E30: =IFERROR(IF(H8/Post>0.9,"BMP has little to no additional CDA",""),"") ->  | I30: =IF(E30="","",5) -> 
E31: =IF(AND(E5>=5000,G8>G9),"Project may trigger stormwater regulations","") ->  | I31: =IF(E31="","",6) -> 
I32: =I26&I27&I28&I29&I30&I31 -> 
D34: 123456 | E34: -Pre and post-project land cover square footage must be equivalent. -Total Project Area does not match Pre and/or Post project totals. -Retrofitting natural area does not result in SRC eligibility. -Retrofitting compacted area results in less SRC eligibility than retrofitting impervious area. -BMP has little to no additional CDA. -Project may trigger stormwater regulations.
D35: 12345 | E35: -Pre and post-project land cover square footage must be equivalent. -Total Project Area does not match Pre and/or Post project totals. -Retrofitting natural area does not result in SRC eligibility. -Retrofitting compacted area results in less SRC eligibility than retrofitting impervious area. -BMP has little to no additional CDA.
D36: 12346 | E36: -Pre and post-project land cover square footage must be equivalent. -Total Project Area does not match Pre and/or Post project totals. -Retrofitting natural area does not result in SRC eligibility. -Retrofitting compacted area results in less SRC eligibility than retrofitting impervious area. -Project may trigger stormwater regulations.
D37: 12356 | E37: -Pre and post-project land cover square footage must be equivalent. -Total Project Area does not match Pre and/or Post project totals. -Retrofitting natural area does not result in SRC eligibility. -BMP has little to no additional CDA. -Project may trigger stormwater regulations.
D38: 12456 | E38: -Pre and post-project land cover square footage must be equivalent. -Total Project Area does not match Pre and/or Post project totals. -Retrofitting compacted area results in less SRC eligibility than retrofitting impervious area. -BMP has little to no additional CDA. -Project may trigger stormwater regulations.
D39: 13456 | E39: -Pre and post-project land cover square footage must be equivalent. -Retrofitting natural area does not result in SRC eligibility. -Retrofitting compacted area results in less SRC eligibility than retrofitting impervious area. -BMP has little to no additional CDA. -Project may trigger stormwater regulations.
D40: 23456 | E40: -Total Project Area does not match Pre and/or Post project totals. -Retrofitting natural area does not result in SRC eligibility. -Retrofitting compacted area results in less SRC eligibility than retrofitting impervious area. -BMP has little to no additional CDA. -Project may trigger stormwater regulations.
D41: 1234 | E41: -Pre and post-project land cover square footage must be equivalent. -Total Project Area does not match Pre and/or Post project totals. -Retrofitting natural area does not result in SRC eligibility. -Retrofitting compacted area results in less SRC eligibility than retrofitting impervious area.
D42: 1235 | E42: -Pre and post-project land cover square footage must be equivalent. -Total Project Area does not match Pre and/or Post project totals. -Retrofitting natural area does not result in SRC eligibility. -BMP has little to no additional CDA.
D43: 1236 | E43: -Pre and post-project land cover square footage must be equivalent. -Total Project Area does not match Pre and/or Post project totals. -Retrofitting natural area does not result in SRC eligibility. -Project may trigger stormwater regulations.
D44: 1245 | E44: -Pre and post-project land cover square footage must be equivalent. -Total Project Area does not match Pre and/or Post project totals. -Retrofitting compacted area results in less SRC eligibility than retrofitting impervious area. -BMP has little to no additional CDA.
D45: 1246 | E45: -Pre and post-project land cover square footage must be equivalent. -Total Project Area does not match Pre and/or Post project totals. -Retrofitting compacted area results in less SRC eligibility than retrofitting impervious area. -Project may trigger stormwater regulations.
D46: 1256 | E46: -Pre and post-project land cover square footage must be equivalent. -Total Project Area does not match Pre and/or Post project totals. -BMP has little to no additional CDA. -Project may trigger stormwater regulations.
D47: 1345 | E47: -Pre and post-project land cover square footage must be equivalent. -Retrofitting natural area does not result in SRC eligibility. -Retrofitting compacted area results in less SRC eligibility than retrofitting impervious area. -BMP has little to no additional CDA.
D48: 1346 | E48: -Pre and post-project land cover square footage must be equivalent. -Retrofitting natural area does not result in SRC eligibility. -Retrofitting compacted area results in less SRC eligibility than retrofitting impervious area. -Project may trigger stormwater regulations.
D49: 1356 | E49: -Pre and post-project land cover square footage must be equivalent. -Retrofitting natural area does not result in SRC eligibility. -BMP has little to no additional CDA. -Project may trigger stormwater regulations.
D50: 1456 | E50: -Pre and post-project land cover square footage must be equivalent. -Retrofitting compacted area results in less SRC eligibility than retrofitting impervious area. -BMP has little to no additional CDA. -Project may trigger stormwater regulations.
D51: 2345 | E51: -Total Project Area does not match Pre and/or Post project totals. -Retrofitting natural area does not result in SRC eligibility. -Retrofitting compacted area results in less SRC eligibility than retrofitting impervious area. -BMP has little to no additional CDA.
D52: 2346 | E52: -Total Project Area does not match Pre and/or Post project totals. -Retrofitting natural area does not result in SRC eligibility. -Retrofitting compacted area results in less SRC eligibility than retrofitting impervious area. -Project may trigger stormwater regulations.
D53: 2456 | E53: -Total Project Area does not match Pre and/or Post project totals. -Retrofitting compacted area results in less SRC eligibility than retrofitting impervious area. -BMP has little to no additional CDA. -Project may trigger stormwater regulations.
D54: 3456 | E54: -Retrofitting natural area does not result in SRC eligibility. -Retrofitting compacted area results in less SRC eligibility than retrofitting impervious area. -BMP has little to no additional CDA. -Project may trigger stormwater regulations.
D55: 123 | E55: -Pre and post-project land cover square footage must be equivalent. -Total Project Area does not match Pre and/or Post project totals. -Retrofitting natural area does not result in SRC eligibility.
D56: 124 | E56: -Pre and post-project land cover square footage must be equivalent. -Total Project Area does not match Pre and/or Post project totals. -Retrofitting compacted area results in less SRC eligibility than retrofitting impervious area.
D57: 125 | E57: -Pre and post-project land cover square footage must be equivalent. -Total Project Area does not match Pre and/or Post project totals. -BMP has little to no additional CDA.
D58: 126 | E58: -Pre and post-project land cover square footage must be equivalent. -Total Project Area does not match Pre and/or Post project totals. -Project may trigger stormwater regulations.
D59: 134 | E59: -Pre and post-project land cover square footage must be equivalent. -Retrofitting natural area does not result in SRC eligibility. -Retrofitting compacted area results in less SRC eligibility than retrofitting impervious area.
D60: 135 | E60: -Pre and post-project land cover square footage must be equivalent. -Retrofitting natural area does not result in SRC eligibility. -BMP has little to no additional CDA.
D61: 136 | E61: -Pre and post-project land cover square footage must be equivalent. -Retrofitting natural area does not result in SRC eligibility. -Project may trigger stormwater regulations.
D62: 145 | E62: -Pre and post-project land cover square footage must be equivalent. -Retrofitting compacted area results in less SRC eligibility than retrofitting impervious area. -BMP has little to no additional CDA.
D63: 146 | E63: -Pre and post-project land cover square footage must be equivalent. -Retrofitting compacted area results in less SRC eligibility than retrofitting impervious area. -Project may trigger stormwater regulations.
D64: 234 | E64: -Total Project Area does not match Pre and/or Post project totals. -Retrofitting natural area does not result in SRC eligibility. -Retrofitting compacted area results in less SRC eligibility than retrofitting impervious area.
D65: 235 | E65: -Total Project Area does not match Pre and/or Post project totals. -Retrofitting natural area does not result in SRC eligibility. -BMP has little to no additional CDA.
D66: 236 | E66: -Total Project Area does not match Pre and/or Post project totals. -Retrofitting natural area does not result in SRC eligibility. -Project may trigger stormwater regulations.
D67: 245 | E67: -Total Project Area does not match Pre and/or Post project totals. -Retrofitting compacted area results in less SRC eligibility than retrofitting impervious area. -BMP has little to no additional CDA.
D68: 246 | E68: -Total Project Area does not match Pre and/or Post project totals. -Retrofitting compacted area results in less SRC eligibility than retrofitting impervious area. -Project may trigger stormwater regulations.
D69: 256 | E69: -Total Project Area does not match Pre and/or Post project totals. -BMP has little to no additional CDA. -Project may trigger stormwater regulations.
D70: 345 | E70: -Retrofitting natural area does not result in SRC eligibility. -Retrofitting compacted area results in less SRC eligibility than retrofitting impervious area. -BMP has little to no additional CDA.
D71: 346 | E71: -Retrofitting natural area does not result in SRC eligibility. -Retrofitting compacted area results in less SRC eligibility than retrofitting impervious area. -Project may trigger stormwater regulations.
D72: 456 | E72: -Retrofitting compacted area results in less SRC eligibility than retrofitting impervious area. -BMP has little to no additional CDA. -Project may trigger stormwater regulations.
D73: 12 | E73: -Pre and post-project land cover square footage must be equivalent. -Total Project Area does not match Pre and/or Post project totals.
D74: 13 | E74: -Pre and post-project land cover square footage must be equivalent. -Retrofitting natural area does not result in SRC eligibility.
D75: 14 | E75: -Pre and post-project land cover square footage must be equivalent. -Retrofitting compacted area results in less SRC eligibility than retrofitting impervious area.
D76: 15 | E76: -Pre and post-project land cover square footage must be equivalent. -BMP has little to no additional CDA.
D77: 16 | E77: -Pre and post-project land cover square footage must be equivalent. -Project may trigger stormwater regulations.
D78: 23 | E78: -Total Project Area does not match Pre and/or Post project totals. -Retrofitting natural area does not result in SRC eligibility.
D79: 24 | E79: -Total Project Area does not match Pre and/or Post project totals. -Retrofitting compacted area results in less SRC eligibility than retrofitting impervious area.
D80: 25 | E80: -Total Project Area does not match Pre and/or Post project totals. -BMP has little to no additional CDA.
D81: 26 | E81: -Total Project Area does not match Pre and/or Post project totals. -Project may trigger stormwater regulations.
D82: 34 | E82: -Retrofitting natural area does not result in SRC eligibility. -Retrofitting compacted area results in less SRC eligibility than retrofitting impervious area.
D83: 35 | E83: -Retrofitting natural area does not result in SRC eligibility. -BMP has little to no additional CDA.
D84: 36 | E84: -Retrofitting natural area does not result in SRC eligibility. -Project may trigger stormwater regulations.
D85: 45 | E85: -Retrofitting compacted area results in less SRC eligibility than retrofitting impervious area. -BMP has little to no additional CDA.
D86: 46 | E86: -Retrofitting compacted area results in less SRC eligibility than retrofitting impervious area. -Project may trigger stormwater regulations.
D87: 56 | E87: -BMP has little to no additional CDA. -Project may trigger stormwater regulations.
D88: 1 | E88: -Pre and post-project land cover square footage must be equivalent.
D89: 2 | E89: -Total Project Area does not match Pre and/or Post project totals.
D90: 3 | E90: -Retrofitting natural area does not result in SRC eligibility.
D91: 4 | E91: -Retrofitting compacted area results in less SRC eligibility than retrofitting impervious area.
D92: 5 | E92: -BMP has little to no additional CDA.
D93: 6 | E93: -Project may trigger stormwater regulations.

Sheet 2 (hidden)
C3: Enter Land Cover Type Area If land cover information is unavailable, the calculator will assume 100% impervious land cover pre-project and 90% impervious and 10% BMP post-project land cover.
C5: Total Project Area (ft2):ii | E5: =Overview!I28 -> 0 | F5: =IF(OR(I8>0,I9>0)," "," For a more detailed estimate, include land cover square footage below.") -> For a more detailed estimate, include land cover square footage below.
C6: =IF(MS4_MLD="MSI","*Please include building footprint in the land cover information.","") -> 
C7: Land Cover Type: | E7: Natural | F7: Compacted | G7: Impervious | H7: BMP | I7: Total
C8: Post-project (ft2) | I8: =SUM(E8:H8) -> 0
C9: Pre-project (ft2) | I9: =SUM(E9:H9) -> 0
E10: =IF(H25="123",D27,IF(H25="12",D28,IF(H25="13",D29,IF(H25="23",D30,IF(H25="1",D31,IF(H25="2",D32,IF(H25="3",D33,""))))))) -> 
C11: Stormwater Retention Volume (SWRv) Requirement | I11: =IF(MS4_MLD="","",IF(MS4_MLD="MLD",1.2,IF(AND(Price_AWDZ="Yes",MS4_MLD="MSI"),1,0.8))) -> 
C12: *SRC eligibility is achieved by retaining stormwater in excess of the regulatory requirement in a 1.7 inch storm.
C13: Regulatory Requirement | E13: ft2 | F13: gal
C14: =IF(MS4_MLD="MLD","Major Land Disturbing",IF(MS4_MLD="MSI","Major Substantial Improvement",IF(Activity="Voluntary","Voluntary Retrofit",""))) -> Voluntary Retrofit
C15: SWRV | E15: =IFERROR(IF(I8<1,(I11/12*(E5*References!B18)),(I11/12*((E8*References!B16)+(F8*References!B17)+(G17*References!B18)+(H17*References!B18)))),"N/A") -> N/A | F15: =IFERROR(E15*7.48,"N/A") -> N/A | G15: =IF(Activity="Voluntary",0-(1.7/12*(E9+F9*0.75+G9*0.05+H9*0.05))+(1.7/12*(E8+F8*0.75+G8*0.05+H8*0.05)),0) -> 0
C16: WQTV | E16: =IF(Price_AWDZ="Yes",IF(I8<1,(1.7/12*(E5*References!B18)-E15),(1.7/12*(E8*References!B16+'2'!F8*References!B17+G17*References!B18+H17*References!B18))-E15),"N/A") -> N/A | F16: =IFERROR(E16*7.48,"N/A") -> N/A | G16: =IF(SUM(E9:H9)=0,E5,G9) -> 0
C17: *For AWDZ Projects, the SWRv requirement for MSI activities is based on the 1.0-inch storm event. For MLD activities the SWRv requirement is based on the 1.2-inch storm event. All AWDZ sites must meet a Water Quality Treatment Volume (WQTv) that is based on a 1.7-inch storm event. These projects only achieve SRC eligibility by retaining stormwater runoff from non-regulated areas. | G17: =IF(SUM(E8:H8)=0,E5*0.9,G8) -> 0 | H17: =IF(SUM(E8:H8)=0,E5*0.1,H8) -> 0
C18: =HYPERLINK("#'Overview'!i16","Go Back") -> Go Back | I18: =IF(I8<>I9,HYPERLINK("#2!c23","Continue"),HYPERLINK("#'BMP Design'!d6","Continue")) -> Continue
D21: =IF(SUM(E8:H8)=SUM(E9:H9),"","Pre and post-project land cover square footage must be equivalent") ->  | H21: =IF(D21="","",1) -> 
D22: =IF(OR(E5<>I8,E5<>I9),"Total Project Area does not match pre and/or Post project totals","") ->  | H22: =IF(D22="","",2) -> 
D23: =IFERROR(IF(H8/I8>0.9,"BMP has little to no additional CDA",""),"") ->  | H23: =IF(D23="","",3) -> 
H25: =H21&H22&H23 -> 
C27: 123 | D27: -Pre and post-project land cover square footage must be equivalent. -Total Project Area does not match Pre and/or Post project totals. -BMP has little to no additional CDA.
C28: 12 | D28: -Pre and post-project land cover square footage must be equivalent. -Total Project Area does not match Pre and/or Post project totals.
C29: 13 | D29: -Pre and post-project land cover square footage must be equivalent. -BMP has little to no additional CDA.
C30: 23 | D30: -Total Project Area does not Match Pre and/or Post Project totals. -BMP has little to no additional CDA.
C31: 1 | D31: -Pre and post-project land cover square footage must be equivalent.
C32: 2 | D32: -Total Project Area does not match Pre and/or Post project totals.
C33: 3 | D33: -BMP has little to no additional CDA.

Sheet BMP Design
C3: Enter Project BMP Design Information If BMP design information is unavailable, you may leave this page blank to assume BMPs manage the 1.7-inch storm across the Total Project Area. To estimate more accurate retention volume and project costs, enter BMP Type, BMP Subtype, and Contributing Drainage Area. If unavailable, Storage Volume information may be left blank.
C4: BMP | F4: BMP Subtype | H4: Contributing Drainage Area (CDA) (ft2) | U4: Storage Volume (ft3) | Z4: Receiving Area (ft2) | AC4: Number of Trees | AE4: BMP Retention Vol. Achieved (ft3) | AG4: BMP Retention Vol. Achieved (gal)
H5: CDA Required | L5: COUNTA | M5: Nat ft2 Calc | N5: If Nat Blank | O5: Comp ft2 Calc | P5: If Comp Blank | Q5: IMP ft2 Calc | R5: If IMP Blank | S5: BMP ft2 Calc | V5: If Sv Blank | W5: RWH Sv Conv | AA5: Ra Calc | AB5: If Ra Blank | AD5: Retention Value
D6: BMP Type and Subtype do not match | F6: BMP Subtype Required | H6: Natural | I6: Compacted | J6: Impervious | K6: BMP | T6: If BMP Blank | X6: 1.7 Rv | Y6: if blank
C7: 1. | L7: =IF(SUM(H7:K7)>0,1,"") ->  | M7: =IFERROR(IF(ISBLANK(H7),N7,H7),0) -> 0 | N7: =IFERROR(IF(OR(SUM(H7:K7)>0,COUNTA(F7)=0),0,Background!$E$22-SUM($H$7:$H$18))/(COUNTA('BMP Design'!$F$7:$F$18)-COUNT($L$7:$L$18)),0) -> 0 | O7: =IFERROR(IF(ISBLANK(I7),P7,I7),0) -> 0 | P7: =IFERROR(IF(OR(SUM(H7:K7)>0,COUNTA(F7)=0),0,Background!$F$22-SUM($I$7:$I$18))/(COUNTA('BMP Design'!$F$7:$F$18)-COUNT($L$7:$L$18)),0) -> 0 | Q7: =IFERROR(IF(ISBLANK(J7),R7,J7),0) -> 0 | R7: =IFERROR(IF(OR(SUM(H7:K7)>0,COUNTA(F7)=0),0,Background!$G$22-SUM($J$7:$J$18))/(COUNTA('BMP Design'!$F$7:$F$18)-COUNT($J$7:$J$18)),0) -> 0 | S7: =IFERROR(IF(ISBLANK(K7),T7,K7),0) -> 0 | T7: =IFERROR(IF(OR(SUM(H7:K7)>0,COUNTA(F7)=0),0,Background!$H$22-SUM($J$7:$J$18))/(COUNTA('BMP Design'!$E$7:$E$18)-COUNT($K$7:$K$18)),0) -> 0 | V7: =IF(ISBLANK(U7),X7,U7) -> 0 | W7: =IF(F7="Rainwater harvesting",((References!$E$2*X7)*7.48),"") ->  | X7: =IF(D7="Tree Planting and Preservation","Tree",1.7/12*(M7*0.05+O7*0.25+Q7*0.95+S7*0.95)) -> 0 | Y7: =IF(ISBLANK(U7),X7,U7) -> 0 | AA7: =IF(ISBLANK(Z7),AB7,Z7) -> 0 | AB7: =IF(E7="Simple disconnection to amended soils",(W7/40)*100,IF(E7="Simple disconnection to a conservation area",(W7/60)*100,IF(E7="Simple disconnection to a pervious area",(W7/20)*100,0))) -> 0 | AD7: =IFERROR(IF(F7="Permeable pavement - Standard",K7*0.045,(INDIRECT(AI7))),"") ->  | AE7: =IF(D7="Tree Planting and Preservation",AD7,IF(OR(D7="",F7="",SUM(H7:K7)=0),0,IFERROR(IF(AD7>1,MIN(AD7,Y7),MIN((AD7*Y7),(1.7/12*(M7*References!$B$16+O7*References!$B$17+Q7*References!$B$18+S7*References!$B$18)))),"0.0"))) -> 0 | AG7: =IFERROR(AE7*7.48,0) -> 0 | AH7: =IF(D7="","",IF(D7="Green Roof","Green",IF(D7="Rainwater Harvesting","Rainwater",IF(D7="Impervious Surface Disconnection","Impervious",IF(D7="Permeable Pavement","Permeable",IF(D7="Tree Planting and Preservation","Tree",IF(D7="Open Channel","Open",D7))))))) ->  | AI7: =IF(F7="","",IF(F7="Extensive green roof","Extensive",IF(F7="Intensive green roof","Intensive",IF(F7="Rainwater harvesting","RWHarvest",IF(F7="Disconnection to a conservation area","Conservation",IF(F7="Disconnection to amended soils","IDAmended",IF(F7="Disconnection to a pervious area","Pervious",IF(F7="Permeable pavement - Enhanced","PPEnhanced",IF(F7="Permeable pavement - Standard","PPStandard",IF(F7="Bioretention - Enhanced","BioEnhanced",IF(F7="Bioretention - Standard","BioStandard",IF(F7="Infiltration trench","Trench",IF(F7="Infiltration basin","Basin",IF(F7="Grass channel","Grass",IF(F7="Grass channel - amended soils","GCAmended",IF(F7="Dry swale","DrySwale",IF(F7="wet swale","WetSwale",IF(F7="Micropool ED pond","Micropool",IF(F7="Wet pond","WetPond",IF(F7="Wet ED pond","EDPond",IF(F7="Shallow wetland","Shallow",IF(F7="ED shallow wetland","EDWet",IF(F7="Tree preservation","Preservation",IF(F7="Tree planting","Planting")))))))))))))))))))))))) ->  | AJ7: =VLOOKUP(D7,Match,2,0) ->  | AK7: =VLOOKUP(F7,Match1,2,0) ->  | AL7: =IF(AJ7=AK7,"",1) -> 
C8: 2. | L8: =IF(SUM(H8:K8)>0,1,"") ->  | M8: =IFERROR(IF(ISBLANK(H8),N8,H8),0) -> 0 | N8: =IFERROR(IF(OR(SUM(H8:K8)>0,COUNTA(F8)=0),0,Background!$E$22-SUM($H$7:$H$18))/(COUNTA('BMP Design'!$F$7:$F$18)-COUNT($L$7:$L$18)),0) -> 0 | O8: =IFERROR(IF(ISBLANK(I8),P8,I8),0) -> 0 | P8: =IFERROR(IF(OR(SUM(H8:K8)>0,COUNTA(F8)=0),0,Background!$F$22-SUM($I$7:$I$18))/(COUNTA('BMP Design'!$F$7:$F$18)-COUNT($L$7:$L$18)),0) -> 0 | Q8: =IFERROR(IF(ISBLANK(J8),R8,J8),0) -> 0 | R8: =IFERROR(IF(OR(SUM(H8:K8)>0,COUNTA(F8)=0),0,Background!$G$22-SUM($J$7:$J$18))/(COUNTA('BMP Design'!$F$7:$F$18)-COUNT($J$7:$J$18)),0) -> 0 | S8: =IFERROR(IF(ISBLANK(K8),T8,K8),0) -> 0 | T8: =IFERROR(IF(OR(SUM(H8:K8)>0,COUNTA(F8)=0),0,Background!$H$22-SUM($J$7:$J$18))/(COUNTA('BMP Design'!$E$7:$E$18)-COUNT($K$7:$K$18)),0) -> 0 | V8: =IF(ISBLANK(U8),W8,U8) ->  | W8: =IF(F8="Rainwater harvesting",((References!$E$2*X8)*7.48),"") ->  | X8: 0 | Y8: =IF(ISBLANK(U8),X8,U8) -> 0 | AA8: =IF(ISBLANK(Z8),AB8,Z8) -> 0 | AB8: 0 | AD8: =IFERROR(IF(F8="Permeable pavement - Standard",K8*0.045,(INDIRECT(AI8))),"") ->  | AE8: =IF(D8="Tree Planting and Preservation",AD8,IF(OR(D8="",F8="",SUM(H8:K8)=0),0,IFERROR(IF(AD8>1,MIN(AD8,Y8),MIN((AD8*Y8),(1.7/12*(M8*References!$B$16+O8*References!$B$17+Q8*References!$B$18+S8*References!$B$18)))),"0.0"))) -> 0 | AG8: =IFERROR(AE8*7.48,0) -> 0 | AL8: =IF(AJ8=AK8,"",1) -> 
C9: 3. | M9: 0 | N9: =IFERROR(IF(OR(SUM(H9:K9)>0,COUNTA(F9)=0),0,Background!$E$22-SUM($H$7:$H$18))/(COUNTA('BMP Design'!$F$7:$F$18)-COUNT($L$7:$L$18)),0) -> 0 | O9: 0 | P9: =IFERROR(IF(OR(SUM(H9:K9)>0,COUNTA(F9)=0),0,Background!$F$22-SUM($I$7:$I$18))/(COUNTA('BMP Design'!$F$7:$F$18)-COUNT($L$7:$L$18)),0) -> 0 | Q9: 0 | R9: =IFERROR(IF(OR(SUM(H9:K9)>0,COUNTA(F9)=0),0,Background!$G$22-SUM($J$7:$J$18))/(COUNTA('BMP Design'!$F$7:$F$18)-COUNT($J$7:$J$18)),0) -> 0 | S9: 0 | T9: =IFERROR(IF(OR(SUM(H9:K9)>0,COUNTA(F9)=0),0,Background!$H$22-SUM($J$7:$J$18))/(COUNTA('BMP Design'!$E$7:$E$18)-COUNT($K$7:$K$18)),0) -> 0 | W9: =IF(F9="Rainwater harvesting",((References!$E$2*X9)*7.48),"") ->  | X9: 0 | Y9: 0 | AA9: 0 | AB9: 0 | AE9: =IF(D9="Tree Planting and Preservation",AD9,IF(OR(D9="",F9="",SUM(H9:K9)=0),0,IFERROR(IF(AD9>1,MIN(AD9,Y9),MIN((AD9*Y9),(1.7/12*(M9*References!$B$16+O9*References!$B$17+Q9*References!$B$18+S9*References!$B$18)))),"0.0"))) -> 0 | AG9: 0
C10: 4. | M10: 0 | N10: =IFERROR(IF(OR(SUM(H10:K10)>0,COUNTA(F10)=0),0,Background!$E$22-SUM($H$7:$H$18))/(COUNTA('BMP Design'!$F$7:$F$18)-COUNT($L$7:$L$18)),0) -> 0 | O10: 0 | P10: =IFERROR(IF(OR(SUM(H10:K10)>0,COUNTA(F10)=0),0,Background!$F$22-SUM($I$7:$I$18))/(COUNTA('BMP Design'!$F$7:$F$18)-COUNT($L$7:$L$18)),0) -> 0 | Q10: 0 | R10: =IFERROR(IF(OR(SUM(H10:K10)>0,COUNTA(F10)=0),0,Background!$G$22-SUM($J$7:$J$18))/(COUNTA('BMP Design'!$F$7:$F$18)-COUNT($J$7:$J$18)),0) -> 0 | S10: 0 | T10: =IFERROR(IF(OR(SUM(H10:K10)>0,COUNTA(F10)=0),0,Background!$H$22-SUM($J$7:$J$18))/(COUNTA('BMP Design'!$E$7:$E$18)-COUNT($K$7:$K$18)),0) -> 0 | W10: =IF(F10="Rainwater harvesting",((References!$E$2*X10)*7.48),"") ->  | X10: 0 | Y10: 0 | AA10: 0 | AB10: 0 | AE10: =IF(D10="Tree Planting and Preservation",AD10,IF(OR(D10="",F10="",SUM(H10:K10)=0),0,IFERROR(IF(AD10>1,MIN(AD10,Y10),MIN((AD10*Y10),(1.7/12*(M10*References!$B$16+O10*References!$B$17+Q10*References!$B$18+S10*References!$B$18)))),"0.0"))) -> 0 | AG10: 0
C11: 5. | M11: 0 | N11: =IFERROR(IF(OR(SUM(H11:K11)>0,COUNTA(F11)=0),0,Background!$E$22-SUM($H$7:$H$18))/(COUNTA('BMP Design'!$F$7:$F$18)-COUNT($L$7:$L$18)),0) -> 0 | O11: 0 | P11: =IFERROR(IF(OR(SUM(H11:K11)>0,COUNTA(F11)=0),0,Background!$F$22-SUM($I$7:$I$18))/(COUNTA('BMP Design'!$F$7:$F$18)-COUNT($L$7:$L$18)),0) -> 0 | Q11: 0 | R11: =IFERROR(IF(OR(SUM(H11:K11)>0,COUNTA(F11)=0),0,Background!$G$22-SUM($J$7:$J$18))/(COUNTA('BMP Design'!$F$7:$F$18)-COUNT($J$7:$J$18)),0) -> 0 | S11: 0 | T11: =IFERROR(IF(OR(SUM(H11:K11)>0,COUNTA(F11)=0),0,Background!$H$22-SUM($J$7:$J$18))/(COUNTA('BMP Design'!$E$7:$E$18)-COUNT($K$7:$K$18)),0) -> 0 | W11: =IF(F11="Rainwater harvesting",((References!$E$2*X11)*7.48),"") ->  | X11: 0 | Y11: 0 | AA11: 0 | AB11: 0 | AE11: =IF(D11="Tree Planting and Preservation",AD11,IF(OR(D11="",F11="",SUM(H11:K11)=0),0,IFERROR(IF(AD11>1,MIN(AD11,Y11),MIN((AD11*Y11),(1.7/12*(M11*References!$B$16+O11*References!$B$17+Q11*References!$B$18+S11*References!$B$18)))),"0.0"))) -> 0 | AG11: 0
C12: 6. | M12: 0 | N12: =IFERROR(IF(OR(SUM(H12:K12)>0,COUNTA(F12)=0),0,Background!$E$22-SUM($H$7:$H$18))/(COUNTA('BMP Design'!$F$7:$F$18)-COUNT($L$7:$L$18)),0) -> 0 | O12: 0 | P12: =IFERROR(IF(OR(SUM(H12:K12)>0,COUNTA(F12)=0),0,Background!$F$22-SUM($I$7:$I$18))/(COUNTA('BMP Design'!$F$7:$F$18)-COUNT($L$7:$L$18)),0) -> 0 | Q12: 0 | R12: =IFERROR(IF(OR(SUM(H12:K12)>0,COUNTA(F12)=0),0,Background!$G$22-SUM($J$7:$J$18))/(COUNTA('BMP Design'!$F$7:$F$18)-COUNT($J$7:$J$18)),0) -> 0 | S12: 0 | T12: =IFERROR(IF(OR(SUM(H12:K12)>0,COUNTA(F12)=0),0,Background!$H$22-SUM($J$7:$J$18))/(COUNTA('BMP Design'!$E$7:$E$18)-COUNT($K$7:$K$18)),0) -> 0 | W12: =IF(F12="Rainwater harvesting",((References!$E$2*X12)*7.48),"") ->  | X12: 0 | Y12: 0 | AA12: 0 | AB12: 0 | AE12: =IF(D12="Tree Planting and Preservation",AD12,IF(OR(D12="",F12="",SUM(H12:K12)=0),0,IFERROR(IF(AD12>1,MIN(AD12,Y12),MIN((AD12*Y12),(1.7/12*(M12*References!$B$16+O12*References!$B$17+Q12*References!$B$18+S12*References!$B$18)))),"0.0"))) -> 0 | AG12: 0
C13: 7. | M13: 0 | N13: =IFERROR(IF(OR(SUM(H13:K13)>0,COUNTA(F13)=0),0,Background!$E$22-SUM($H$7:$H$18))/(COUNTA('BMP Design'!$F$7:$F$18)-COUNT($L$7:$L$18)),0) -> 0 | O13: 0 | P13: =IFERROR(IF(OR(SUM(H13:K13)>0,COUNTA(F13)=0),0,Background!$F$22-SUM($I$7:$I$18))/(COUNTA('BMP Design'!$F$7:$F$18)-COUNT($L$7:$L$18)),0) -> 0 | Q13: 0 | R13: =IFERROR(IF(OR(SUM(H13:K13)>0,COUNTA(F13)=0),0,Background!$G$22-SUM($J$7:$J$18))/(COUNTA('BMP Design'!$F$7:$F$18)-COUNT($J$7:$J$18)),0) -> 0 | S13: 0 | T13: =IFERROR(IF(OR(SUM(H13:K13)>0,COUNTA(F13)=0),0,Background!$H$22-SUM($J$7:$J$18))/(COUNTA('BMP Design'!$E$7:$E$18)-COUNT($K$7:$K$18)),0) -> 0 | W13: =IF(F13="Rainwater harvesting",((References!$E$2*X13)*7.48),"") ->  | X13: 0 | Y13: 0 | AA13: 0 | AB13: 0 | AE13: =IF(D13="Tree Planting and Preservation",AD13,IF(OR(D13="",F13="",SUM(H13:K13)=0),0,IFERROR(IF(AD13>1,MIN(AD13,Y13),MIN((AD13*Y13),(1.7/12*(M13*References!$B$16+O13*References!$B$17+Q13*References!$B$18+S13*References!$B$18)))),"0.0"))) -> 0 | AG13: 0
C14: 8. | M14: 0 | N14: =IFERROR(IF(OR(SUM(H14:K14)>0,COUNTA(F14)=0),0,Background!$E$22-SUM($H$7:$H$18))/(COUNTA('BMP Design'!$F$7:$F$18)-COUNT($L$7:$L$18)),0) -> 0 | O14: 0 | P14: =IFERROR(IF(OR(SUM(H14:K14)>0,COUNTA(F14)=0),0,Background!$F$22-SUM($I$7:$I$18))/(COUNTA('BMP Design'!$F$7:$F$18)-COUNT($L$7:$L$18)),0) -> 0 | Q14: 0 | R14: =IFERROR(IF(OR(SUM(H14:K14)>0,COUNTA(F14)=0),0,Background!$G$22-SUM($J$7:$J$18))/(COUNTA('BMP Design'!$F$7:$F$18)-COUNT($J$7:$J$18)),0) -> 0 | S14: 0 | T14: =IFERROR(IF(OR(SUM(H14:K14)>0,COUNTA(F14)=0),0,Background!$H$22-SUM($J$7:$J$18))/(COUNTA('BMP Design'!$E$7:$E$18)-COUNT($K$7:$K$18)),0) -> 0 | W14: =IF(F14="Rainwater harvesting",((References!$E$2*X14)*7.48),"") ->  | X14: 0 | Y14: 0 | AA14: 0 | AB14: 0 | AE14: =IF(D14="Tree Planting and Preservation",AD14,IF(OR(D14="",F14="",SUM(H14:K14)=0),0,IFERROR(IF(AD14>1,MIN(AD14,Y14),MIN((AD14*Y14),(1.7/12*(M14*References!$B$16+O14*References!$B$17+Q14*References!$B$18+S14*References!$B$18)))),"0.0"))) -> 0 | AG14: 0
C15: 9. | M15: 0 | N15: =IFERROR(IF(OR(SUM(H15:K15)>0,COUNTA(F15)=0),0,Background!$E$22-SUM($H$7:$H$18))/(COUNTA('BMP Design'!$F$7:$F$18)-COUNT($L$7:$L$18)),0) -> 0 | O15: 0 | P15: =IFERROR(IF(OR(SUM(H15:K15)>0,COUNTA(F15)=0),0,Background!$F$22-SUM($I$7:$I$18))/(COUNTA('BMP Design'!$F$7:$F$18)-COUNT($L$7:$L$18)),0) -> 0 | Q15: 0 | R15: =IFERROR(IF(OR(SUM(H15:K15)>0,COUNTA(F15)=0),0,Background!$G$22-SUM($J$7:$J$18))/(COUNTA('BMP Design'!$F$7:$F$18)-COUNT($J$7:$J$18)),0) -> 0 | S15: 0 | T15: =IFERROR(IF(OR(SUM(H15:K15)>0,COUNTA(F15)=0),0,Background!$H$22-SUM($J$7:$J$18))/(COUNTA('BMP Design'!$E$7:$E$18)-COUNT($K$7:$K$18)),0) -> 0 | W15: =IF(F15="Rainwater harvesting",((References!$E$2*X15)*7.48),"") ->  | X15: 0 | Y15: 0 | AA15: 0 | AB15: 0 | AE15: =IF(D15="Tree Planting and Preservation",AD15,IF(OR(D15="",F15="",SUM(H15:K15)=0),0,IFERROR(IF(AD15>1,MIN(AD15,Y15),MIN((AD15*Y15),(1.7/12*(M15*References!$B$16+O15*References!$B$17+Q15*References!$B$18+S15*References!$B$18)))),"0.0"))) -> 0 | AG15: 0
C16: 10. | M16: 0 | N16: =IFERROR(IF(OR(SUM(H16:K16)>0,COUNTA(F16)=0),0,Background!$E$22-SUM($H$7:$H$18))/(COUNTA('BMP Design'!$F$7:$F$18)-COUNT($L$7:$L$18)),0) -> 0 | O16: 0 | P16: =IFERROR(IF(OR(SUM(H16:K16)>0,COUNTA(F16)=0),0,Background!$F$22-SUM($I$7:$I$18))/(COUNTA('BMP Design'!$F$7:$F$18)-COUNT($L$7:$L$18)),0) -> 0 | Q16: 0 | R16: =IFERROR(IF(OR(SUM(H16:K16)>0,COUNTA(F16)=0),0,Background!$G$22-SUM($J$7:$J$18))/(COUNTA('BMP Design'!$F$7:$F$18)-COUNT($J$7:$J$18)),0) -> 0 | S16: 0 | T16: =IFERROR(IF(OR(SUM(H16:K16)>0,COUNTA(F16)=0),0,Background!$H$22-SUM($J$7:$J$18))/(COUNTA('BMP Design'!$E$7:$E$18)-COUNT($K$7:$K$18)),0) -> 0 | W16: =IF(F16="Rainwater harvesting",((References!$E$2*X16)*7.48),"") ->  | X16: 0 | Y16: 0 | AA16: 0 | AB16: 0 | AE16: =IF(D16="Tree Planting and Preservation",AD16,IF(OR(D16="",F16="",SUM(H16:K16)=0),0,IFERROR(IF(AD16>1,MIN(AD16,Y16),MIN((AD16*Y16),(1.7/12*(M16*References!$B$16+O16*References!$B$17+Q16*References!$B$18+S16*References!$B$18)))),"0.0"))) -> 0 | AG16: 0
C17: 11. | M17: 0 | N17: =IFERROR(IF(OR(SUM(H17:K17)>0,COUNTA(F17)=0),0,Background!$E$22-SUM($H$7:$H$18))/(COUNTA('BMP Design'!$F$7:$F$18)-COUNT($L$7:$L$18)),0) -> 0 | O17: 0 | P17: =IFERROR(IF(OR(SUM(H17:K17)>0,COUNTA(F17)=0),0,Background!$F$22-SUM($I$7:$I$18))/(COUNTA('BMP Design'!$F$7:$F$18)-COUNT($L$7:$L$18)),0) -> 0 | Q17: 0 | R17: =IFERROR(IF(OR(SUM(H17:K17)>0,COUNTA(F17)=0),0,Background!$G$22-SUM($J$7:$J$18))/(COUNTA('BMP Design'!$F$7:$F$18)-COUNT($J$7:$J$18)),0) -> 0 | S17: 0 | T17: =IFERROR(IF(OR(SUM(H17:K17)>0,COUNTA(F17)=0),0,Background!$H$22-SUM($J$7:$J$18))/(COUNTA('BMP Design'!$E$7:$E$18)-COUNT($K$7:$K$18)),0) -> 0 | W17: =IF(F17="Rainwater harvesting",((References!$E$2*X17)*7.48),"") ->  | X17: 0 | Y17: 0 | AA17: 0 | AB17: 0 | AE17: =IF(D17="Tree Planting and Preservation",AD17,IF(OR(D17="",F17="",SUM(H17:K17)=0),0,IFERROR(IF(AD17>1,MIN(AD17,Y17),MIN((AD17*Y17),(1.7/12*(M17*References!$B$16+O17*References!$B$17+Q17*References!$B$18+S17*References!$B$18)))),"0.0"))) -> 0 | AG17: 0
C18: 12. | M18: 0 | N18: =IFERROR(IF(OR(SUM(H18:K18)>0,COUNTA(F18)=0),0,Background!$E$22-SUM($H$7:$H$18))/(COUNTA('BMP Design'!$F$7:$F$18)-COUNT($L$7:$L$18)),0) -> 0 | O18: 0 | P18: =IFERROR(IF(OR(SUM(H18:K18)>0,COUNTA(F18)=0),0,Background!$F$22-SUM($I$7:$I$18))/(COUNTA('BMP Design'!$F$7:$F$18)-COUNT($L$7:$L$18)),0) -> 0 | Q18: 0 | R18: =IFERROR(IF(OR(SUM(H18:K18)>0,COUNTA(F18)=0),0,Background!$G$22-SUM($J$7:$J$18))/(COUNTA('BMP Design'!$F$7:$F$18)-COUNT($J$7:$J$18)),0) -> 0 | S18: 0 | T18: =IFERROR(IF(OR(SUM(H18:K18)>0,COUNTA(F18)=0),0,Background!$H$22-SUM($J$7:$J$18))/(COUNTA('BMP Design'!$E$7:$E$18)-COUNT($K$7:$K$18)),0) -> 0 | W18: =IF(F18="Rainwater harvesting",((References!$E$2*X18)*7.48),"") ->  | X18: 0 | Y18: 0 | AA18: 0 | AB18: 0 | AE18: =IF(D18="Tree Planting and Preservation",AD18,IF(OR(D18="",F18="",SUM(H18:K18)=0),0,IFERROR(IF(AD18>1,MIN(AD18,Y18),MIN((AD18*Y18),(1.7/12*(M18*References!$B$16+O18*References!$B$17+Q18*References!$B$18+S18*References!$B$18)))),"0.0"))) -> 0 | AG18: =IFERROR(AE18*7.48,"") -> 0
G19: BMP CDA Total | H19: =SUM(H7:H18) -> 0 | I19: =SUM(I7:I18) -> 0 | J19: 0 | K19: 0 | AE19: Total Rv (gal): | AG19: =IF(AND(SUM(AG7:AG18)=0,(COUNTA(D7:D18)+COUNTA(F7:F18)=0)),AG20,(SUM(AG7:AG18))) -> 0 | AL19: =COUNTIF(AL7:AL18,1) -> 0
G20: =IF(Activity="Voluntary","Project Area",IF(Activity="Regulated","Project LOD","")) -> Project Area | H20: =Background!E22 -> 0 | I20: =Background!F22 -> 0 | J20: =Background!G22 -> 0 | K20: =Background!H22 -> 0 | U20: =IF(SUM(CDA)<Background!I22,"*Project has unmanaged area","") ->  | AG20: =((1.7/12*(Background!E22*0.05+Background!F22*0.25+Background!G22*0.95+Background!H22*0.95)*7.48)) -> 0
H21: =IF(U23=1,"Natural area CDA exceeds post-project land cover information.",IF(U23=1.1,"Compacted area CDA exceeds post-project land cover information.",IF(U23=1.3,"Impervious area CDA exceeds post-project land cover information.",IF(U23=1.5,"BMP area CDA exceeds post-project land cover information.",IF(U23=2.1,"Natural and compacted area CDAs exceed post-project land cover information.",IF(U23=2.3,"Natural and impervious area CDAs exceed post-project land cover information.",IF(U23=2.5,"Natural and BMP area CDAs exceed post-project land cover information.",IF(U23=2.4,"Compcated and impervious area CDAs exceed post-project land cover information.",IF(U23=2.6,"Compacted and BMP area CDAs exceed post-project land cover information.",IF(U23=2.8,"Impervious and BMP area CDAs exceed post-project land cover information.",IF(U23=3.4,"Natural, compacted and impervious area CDAs exceed post-project land cover information.",IF(U23=3.6,"Natural, compacted, and BMP area CDAs exceed post-project land cover information.",IF(U23=3.8,"Natural, impervious, and BMP area CDAs exceed post-project land cover information.",IF(U23=3.9,"Compacted, impervious, and BMP area CDAs exceed post-project land cover information.",IF(U23=4.9,"All land cover areas CDAs exceed post-project land cover information.",IF(AND(Activity="Regulated",SUM(CDA)>Background!I22),"BMP(s) have CDA outside of the LOD","")))))))))))))))) ->  | L21: =IF(AND(Activity="Voluntary",Post>0,SUM(L7:L18)>Background!I22),1,"") ->  | M21: =IF(AND(Activity="Voluntary",Post>0,SUM(M7:M18)>Background!J22),1,"") ->  | N21: =IF(AND(Activity="Voluntary",Post>0,SUM(N7:N18)>Background!K22),1,"") ->  | O21: =IF(AND(Activity="Voluntary",Post>0,SUM(O7:O18)>Background!L22),1,"") ->  | P21: =IF(AND(Activity="Voluntary",Post>0,SUM(P7:P18)>Background!M22),1,"") ->  | Q21: =IF(AND(Activity="Voluntary",Post>0,SUM(Q7:Q18)>Background!N22),1,"") ->  | R21: =IF(AND(Activity="Voluntary",Post>0,SUM(R7:R18)>Background!O22),1,"") ->  | S21: =IF(AND(Activity="Voluntary",Post>0,SUM(S7:S18)>Background!P22),1,"") ->  | T21: =IF(AND(Activity="Voluntary",Post>0,SUM(T7:T18)>Background!Q22),1,"") -> 
C22: Return to Overview | AE22: =IF(Activity="Voluntary",HYPERLINK("#1!e5","Go Back"),HYPERLINK("#2!e5","Go Back")) -> Go Back | AG22: =IF(AND(COUNTA(D7:E7)>0,COUNTA(F7:G7)=0),HYPERLINK("#'BMP Design'!f7:g7","Continue"),IF(AND(COUNTA(D8:E8)>0,COUNTA(F8:G8)=0),HYPERLINK("#'BMP Design'!f8:g8","Continue"),IF(AND(COUNTA(D9:E9)>0,COUNTA(F9:G9)=0),HYPERLINK("#'BMP Design'!f9:g9","Continue"),IF(AND(COUNTA(D10:E10)>0,COUNTA(F10:G10)=0),HYPERLINK("#'BMP Design'!f10:g10","Continue"),IF(AND(COUNTA(D11:E11)>0,COUNTA(F11:G11)=0),HYPERLINK("#'BMP Design'!f11:g11","Continue"),IF(AND(COUNTA(D12:E12)>0,COUNTA(F12:G12)=0),HYPERLINK("#'BMP Design'!f12:g12","Continue"),IF(AND(COUNTA(D13:E13)>0,COUNTA(F13:G13)=0),HYPERLINK("#'BMP Design'!f13:g13","Continue"),IF(AND(COUNTA(D14:E14)>0,COUNTA(F14:G14)=0),HYPERLINK("#'BMP Design'!f14:g14","Continue"),IF(AND(COUNTA(D15:E15)>0,COUNTA(F15:G15)=0),HYPERLINK("#'BMP Design'!f15:g15","Continue"),IF(AND(COUNTA(D16:E16)>0,COUNTA(F16:G16)=0),HYPERLINK("#'BMP Design'!f16:g16","Continue"),IF(AND(COUNTA(D17:E17)>0,COUNTA(F17:G17)=0),HYPERLINK("#'BMP Design'!f17:g17","Continue"),IF(AND(COUNTA(D18:E18)>0,COUNTA(F18:G18)=0),HYPERLINK("#'BMP Design'!f18:g18","Continue"),IF(AND(COUNTA(D7:G7)>1,SUM(H7:K7)=0),HYPERLINK("#'BMP Design'!H7:K7","Continue"),IF(AND(COUNTA(D8:G8)>1,SUM(H8:K8)=0),HYPERLINK("#'BMP Design'!H8:K8","Continue"),IF(AND(COUNTA(D9:G9)>1,SUM(H9:K9)=0),HYPERLINK("#'BMP Design'!H9:K9","Continue"),IF(AND(COUNTA(D10:G10)>1,SUM(H10:K10)=0),HYPERLINK("#'BMP Design'!H10:K10","Continue"),IF(AND(COUNTA(D11:G11)>1,SUM(H11:K11)=0),HYPERLINK("#'BMP Design'!H11:K11","Continue"),IF(AND(COUNTA(D12:G12)>1,SUM(H12:K12)=0),HYPERLINK("#'BMP Design'!H12:K12","Continue"),IF(AND(COUNTA(D13:G13)>1,SUM(H13:K13)=0),HYPERLINK("#'BMP Design'!H13:K13","Continue"),IF(AND(COUNTA(D14:G14)>1,SUM(H14:K14)=0),HYPERLINK("#'BMP Design'!H14:K14","Continue"),IF(AND(COUNTA(D15:G15)>1,SUM(H15:K15)=0),HYPERLINK("#'BMP Design'!H15:K15","Continue"),IF(AND(COUNTA(D16:G16)>1,SUM(H16:K16)=0),HYPERLINK("#'BMP Design'!H16:K16","Continue"),IF(AND(COUNTA(D17:G17)>1,SUM(H17:K17)=0),HYPERLINK("#'BMP Design'!H17:K17","Continue"),IF(AND(COUNTA(D18:G18)>1,SUM(H18:K18)=0),HYPERLINK("#'BMP Design'!H18:K18","Continue"),IF(AND(Activity="Voluntary",H19>H20),HYPERLINK("#'BMP Design'!H19","Continue"),IF(AND(Activity="Voluntary",I19>I20),HYPERLINK("#'BMP Design'!i19","Continue"),IF(AND(Activity="Voluntary",J19>J20),HYPERLINK("#'BMP Design'!j19","Continue"),IF(AND(Activity="Voluntary",K19>K20),HYPERLINK("#'BMP Design'!k19","Continue"),IF(AND(G24=0,SUM(H19:K19)>0),HYPERLINK("#'BMP Design'!d7:g18","Continue"),IF(AND(H24=0,AL19=0),HYPERLINK("#'Financial Input'!h8","Continue"),HYPERLINK("#'BMP Design'!d7:g18","Continue"))))))))))))))))))))))))))))))) -> Continue
H23: =IF(AND(Activity="Voluntary",Post>0,SUM(H7:H18)>Background!E22),1,"") ->  | I23: =IF(AND(Activity="Voluntary",Post>0,SUM(I7:I18)>Background!F22),1.1,"") ->  | J23: =IF(AND(Activity="Voluntary",Post>0,SUM(J7:J18)>Background!G22),1.3,"") ->  | K23: =IF(AND(Activity="Voluntary",Post>0,SUM(K7:K18)>Background!H22),1.5,"") ->  | U23: =SUM(H23:K23) -> 0
D24: =COUNTA(D7:D18) -> 0 | F24: =COUNTA(F7:F18) -> 0 | G24: =D24+F24 -> 0 | H24: =D24-F24 -> 0
D25: =COUNTIF($D$7:$D$18,"Tree Planting and Preservation")>0 -> FALSE
D26: =COUNTIF($D$7:$D$18,"Impervious Surface Disconnection")>0 -> FALSE | H26: =IF(U21=1,"Natural area CDA exceeds post-project land cover information.",IF(U21=1.1,"Compacted area CDA exceeds post-project land cover information.",IF(U21=1.3,"Impervious area CDA exceeds post-project land cover information.",IF(U21=1.5,"BMP area CDA exceeds post-project land cover information.",IF(U21=2.1,"Natural and compacted area CDAs exceed post-project land cover information.",IF(U21=2.3,"Natural and impervious area CDAs exceed post-project land cover information.",IF(U21=2.5,"Natural and BMP area CDAs exceed post-project land cover information.",IF(U21=2.4,"Compcated and impervious area CDAs exceed post-project land cover information.",IF(U21=2.6,"Compacted and BMP area CDAs exceed post-project land cover information.",IF(U21=2.8,"Impervious and BM area CDAs exceed post-project land cover information.",IF(U21=3.4,"Natural, compacted and impervious area CDAs exceed post-project land cover information.",IF(U21=3.6,"Natural, compacted, and BMP area CDAs exceed post-project land cover information.",IF(U21=3.8,"Natural, impervious, and BMP area CDAs exceed post-project land cover information.",IF(U21=3.9,"Compacted, impervious, and BMP area CDAs exceed post-project land cover information.",IF(U21=4.9,"All land cover area CDAs exceed post-project land cover information.",""))))))))))))))) -> 

Sheet Financial Input
C3: Enter SRC Project Costs If financial information is unavailable for a line item, leave the user input blank to use an assumed or calculated value. | L3: Enter SRC Project Revenue8
L4: =IF(AND(Activity="Voluntary",Price_AWDZ="Yes"),"For the first 12 years, prices below are set according the current rates in DOEE's SRC Price Lock Program and inflation adjusted thereafter. Alternativey, the User may input their own sale price.","To claculate a possible Return on Investment, enter a SRC Sale Price for the first year. Prices will be inflation adjusted thereafter.") -> To claculate a possible Return on Investment, enter a SRC Sale Price for the first year. Prices will be inflation adjusted thereafter.
L5: =IF(I8<30,"*BMP Life Cycle beyond the Investment Period is shown in gold.","") -> *BMP Life Cycle beyond the Investment Period is shown in gold.
C6: Type of Project: | F6: =IF(Background!I5="MLD","Major Land Disturbing",IF(Background!I5="MSI","Major Substantial Improvement",IF(Background!I5="Voluntary","Voluntary Retrofit",""))) -> Voluntary Retrofit | L6: Years 1-15 | O6: Years 16-30
C7: Project Cost Data | F7: Default Value | H7: User Input | I7: Used in Calcs | L7: Project Revenue Data | O7: Default Value | Q7: User Input
C8: Investment Period - Years 1 | F8: 12 | I8: =IF(ISBLANK(H8),F8,H8) -> 12 | L8: Inflation Rate of SRC Prices - Annual | O8: 0.0191 | R8: =IF(ISBLANK(Q8),O8,Q8) -> 0.0191
C9: Type of DC Water Customer 2 | F9: Commercial | I9: =IF(ISBLANK(H9),F9,H9) -> Commercial | L9: Year | M9: Calculated SRC Price | N9: User Input SRC Price | O9: Year | P9: Calculated SRC Price | Q9: User Input SRC Price
C10: BMP Installation Cost 3 | F10: =IF(ISBLANK('BMP Design'!D7),(References!I42*Background!H22),References!K40) -> 0 | I10: 0
C11: Other Project Costs (e.g., land lease/purchase or personnel hours) | F11: 0 | I11: 0 | K11: =IF(ISBLANK(N11),M11,N11) -> 0 | L11: 1 | M11: =IF(AND(Price_Lock="Yes",MS4_MLD="MS4 Tidal",'Financial Input'!L11<=6),References!$L$25,IF(AND(Price_Lock="Yes",MS4_MLD="MS4 Non-Tidal",'Financial Input'!L11<=6),References!$L$26,0)) -> 0 | O11: 16 | P11: =K25*(1+$R$8) -> 0 | R11: =IF(ISBLANK(Q11),P11,Q11) -> 0
C12: Stormwater Management Plan (SWMP) Review Fees $ 4,5 | F12: Calculated based on the Project Information | H12: =IF(F6="",0,IF(AND(F6="Voluntary Retrofit",BMPCOUNT=1,BMPGRCHECK="Green Roof",Background!H22>=10000),VSWMPInitial2+VSWMPFinal2,IF(AND(F6="Voluntary Retrofit",BMPCOUNT=1,BMPGRCHECK="Green Roof",Background!H22<10000),VSWMPInitial1+VSWMPFinal1,IF(AND(F6="Voluntary Retrofit",Background!H22>=10000),(VSWMPInitial2+VSWMPFinal2+ESCInitial2+ESCFinal2),IF(AND(F6="Voluntary Retrofit",Background!H22<10000),(VSWMPInitial1+VSWMPFinal1)+IF(Background!H22<=5000,ESCInitial1+ESCFinal1,ESCInitial2+ESCFinal2),IF(Background!H22>=10000,(RSWMPInitial2+RSWMPFinal2+IF(Background!H22>=5000,ESCInitial2+ESCFinal2)),(RSWMPInitial1+RSWMPFinal1+IF(Background!H22<=5000,ESCInitial1+ESCFinal1)))))))) -> 1694.3 | I12: =H12 -> 1694.3 | K12: =IF(ISBLANK(N12),M12,N12) -> 0 | L12: 2 | M12: =IF(AND(Price_Lock="Yes",MS4_MLD="MS4 Tidal",'Financial Input'!L12<=6),References!$L$25,IF(AND(Price_Lock="Yes",MS4_MLD="MS4 Non-Tidal",'Financial Input'!L12<=6),References!$L$26,K11*(1+$R$8))) -> 0 | O12: 17 | P12: =R11*(1+$R$8) -> 0 | R12: =IF(ISBLANK(Q12),P12,Q12) -> 0
C13: Cost of Engineering Services 6 | F13: =I10*Costs!D118 -> 0 | I13: =IF(ISBLANK(H13),F13,H13) -> 0 | K13: 0 | L13: 3 | M13: =IF(AND(Price_Lock="Yes",MS4_MLD="MS4 Tidal",'Financial Input'!L13<=6),References!$L$25,IF(AND(Price_Lock="Yes",MS4_MLD="MS4 Non-Tidal",'Financial Input'!L13<=6),References!$L$26,K12*(1+$R$8))) -> 0 | O13: 18 | P13: 0 | R13: 0
C14: Total Capital Costs Please select (% or $) | E14: Percentage | F14: The Sum of the Individual Capital Costs | H14: =I14 -> 1694.3 | I14: =SUM(I10:I13) -> 1694.3 | K14: 0 | L14: 4 | M14: =IF(AND(Price_Lock="Yes",MS4_MLD="MS4 Tidal",'Financial Input'!L14<=6),References!$L$25,IF(AND(Price_Lock="Yes",MS4_MLD="MS4 Non-Tidal",'Financial Input'!L14<=6),References!$L$26,K13*(1+$R$8))) -> 0 | O14: 19 | P14: 0 | R14: 0
C15: =IF(E14="Percentage"," % Borrowed Capital"," $ Borrowed Capital") -> % Borrowed Capital | D15: =IF(E14="Percentage", "For percents, please enter a decimal (e.g. 90%=0.9) ","") -> For percents, please enter a decimal (e.g. 90%=0.9) | F15: =IF(E14="Percentage",1-H17,H14-H17) -> 1 | I15: =IF(E14="Dollars",H25,F25*H14) -> 1694.3 | K15: 0 | L15: 5 | M15: =IF(AND(Price_Lock="Yes",MS4_MLD="MS4 Tidal",'Financial Input'!L15<=6),References!$L$25,IF(AND(Price_Lock="Yes",MS4_MLD="MS4 Non-Tidal",'Financial Input'!L15<=6),References!$L$26,K14*(1+$R$8))) -> 0 | O15: 20 | P15: 0 | R15: 0
C16: =IF(E14="Percentage"," % Out-of-Pocket"," $ Out-of-Pocket") -> % Out-of-Pocket | F16: =IF(E14="Percentage","Remaining Percentage of Capital Costs","Remaining Portion of Capital Costs") -> Remaining Percentage of Capital Costs | H16: =IF(E14="Dollars",H14-SUM(H25,H17),1-SUM(F25,H17)) -> 0 | I16: =IF(E14="Dollars",H16,H16*$H$14) -> 0 | K16: 0 | L16: 6 | M16: =IF(AND(Price_Lock="Yes",MS4_MLD="MS4 Tidal",'Financial Input'!L16<=6),References!$L$25,IF(AND(Price_Lock="Yes",MS4_MLD="MS4 Non-Tidal",'Financial Input'!L16<=6),References!$L$26,K15*(1+$R$8))) -> 0 | O16: 21 | P16: 0 | R16: 0
C17: =IF(E14="Percentage"," % District Government Contribution to Capital Cost"," $ District Government Contribution to Capital Cost") -> % District Government Contribution to Capital Cost | F17: User Input from Project Overview | H17: =IF(E14="Dollars",DC_Money,DC_Money/'Financial Input'!H14) -> 0 | I17: =IF(E14="Dollars",H17,H17*$H$14) -> 0 | K17: 0 | L17: 7 | M17: =IF(AND(Price_Lock="Yes",MS4_MLD="MS4 Tidal",'Financial Input'!L17<=12),References!$M$25,IF(AND(Price_Lock="Yes",MS4_MLD="MS4 Non-Tidal",'Financial Input'!L17<=12),References!$M$26,K16*(1+$R$8))) -> 0 | O17: 22 | P17: 0 | R17: 0
C18: Interest Rate on Loan for Capital Cost 7 | F18: 0.0625 | I18: =IF(ISBLANK(H18),F18,H18) -> 0.0625 | K18: 0 | L18: 8 | M18: =IF(AND(Price_Lock="Yes",MS4_MLD="MS4 Tidal",'Financial Input'!L18<=12),References!$M$25,IF(AND(Price_Lock="Yes",MS4_MLD="MS4 Non-Tidal",'Financial Input'!L18<=12),References!$M$26,K17*(1+$R$8))) -> 0 | O18: 23 | P18: 0 | R18: 0
C19: Loan Repayment Period - Years | F19: 6 | I19: =IF(ISBLANK(H19),F19,H19) -> 6 | K19: 0 | L19: 9 | M19: =IF(AND(Price_Lock="Yes",MS4_MLD="MS4 Tidal",'Financial Input'!L19<=12),References!$M$25,IF(AND(Price_Lock="Yes",MS4_MLD="MS4 Non-Tidal",'Financial Input'!L19<=12),References!$M$26,K18*(1+$R$8))) -> 0 | O19: 24 | P19: 0 | R19: 0
C20: Total Annual Maintenance Cost 3 | F20: =2*Background!H22 -> 0 | I20: 0 | K20: 0 | L20: 10 | M20: =IF(AND(Price_Lock="Yes",MS4_MLD="MS4 Tidal",'Financial Input'!L20<=12),References!$M$25,IF(AND(Price_Lock="Yes",MS4_MLD="MS4 Non-Tidal",'Financial Input'!L20<=12),References!$M$26,K19*(1+$R$8))) -> 0 | O20: 25 | P20: 0 | R20: 0
C21: Other Annual Costs | F21: =2*Background!H23 -> 0 | I21: 0 | K21: 0 | L21: 11 | M21: =IF(AND(Price_Lock="Yes",MS4_MLD="MS4 Tidal",'Financial Input'!L21<=12),References!$M$25,IF(AND(Price_Lock="Yes",MS4_MLD="MS4 Non-Tidal",'Financial Input'!L21<=12),References!$M$26,K20*(1+$R$8))) -> 0 | O21: 26 | P21: 0 | R21: 0
C22: =IF(I19>I8,"*Loan Repayment Period cannot exceed Investment Period","") ->  | K22: 0 | L22: 12 | M22: =IF(AND(Price_Lock="Yes",MS4_MLD="MS4 Tidal",'Financial Input'!L22<=12),References!$M$25,IF(AND(Price_Lock="Yes",MS4_MLD="MS4 Non-Tidal",'Financial Input'!L22<=12),References!$M$26,K21*(1+$R$8))) -> 0 | O22: 27 | P22: 0 | R22: 0
C23: Return to Overview | F23: Go Back | H23: =IF(AND(I19>=I8,H15>0),HYPERLINK("#'Financial Summary'!i19","Continue"),HYPERLINK("#'Financial Summary'!e10","Continue")) -> Continue | K23: 0 | L23: 13 | M23: =K22*(1+$R$8) -> 0 | O23: 28 | P23: 0 | R23: 0
K24: 0 | L24: 14 | M24: =K23*(1+$R$8) -> 0 | O24: 29 | P24: 0 | R24: 0
C25: Visit SRC Registry | F25: =IF(ISBLANK(H15),F15,H15) -> 1 | H25: =IF(ISBLANK(H15),F15,H15) -> 1 | K25: 0 | L25: 15 | M25: =K24*(1+$R$8) -> 0 | O25: 30 | P25: 0 | R25: 0
C28: 1 Projects may continue to generate SRCs after the investment period, as long as they continue to meet eligibility requirements.
C29: 2 DC Water uses aerial imagery to determine the number of Equivalent Residential Units (ERUs) on each property in the District. One ERU equals 1,000 ft2 of impervious area. This tool calculates ERUs based on user input. Residential customers are assessed ERUs according to a six-tier rate structure (see www.dcwater.com/customercare/iab.cfm). | O29: =IF('Financial Input'!$I$8>=L23,IF(ISBLANK(N23),M23,N23),0) -> 0
C30: 3 BMP construction and maintenance costs were derived from averaging mid-to-high costs from cnt.org, Green Values Stormwater Management Calculator available at http://greenvalues.cnt.org/national/calculator.php
C31: 4 SWMP fees are calculated using the current DOEE Fee Rates and based on User defined project site information (does not include GAR fees)
C32: 5 DOEE offers discounted rates on SWMP fees for voluntary projects seeking SRC generation.
C33: 6 Engineering cost estimates were derived from "Architectural and Engineering Basic Services Fee Estimating Guidelines" (https://uminfopoint.umsystem.edu)
C34: 7 If the user does not enter an interest rate, the rate shall be set at Prime (4.0%) + 1.5. This was figure was established using average commercial construction loan rates over twenty financial institutions current rates. This information is available at: https://www.commercialloandirect.com/commercial-rates.php
C35: 8 Without participation in the SRC Price Lock Program, DOEE does not guarantee the sale or price of SRCs.

Sheet Financial Summary
C3: Financial Summary The values below were claculated using User inputs and default or assumed values. DOEE does not guarantee financial retrun, SRC eligibilty, or other results.
C4: Potential SRC Eligibility | E4: Annual | G4: Investment Period | I4: BMP Life Cycle Period
G5: ='Financial Input'!I8&" "&"Years" -> 12 Years | I5: 30 Years
E6: =IF(ROUND(('BMP Design'!AG19+IF(Background!I5="Voluntary",Background!H28,-Background!I28))-IF('1'!H9>0,Pre_BMP,0),0)<0,0,ROUND(('BMP Design'!AG19+IF(Background!I5="Voluntary",Background!H28,-Background!I28))-IF('1'!H9>0,Pre_BMP,0),0)) -> 0 | G6: =E6*'Financial Input'!I8 -> 0 | I6: =E6*30 -> 0
C8: Total Revenue | G8: ='Detailed Estimation'!F17 -> 0 | I8: ='Detailed Estimation'!G17 -> 0
C10: Net Cash Flow | G10: ='Detailed Estimation'!F19 -> -2036.16 | I10: ='Detailed Estimation'!G19 -> -2036.16 | M10: =IF(Background!G28="N/A",0,Background!G28) -> 0
C12: Return on Investment | G12: ='Detailed Estimation'!F20 -> -1 | I12: ='Detailed Estimation'!G20 -> -1
C15: Return to Overview | G15: Go Back | I15: Continue

Sheet Detailed Estimation
B2: Detailed Estimation DOEE does not guarantee financial retrun, SRC eligibilty, or other results.
H4: 1 | I4: 2 | J4: 3 | K4: 4 | L4: 5 | M4: 6 | N4: 7 | O4: 8 | P4: 9 | Q4: 10 | R4: 11 | S4: 12 | T4: 13 | U4: 14 | V4: 15 | W4: 16 | X4: 17 | Y4: 18 | Z4: 19 | AA4: 20 | AB4: 21 | AC4: 22 | AD4: 23 | AE4: 24 | AF4: 25 | AG4: 26 | AH4: 27 | AI4: 28 | AJ4: 29 | AK4: 30
F5: Total Over Investment Period | G5: Total Over BMP Life Cycle | H5: Year 1 | I5: Year 2 | J5: Year 3 | K5: Year 4 | L5: Year 5 | M5: Year 6 | N5: Year 7 | O5: Year 8 | P5: Year 9 | Q5: Year 10 | R5: Year 11 | S5: Year 12 | T5: Year 13 | U5: Year 14 | V5: Year 15 | W5: Year 16 | X5: Year 17 | Y5: Year 18 | Z5: Year 19 | AA5: Year 20 | AB5: Year 21 | AC5: Year 22 | AD5: Year 23 | AE5: Year 24 | AF5: Year 25 | AG5: Year 26 | AH5: Year 27 | AI5: Year 28 | AJ5: Year 29 | AK5: Year 30
C6: Out-of-Pocket Costsii | F6: =G6 -> 0 | G6: =H6 -> 0 | H6: =-'Financial Input'!I16 -> 0 | I6: =" " ->  | J6: =" " -> 
C7: Loan Repaymentii | F7: =SUM(H7:AK7) -> -2036.16 | G7: =SUM(H7:AAK7) -> -2036.16 | H7: =References!L20*-1 -> -339.36 | I7: =IF('Financial Input'!$I$19>=I4,(References!$L$20*-1)," ") -> -339.36 | J7: =IF('Financial Input'!$I$19>=J4,(References!$L$20*-1)," ") -> -339.36 | K7: =IF('Financial Input'!$I$19>=K4,(References!$L$20*-1)," ") -> -339.36 | L7: =IF('Financial Input'!$I$19>=L4,(References!$L$20*-1)," ") -> -339.36 | M7: =IF('Financial Input'!$I$19>=M4,(References!$L$20*-1)," ") -> -339.36 | N7: =IF('Financial Input'!$I$19>=N4,(References!$L$20*-1)," ") ->  | O7: =IF('Financial Input'!$I$19>=O4,(References!$L$20*-1)," ") ->  | P7: =IF('Financial Input'!$I$19>=P4,(References!$L$20*-1)," ") ->  | Q7: =IF('Financial Input'!$I$19>=Q4,(References!$L$20*-1)," ") ->  | R7: =IF('Financial Input'!$I$19>=R4,(References!$L$20*-1)," ") ->  | S7: =IF('Financial Input'!$I$19>=S4,(References!$L$20*-1)," ") ->  | T7: =IF('Financial Input'!$I$19>=T4,(References!$L$20*-1)," ") ->  | U7: =IF('Financial Input'!$I$19>=U4,(References!$L$20*-1)," ") ->  | V7: =IF('Financial Input'!$I$19>=V4,(References!$L$20*-1)," ") ->  | W7: =IF('Financial Input'!$I$19>=W4,(References!$L$20*-1)," ") ->  | X7: =IF('Financial Input'!$I$19>=X4,(References!$L$20*-1)," ") ->  | Y7: =IF('Financial Input'!$I$19>=Y4,(References!$L$20*-1)," ") ->  | Z7: =IF('Financial Input'!$I$19>=Z4,(References!$L$20*-1)," ") ->  | AA7: =IF('Financial Input'!$I$19>=AA4,(References!$L$20*-1)," ") ->  | AB7: =IF('Financial Input'!$I$19>=AB4,(References!$L$20*-1)," ") ->  | AC7: =IF('Financial Input'!$I$19>=AC4,(References!$L$20*-1)," ") ->  | AD7: =IF('Financial Input'!$I$19>=AD4,(References!$L$20*-1)," ") ->  | AE7: =IF('Financial Input'!$I$19>=AE4,(References!$L$20*-1)," ") ->  | AF7: =IF('Financial Input'!$I$19>=AF4,(References!$L$20*-1)," ") ->  | AG7: =IF('Financial Input'!$I$19>=AG4,(References!$L$20*-1)," ") ->  | AH7: =IF('Financial Input'!$I$19>=AH4,(References!$L$20*-1)," ") ->  | AI7: =IF('Financial Input'!$I$19>=AI4,(References!$L$20*-1)," ") ->  | AJ7: =IF('Financial Input'!$I$19>=AJ4,(References!$L$20*-1)," ") ->  | AK7: =IF('Financial Input'!$I$19>=AK4,(References!$L$20*-1)," ") -> 
C8: Maintenance Costii | F8: =SUMIF(H4:AK4,"<="&'Financial Input'!I8,H8:AK8) -> 0 | G8: =SUM(H8:AAK8) -> 0 | H8: ='Financial Input'!$I$20*-1 -> 0 | I8: =(((H8*-1)*(1+'Financial Input'!$R$8))*-1) -> 0 | J8: =(((I8*-1)*(1+'Financial Input'!$R$8))*-1) -> 0 | K8: =(((J8*-1)*(1+'Financial Input'!$R$8))*-1) -> 0 | L8: =(((K8*-1)*(1+'Financial Input'!$R$8))*-1) -> 0 | M8: =(((L8*-1)*(1+'Financial Input'!$R$8))*-1) -> 0 | N8: =(((M8*-1)*(1+'Financial Input'!$R$8))*-1) -> 0 | O8: =(((N8*-1)*(1+'Financial Input'!$R$8))*-1) -> 0 | P8: =(((O8*-1)*(1+'Financial Input'!$R$8))*-1) -> 0 | Q8: =(((P8*-1)*(1+'Financial Input'!$R$8))*-1) -> 0 | R8: =(((Q8*-1)*(1+'Financial Input'!$R$8))*-1) -> 0 | S8: =(((R8*-1)*(1+'Financial Input'!$R$8))*-1) -> 0 | T8: =(((S8*-1)*(1+'Financial Input'!$R$8))*-1) -> 0 | U8: =(((T8*-1)*(1+'Financial Input'!$R$8))*-1) -> 0 | V8: =(((U8*-1)*(1+'Financial Input'!$R$8))*-1) -> 0 | W8: =(((V8*-1)*(1+'Financial Input'!$R$8))*-1) -> 0 | X8: =(((W8*-1)*(1+'Financial Input'!$R$8))*-1) -> 0 | Y8: =(((X8*-1)*(1+'Financial Input'!$R$8))*-1) -> 0 | Z8: =(((Y8*-1)*(1+'Financial Input'!$R$8))*-1) -> 0 | AA8: =(((Z8*-1)*(1+'Financial Input'!$R$8))*-1) -> 0 | AB8: =(((AA8*-1)*(1+'Financial Input'!$R$8))*-1) -> 0 | AC8: =(((AB8*-1)*(1+'Financial Input'!$R$8))*-1) -> 0 | AD8: =(((AC8*-1)*(1+'Financial Input'!$R$8))*-1) -> 0 | AE8: =(((AD8*-1)*(1+'Financial Input'!$R$8))*-1) -> 0 | AF8: =(((AE8*-1)*(1+'Financial Input'!$R$8))*-1) -> 0 | AG8: =(((AF8*-1)*(1+'Financial Input'!$R$8))*-1) -> 0 | AH8: =(((AG8*-1)*(1+'Financial Input'!$R$8))*-1) -> 0 | AI8: =(((AH8*-1)*(1+'Financial Input'!$R$8))*-1) -> 0 | AJ8: =(((AI8*-1)*(1+'Financial Input'!$R$8))*-1) -> 0 | AK8: =(((AJ8*-1)*(1+'Financial Input'!$R$8))*-1) -> 0
C9: Other Annual Costsii | F9: =SUMIF(H4:AK4,"<="&'Financial Input'!I8,H9:AK9) -> 0 | G9: 0 | H9: ='Financial Input'!$I$21*-1 -> 0 | I9: =(((H9*-1)*(1+'Financial Input'!$R$8))*-1) -> 0 | J9: =(((I9*-1)*(1+'Financial Input'!$R$8))*-1) -> 0 | K9: =(((J9*-1)*(1+'Financial Input'!$R$8))*-1) -> 0 | L9: =(((K9*-1)*(1+'Financial Input'!$R$8))*-1) -> 0 | M9: =(((L9*-1)*(1+'Financial Input'!$R$8))*-1) -> 0 | N9: =(((M9*-1)*(1+'Financial Input'!$R$8))*-1) -> 0 | O9: =(((N9*-1)*(1+'Financial Input'!$R$8))*-1) -> 0 | P9: =(((O9*-1)*(1+'Financial Input'!$R$8))*-1) -> 0 | Q9: =(((P9*-1)*(1+'Financial Input'!$R$8))*-1) -> 0 | R9: =(((Q9*-1)*(1+'Financial Input'!$R$8))*-1) -> 0 | S9: =(((R9*-1)*(1+'Financial Input'!$R$8))*-1) -> 0 | T9: =(((S9*-1)*(1+'Financial Input'!$R$8))*-1) -> 0 | U9: =(((T9*-1)*(1+'Financial Input'!$R$8))*-1) -> 0 | V9: =(((U9*-1)*(1+'Financial Input'!$R$8))*-1) -> 0 | W9: =(((V9*-1)*(1+'Financial Input'!$R$8))*-1) -> 0 | X9: =(((W9*-1)*(1+'Financial Input'!$R$8))*-1) -> 0 | Y9: =(((X9*-1)*(1+'Financial Input'!$R$8))*-1) -> 0 | Z9: =(((Y9*-1)*(1+'Financial Input'!$R$8))*-1) -> 0 | AA9: =(((Z9*-1)*(1+'Financial Input'!$R$8))*-1) -> 0 | AB9: =(((AA9*-1)*(1+'Financial Input'!$R$8))*-1) -> 0 | AC9: =(((AB9*-1)*(1+'Financial Input'!$R$8))*-1) -> 0 | AD9: =(((AC9*-1)*(1+'Financial Input'!$R$8))*-1) -> 0 | AE9: =(((AD9*-1)*(1+'Financial Input'!$R$8))*-1) -> 0 | AF9: =(((AE9*-1)*(1+'Financial Input'!$R$8))*-1) -> 0 | AG9: =(((AF9*-1)*(1+'Financial Input'!$R$8))*-1) -> 0 | AH9: =(((AG9*-1)*(1+'Financial Input'!$R$8))*-1) -> 0 | AI9: =(((AH9*-1)*(1+'Financial Input'!$R$8))*-1) -> 0 | AJ9: =(((AI9*-1)*(1+'Financial Input'!$R$8))*-1) -> 0 | AK9: =(((AJ9*-1)*(1+'Financial Input'!$R$8))*-1) -> 0
C10: Total Costii | F10: =SUM(F6:F9) -> -2036.16 | G10: =SUM(G6:G9) -> -2036.16 | H10: =SUM(H6:H8) -> -339.36 | I10: =SUM(I6:I8) -> -339.36 | J10: -339.36 | K10: -339.36 | L10: -339.36 | M10: -339.36 | N10: 0 | O10: 0 | P10: 0 | Q10: 0 | R10: 0 | S10: 0 | T10: 0 | U10: 0 | V10: 0 | W10: 0 | X10: 0 | Y10: 0 | Z10: 0 | AA10: 0 | AB10: =SUM(AB6:AB8) -> 0 | AC10: 0 | AD10: 0 | AE10: 0 | AF10: 0 | AG10: 0 | AH10: 0 | AI10: 0 | AJ10: 0 | AK10: 0
C12: SRC Price | H12: ='Financial Input'!K11 -> 0 | I12: ='Financial Input'!$K12 -> 0 | J12: ='Financial Input'!$K13 -> 0 | K12: ='Financial Input'!$K14 -> 0 | L12: ='Financial Input'!$K15 -> 0 | M12: ='Financial Input'!$K16 -> 0 | N12: ='Financial Input'!$K17 -> 0 | O12: ='Financial Input'!$K18 -> 0 | P12: ='Financial Input'!$K19 -> 0 | Q12: ='Financial Input'!$K20 -> 0 | R12: ='Financial Input'!$K21 -> 0 | S12: ='Financial Input'!$K22 -> 0 | T12: ='Financial Input'!$K23 -> 0 | U12: ='Financial Input'!$K24 -> 0 | V12: ='Financial Input'!$K25 -> 0 | W12: ='Financial Input'!R11 -> 0 | X12: ='Financial Input'!$R12 -> 0 | Y12: ='Financial Input'!$R13 -> 0 | Z12: ='Financial Input'!$R14 -> 0 | AA12: ='Financial Input'!$R15 -> 0 | AB12: ='Financial Input'!$R16 -> 0 | AC12: ='Financial Input'!$R17 -> 0 | AD12: ='Financial Input'!$R18 -> 0 | AE12: ='Financial Input'!$R19 -> 0 | AF12: ='Financial Input'!$R20 -> 0 | AG12: ='Financial Input'!$R21 -> 0 | AH12: ='Financial Input'!$R22 -> 0 | AI12: ='Financial Input'!$R23 -> 0 | AJ12: ='Financial Input'!$R24 -> 0 | AK12: ='Financial Input'!$R25 -> 0
C13: Value of SRCsii | F13: =SUMIF($H$4:$AK$4,"<="&'Financial Input'!$I$8,H13:AK13) -> 0 | G13: =SUM(H13:AK13) -> 0 | H13: =IF(References!C59>0,References!$B$51*H12,References!C56) -> 0 | I13: =IF(References!C59>0,References!$B$51*I12,References!D56) -> 0 | J13: =IF(References!D59>0,References!$B$51*J12,References!E56) -> 0 | K13: =IF(References!E59>0,References!$B$51*K12,References!F56) -> 0 | L13: =IF(References!F59>0,References!$B$51*L12,References!G56) -> 0 | M13: =IF(References!G59>0,References!$B$51*M12,References!H56) -> 0 | N13: =IF(References!H59>0,References!$B$51*N12,References!I56) -> 0 | O13: =IF(References!I59>0,References!$B$51*O12,References!J56) -> 0 | P13: =IF(References!J59>0,References!$B$51*P12,References!K56) -> 0 | Q13: =IF(References!K59>0,References!$B$51*Q12,References!L56) -> 0 | R13: =IF(References!L59>0,References!$B$51*R12,References!M56) -> 0 | S13: =IF(References!M59>0,References!$B$51*S12,References!N56) -> 0 | T13: =IF(References!N59>0,References!$B$51*T12,References!O56) -> 0 | U13: =IF(References!O59>0,References!$B$51*U12,References!P56) -> 0 | V13: =IF(References!P59>0,References!$B$51*V12,References!Q56) -> 0 | W13: =IF(References!Q59>0,References!$B$51*W12,References!R56) -> 0 | X13: =IF(References!R59>0,References!$B$51*X12,References!S56) -> 0 | Y13: =IF(References!S59>0,References!$B$51*Y12,References!T56) -> 0 | Z13: =IF(References!T59>0,References!$B$51*Z12,References!U56) -> 0 | AA13: =IF(References!U59>0,References!$B$51*AA12,References!V56) -> 0 | AB13: =IF(References!V59>0,References!$B$51*AB12,References!W56) -> 0 | AC13: =IF(References!W59>0,References!$B$51*AC12,References!X56) -> 0 | AD13: =IF(References!X59>0,References!$B$51*AD12,References!Y56) -> 0 | AE13: =IF(References!Y59>0,References!$B$51*AE12,References!Z56) -> 0 | AF13: =IF(References!Z59>0,References!$B$51*AF12,References!AA56) -> 0 | AG13: =IF(References!AA59>0,References!$B$51*AG12,References!AB56) -> 0 | AH13: =IF(References!AB59>0,References!$B$51*AH12,References!AC56) -> 0 | AI13: =IF(References!AC59>0,References!$B$51*AI12,References!AD56) -> 0 | AJ13: =IF(References!AD59>0,References!$B$51*AJ12,References!AE56) -> 0 | AK13: =IF(References!AE59>0,References!$B$51*AK12,References!AF56) -> 0
C14: Discount on Impervious Area Charge 9 | F14: =SUMIF($H$4:$AK$4,"<="&'Financial Input'!$I$8,H14:AK14) -> 0 | G14: =SUM(H14:AK14) -> 0 | H14: =IF('Financial Input'!$I$8>=1,(References!C54*-1*References!$B$46/1.2*1.2),0) -> 0 | I14: =IF('Financial Input'!$I$8>=1,(References!D54*-1*References!$B$46/1.2*1.2),0) -> 0 | J14: =IF('Financial Input'!$I$8>=1,(References!E54*-1*References!$B$46/1.2*1.2),0) -> 0 | K14: =IF('Financial Input'!$I$8>=1,(References!F54*-1*References!$B$46/1.2*1.2),0) -> 0 | L14: =IF('Financial Input'!$I$8>=1,(References!G54*-1*References!$B$46/1.2*1.2),0) -> 0 | M14: =IF('Financial Input'!$I$8>=1,(References!H54*-1*References!$B$46/1.2*1.2),0) -> 0 | N14: =IF('Financial Input'!$I$8>=1,(References!I54*-1*References!$B$46/1.2*1.2),0) -> 0 | O14: =IF('Financial Input'!$I$8>=1,(References!J54*-1*References!$B$46/1.2*1.2),0) -> 0 | P14: =IF('Financial Input'!$I$8>=1,(References!K54*-1*References!$B$46/1.2*1.2),0) -> 0 | Q14: =IF('Financial Input'!$I$8>=1,(References!L54*-1*References!$B$46/1.2*1.2),0) -> 0 | R14: =IF('Financial Input'!$I$8>=1,(References!M54*-1*References!$B$46/1.2*1.2),0) -> 0 | S14: =IF('Financial Input'!$I$8>=1,(References!N54*-1*References!$B$46/1.2*1.2),0) -> 0 | T14: =References!O54*-1*References!$B$46/1.2*1.2 -> 0 | U14: =IF('Financial Input'!$I$8>=1,(References!P54*-1*References!$B$46/1.2*1.2),0) -> 0 | V14: =IF('Financial Input'!$I$8>=1,(References!Q54*-1*References!$B$46/1.2*1.2),0) -> 0 | W14: =IF('Financial Input'!$I$8>=1,(References!R54*-1*References!$B$46/1.2*1.2),0) -> 0 | X14: =IF('Financial Input'!$I$8>=1,(References!S54*-1*References!$B$46/1.2*1.2),0) -> 0 | Y14: =IF('Financial Input'!$I$8>=1,(References!T54*-1*References!$B$46/1.2*1.2),0) -> 0 | Z14: =IF('Financial Input'!$I$8>=1,(References!U54*-1*References!$B$46/1.2*1.2),0) -> 0 | AA14: =IF('Financial Input'!$I$8>=1,(References!V54*-1*References!$B$46/1.2*1.2),0) -> 0 | AB14: =IF('Financial Input'!$I$8>=1,(References!W54*-1*References!$B$46/1.2*1.2),0) -> 0 | AC14: =IF('Financial Input'!$I$8>=1,(References!X54*-1*References!$B$46/1.2*1.2),0) -> 0 | AD14: =IF('Financial Input'!$I$8>=1,(References!Y54*-1*References!$B$46/1.2*1.2),0) -> 0 | AE14: =IF('Financial Input'!$I$8>=1,(References!Z54*-1*References!$B$46/1.2*1.2),0) -> 0 | AF14: =IF('Financial Input'!$I$8>=1,(References!AA54*-1*References!$B$46/1.2*1.2),0) -> 0 | AG14: =IF('Financial Input'!$I$8>=1,(References!AB54*-1*References!$B$46/1.2*1.2),0) -> 0 | AH14: =IF('Financial Input'!$I$8>=1,(References!AC54*-1*References!$B$46/1.2*1.2),0) -> 0 | AI14: =IF('Financial Input'!$I$8>=1,(References!AD54*-1*References!$B$46/1.2*1.2),0) -> 0 | AJ14: =IF('Financial Input'!$I$8>=1,(References!AE54*-1*References!$B$46/1.2*1.2),0) -> 0 | AK14: =IF('Financial Input'!$I$8>=1,(References!AF54*-1*References!$B$46/1.2*1.2),0) -> 0
C15: Discount on Stormwater Fee 9 | F15: =SUMIF($H$4:$AK$4,"<="&'Financial Input'!$I$8,H15:AK15) -> 0 | G15: 0 | H15: =IF('Financial Input'!$I$8>=1,(References!C55*-1*References!$B$47/1.2*1.2),0) -> 0 | I15: =IF('Financial Input'!$I$8>=1,(References!D55*-1*References!$B$47/1.2*1.2),0) -> 0 | J15: =IF('Financial Input'!$I$8>=1,(References!E55*-1*References!$B$47/1.2*1.2),0) -> 0 | K15: =IF('Financial Input'!$I$8>=1,(References!F55*-1*References!$B$47/1.2*1.2),0) -> 0 | L15: =IF('Financial Input'!$I$8>=1,(References!G55*-1*References!$B$47/1.2*1.2),0) -> 0 | M15: =IF('Financial Input'!$I$8>=1,(References!H55*-1*References!$B$47/1.2*1.2),0) -> 0 | N15: =IF('Financial Input'!$I$8>=1,(References!I55*-1*References!$B$47/1.2*1.2),0) -> 0 | O15: =IF('Financial Input'!$I$8>=1,(References!J55*-1*References!$B$47/1.2*1.2),0) -> 0 | P15: =IF('Financial Input'!$I$8>=1,(References!K55*-1*References!$B$47/1.2*1.2),0) -> 0 | Q15: =IF('Financial Input'!$I$8>=1,(References!L55*-1*References!$B$47/1.2*1.2),0) -> 0 | R15: =IF('Financial Input'!$I$8>=1,(References!M55*-1*References!$B$47/1.2*1.2),0) -> 0 | S15: =IF('Financial Input'!$I$8>=1,(References!N55*-1*References!$B$47/1.2*1.2),0) -> 0 | T15: =IF('Financial Input'!$I$8>=1,(References!O55*-1*References!$B$47/1.2*1.2),0) -> 0 | U15: =IF('Financial Input'!$I$8>=1,(References!P55*-1*References!$B$47/1.2*1.2),0) -> 0 | V15: =IF('Financial Input'!$I$8>=1,(References!Q55*-1*References!$B$47/1.2*1.2),0) -> 0 | W15: =IF('Financial Input'!$I$8>=1,(References!R55*-1*References!$B$47/1.2*1.2),0) -> 0 | X15: =IF('Financial Input'!$I$8>=1,(References!S55*-1*References!$B$47/1.2*1.2),0) -> 0 | Y15: =IF('Financial Input'!$I$8>=1,(References!T55*-1*References!$B$47/1.2*1.2),0) -> 0 | Z15: =IF('Financial Input'!$I$8>=1,(References!U55*-1*References!$B$47/1.2*1.2),0) -> 0 | AA15: =IF('Financial Input'!$I$8>=1,(References!V55*-1*References!$B$47/1.2*1.2),0) -> 0 | AB15: =IF('Financial Input'!$I$8>=1,(References!W55*-1*References!$B$47/1.2*1.2),0) -> 0 | AC15: =IF('Financial Input'!$I$8>=1,(References!X55*-1*References!$B$47/1.2*1.2),0) -> 0 | AD15: =IF('Financial Input'!$I$8>=1,(References!Y55*-1*References!$B$47/1.2*1.2),0) -> 0 | AE15: =IF('Financial Input'!$I$8>=1,(References!Z55*-1*References!$B$47/1.2*1.2),0) -> 0 | AF15: =IF('Financial Input'!$I$8>=1,(References!AA55*-1*References!$B$47/1.2*1.2),0) -> 0 | AG15: =IF('Financial Input'!$I$8>=1,(References!AB55*-1*References!$B$47/1.2*1.2),0) -> 0 | AH15: =IF('Financial Input'!$I$8>=1,(References!AC55*-1*References!$B$47/1.2*1.2),0) -> 0 | AI15: =IF('Financial Input'!$I$8>=1,(References!AD55*-1*References!$B$47/1.2*1.2),0) -> 0 | AJ15: =IF('Financial Input'!$I$8>=1,(References!AE55*-1*References!$B$47/1.2*1.2),0) -> 0 | AK15: =IF('Financial Input'!$I$8>=1,(References!AF55*-1*References!$B$47/1.2*1.2),0) -> 0
C16: Savings from Removing Impervious Areaii | F16: =SUMIF($H$4:$AK$4,"<="&'Financial Input'!$I$8,H16:AK16) -> 0 | G16: 0 | H16: =IF('Financial Input'!$I$8>=H4,IF('Financial Input'!$I$9="Residential",(References!$B$52-References!$B$53)*(References!C46*12+References!C47*12),((SUM(Background!$G$23:$H$23)-SUM(Background!$G$22:$H$22))/1000)*(References!C46*12+References!C47*12)),0) -> 0 | I16: =IF('Financial Input'!$I$8>=I4,IF('Financial Input'!$I$9="Residential",(References!$B$52-References!$B$53)*(References!D46*12+References!D47*12),((SUM(Background!$G$23:$H$23)-SUM(Background!$G$22:$H$22))/1000)*(References!D46*12+References!D47*12)),0) -> 0 | J16: =IF('Financial Input'!$I$8>=J4,IF('Financial Input'!$I$9="Residential",(References!$B$52-References!$B$53)*(References!E46*12+References!E47*12),((SUM(Background!$G$23:$H$23)-SUM(Background!$G$22:$H$22))/1000)*(References!E46*12+References!E47*12)),0) -> 0 | K16: =IF('Financial Input'!$I$8>=K4,IF('Financial Input'!$I$9="Residential",(References!$B$52-References!$B$53)*(References!F46*12+References!F47*12),((SUM(Background!$G$23:$H$23)-SUM(Background!$G$22:$H$22))/1000)*(References!F46*12+References!F47*12)),0) -> 0 | L16: =IF('Financial Input'!$I$8>=L4,IF('Financial Input'!$I$9="Residential",(References!$B$52-References!$B$53)*(References!G46*12+References!G47*12),((SUM(Background!$G$23:$H$23)-SUM(Background!$G$22:$H$22))/1000)*(References!G46*12+References!G47*12)),0) -> 0 | M16: =IF('Financial Input'!$I$8>=M4,IF('Financial Input'!$I$9="Residential",(References!$B$52-References!$B$53)*(References!H46*12+References!H47*12),((SUM(Background!$G$23:$H$23)-SUM(Background!$G$22:$H$22))/1000)*(References!H46*12+References!H47*12)),0) -> 0 | N16: =IF('Financial Input'!$I$8>=N4,IF('Financial Input'!$I$9="Residential",(References!$B$52-References!$B$53)*(References!I46*12+References!I47*12),((SUM(Background!$G$23:$H$23)-SUM(Background!$G$22:$H$22))/1000)*(References!I46*12+References!I47*12)),0) -> 0 | O16: =IF('Financial Input'!$I$8>=O4,IF('Financial Input'!$I$9="Residential",(References!$B$52-References!$B$53)*(References!J46*12+References!J47*12),((SUM(Background!$G$23:$H$23)-SUM(Background!$G$22:$H$22))/1000)*(References!J46*12+References!J47*12)),0) -> 0 | P16: =IF('Financial Input'!$I$8>=P4,IF('Financial Input'!$I$9="Residential",(References!$B$52-References!$B$53)*(References!K46*12+References!K47*12),((SUM(Background!$G$23:$H$23)-SUM(Background!$G$22:$H$22))/1000)*(References!K46*12+References!K47*12)),0) -> 0 | Q16: =IF('Financial Input'!$I$8>=Q4,IF('Financial Input'!$I$9="Residential",(References!$B$52-References!$B$53)*(References!L46*12+References!L47*12),((SUM(Background!$G$23:$H$23)-SUM(Background!$G$22:$H$22))/1000)*(References!L46*12+References!L47*12)),0) -> 0 | R16: =IF('Financial Input'!$I$8>=R4,IF('Financial Input'!$I$9="Residential",(References!$B$52-References!$B$53)*(References!M46*12+References!M47*12),((SUM(Background!$G$23:$H$23)-SUM(Background!$G$22:$H$22))/1000)*(References!M46*12+References!M47*12)),0) -> 0 | S16: =IF('Financial Input'!$I$8>=S4,IF('Financial Input'!$I$9="Residential",(References!$B$52-References!$B$53)*(References!N46*12+References!N47*12),((SUM(Background!$G$23:$H$23)-SUM(Background!$G$22:$H$22))/1000)*(References!N46*12+References!N47*12)),0) -> 0 | T16: =IF('Financial Input'!$I$8>=T4,IF('Financial Input'!$I$9="Residential",(References!$B$52-References!$B$53)*(References!O46*12+References!O47*12),((SUM(Background!$G$23:$H$23)-SUM(Background!$G$22:$H$22))/1000)*(References!O46*12+References!O47*12)),0) -> 0 | U16: =IF('Financial Input'!$I$8>=U4,IF('Financial Input'!$I$9="Residential",(References!$B$52-References!$B$53)*(References!P46*12+References!P47*12),((SUM(Background!$G$23:$H$23)-SUM(Background!$G$22:$H$22))/1000)*(References!P46*12+References!P47*12)),0) -> 0 | V16: =IF('Financial Input'!$I$8>=V4,IF('Financial Input'!$I$9="Residential",(References!$B$52-References!$B$53)*(References!Q46*12+References!Q47*12),((SUM(Background!$G$23:$H$23)-SUM(Background!$G$22:$H$22))/1000)*(References!Q46*12+References!Q47*12)),0) -> 0 | W16: =IF('Financial Input'!$I$8>=W4,IF('Financial Input'!$I$9="Residential",(References!$B$52-References!$B$53)*(References!R46*12+References!R47*12),((SUM(Background!$G$23:$H$23)-SUM(Background!$G$22:$H$22))/1000)*(References!R46*12+References!R47*12)),0) -> 0 | X16: =IF('Financial Input'!$I$8>=X4,IF('Financial Input'!$I$9="Residential",(References!$B$52-References!$B$53)*(References!S46*12+References!S47*12),((SUM(Background!$G$23:$H$23)-SUM(Background!$G$22:$H$22))/1000)*(References!S46*12+References!S47*12)),0) -> 0 | Y16: =IF('Financial Input'!$I$8>=Y4,IF('Financial Input'!$I$9="Residential",(References!$B$52-References!$B$53)*(References!T46*12+References!T47*12),((SUM(Background!$G$23:$H$23)-SUM(Background!$G$22:$H$22))/1000)*(References!T46*12+References!T47*12)),0) -> 0 | Z16: =IF('Financial Input'!$I$8>=Z4,IF('Financial Input'!$I$9="Residential",(References!$B$52-References!$B$53)*(References!U46*12+References!U47*12),((SUM(Background!$G$23:$H$23)-SUM(Background!$G$22:$H$22))/1000)*(References!U46*12+References!U47*12)),0) -> 0 | AA16: =IF('Financial Input'!$I$8>=AA4,IF('Financial Input'!$I$9="Residential",(References!$B$52-References!$B$53)*(References!V46*12+References!V47*12),((SUM(Background!$G$23:$H$23)-SUM(Background!$G$22:$H$22))/1000)*(References!V46*12+References!V47*12)),0) -> 0 | AB16: =IF('Financial Input'!$I$8>=AB4,IF('Financial Input'!$I$9="Residential",(References!$B$52-References!$B$53)*(References!W46*12+References!W47*12),((SUM(Background!$G$23:$H$23)-SUM(Background!$G$22:$H$22))/1000)*(References!W46*12+References!W47*12)),0) -> 0 | AC16: =IF('Financial Input'!$I$8>=AC4,IF('Financial Input'!$I$9="Residential",(References!$B$52-References!$B$53)*(References!X46*12+References!X47*12),((SUM(Background!$G$23:$H$23)-SUM(Background!$G$22:$H$22))/1000)*(References!X46*12+References!X47*12)),0) -> 0 | AD16: =IF('Financial Input'!$I$8>=AD4,IF('Financial Input'!$I$9="Residential",(References!$B$52-References!$B$53)*(References!Y46*12+References!Y47*12),((SUM(Background!$G$23:$H$23)-SUM(Background!$G$22:$H$22))/1000)*(References!Y46*12+References!Y47*12)),0) -> 0 | AE16: =IF('Financial Input'!$I$8>=AE4,IF('Financial Input'!$I$9="Residential",(References!$B$52-References!$B$53)*(References!Z46*12+References!Z47*12),((SUM(Background!$G$23:$H$23)-SUM(Background!$G$22:$H$22))/1000)*(References!Z46*12+References!Z47*12)),0) -> 0 | AF16: =IF('Financial Input'!$I$8>=AF4,IF('Financial Input'!$I$9="Residential",(References!$B$52-References!$B$53)*(References!AA46*12+References!AA47*12),((SUM(Background!$G$23:$H$23)-SUM(Background!$G$22:$H$22))/1000)*(References!AA46*12+References!AA47*12)),0) -> 0 | AG16: =IF('Financial Input'!$I$8>=AG4,IF('Financial Input'!$I$9="Residential",(References!$B$52-References!$B$53)*(References!AB46*12+References!AB47*12),((SUM(Background!$G$23:$H$23)-SUM(Background!$G$22:$H$22))/1000)*(References!AB46*12+References!AB47*12)),0) -> 0 | AH16: =IF('Financial Input'!$I$8>=AH4,IF('Financial Input'!$I$9="Residential",(References!$B$52-References!$B$53)*(References!AC46*12+References!AC47*12),((SUM(Background!$G$23:$H$23)-SUM(Background!$G$22:$H$22))/1000)*(References!AC46*12+References!AC47*12)),0) -> 0 | AI16: =IF('Financial Input'!$I$8>=AI4,IF('Financial Input'!$I$9="Residential",(References!$B$52-References!$B$53)*(References!AD46*12+References!AD47*12),((SUM(Background!$G$23:$H$23)-SUM(Background!$G$22:$H$22))/1000)*(References!AD46*12+References!AD47*12)),0) -> 0 | AJ16: =IF('Financial Input'!$I$8>=AJ4,IF('Financial Input'!$I$9="Residential",(References!$B$52-References!$B$53)*(References!AE46*12+References!AE47*12),((SUM(Background!$G$23:$H$23)-SUM(Background!$G$22:$H$22))/1000)*(References!AE46*12+References!AE47*12)),0) -> 0 | AK16: =IF('Financial Input'!$I$8>=AK4,IF('Financial Input'!$I$9="Residential",(References!$B$52-References!$B$53)*(References!AF46*12+References!AF47*12),((SUM(Background!$G$23:$H$23)-SUM(Background!$G$22:$H$22))/1000)*(References!AF46*12+References!AF47*12)),0) -> 0
C17: Total Revenue | F17: =SUM(F13:F16) -> 0 | G17: =SUM(G13:G16) -> 0 | H17: =SUM(H13:H16) -> 0 | I17: 0 | J17: 0 | K17: 0 | L17: 0 | M17: 0 | N17: 0 | O17: =SUM(O13:O16) -> 0 | P17: 0 | Q17: 0 | R17: 0 | S17: 0 | T17: 0 | U17: 0 | V17: 0 | W17: 0 | X17: 0 | Y17: 0 | Z17: 0 | AA17: 0 | AB17: =SUM(AB13:AB16) -> 0 | AC17: 0 | AD17: 0 | AE17: 0 | AF17: 0 | AG17: 0 | AH17: 0 | AI17: 0 | AJ17: 0 | AK17: 0
C19: Net Cash Flowii | F19: =F17+F10 -> -2036.16 | G19: =G17+G10 -> -2036.16 | H19: =H17+H10 -> -339.36 | I19: =I17+I10 -> -339.36 | J19: -339.36 | K19: -339.36 | L19: -339.36 | M19: -339.36 | N19: 0 | O19: 0 | P19: 0 | Q19: 0 | R19: 0 | S19: 0 | T19: 0 | U19: 0 | V19: 0 | W19: 0 | X19: 0 | Y19: 0 | Z19: 0 | AA19: 0 | AB19: 0 | AC19: 0 | AD19: 0 | AE19: 0 | AF19: 0 | AG19: 0 | AH19: 0 | AI19: 0 | AJ19: 0 | AK19: 0
C20: Return on Investmentii | F20: =IFERROR((F17+F10)/(F10*-1)," ") -> -1 | G20: =IFERROR((G17+G10)/(G10*-1)," ") -> -1
C22: Return to Overview | G22: Go Back
C24: Visit SRC registry
B27: 9 CRIAC and DC Government Stormwater Fees are based off approved and proposed Fiscal Year rates and capped at the last proposed rate.

Sheet Background (hidden)
C3: Stormwater Retention Credit (SRC) Financial Return Calculator Regulatory Review Division
C5: 1. Is the project a voluntary or a regulated activity? | H5: Please Select | I5: =IF(Activity="Voluntary","Voluntary",IF(MS4_MLD="MSI","MSI",IF(MS4_MLD="MLD","MLD",""))) -> Voluntary
C6: *If regulated, please distinguish between Major Land Disturbing (MLD) activity or Major Substantial Improvement (MSI) activity. The definition for these activities can be found in Appendix U of the DOEE Stormwater Management Guidebook.
C9: 2. Is the project an Anacostia Waterfront Development Zone (AWDZ) Site? | H9: Please Select | I9: =IF(Overview!I16="Voluntary","No",Price_AWDZ) -> No
C12: 3. Regulatory Rainfall Event for SWRv (inches) | I12: =IF(I5="Voluntary","N/A",IF(I5="","",IF(AND(I9="Yes",I5="MSI"),1,IF(AND(I9="No",I5="MSI"),0.8,1.2)))) -> N/A
C14: 4. Water Quality Treatment Volume (gallons) | I14: =IF(I5="Voluntary","N/A",((1.7/12*((0.25*'2'!F8)+(0.75*('2'!G8+'2'!H8))))*7.48)-G28) -> N/A
C19: Project Site Information
C20: =IF(SUM(E22:H22)=SUM(E23:H23)," ","ERROR: Pre and post-project land cover square footage must be equivalent") -> 
C21: Land Cover Type: | E21: Natural | F21: Compacted | G21: Impervious | H21: BMP | I21: Total
C22: Post-project (ft2) | E22: =IF(Overview!$I$16="Voluntary",'1'!E8,'2'!E8) -> 0 | F22: =IF(Overview!$I$16="Voluntary",'1'!F8,'2'!F8) -> 0 | G22: =IF(Overview!$I$16="Voluntary",'1'!G13,'2'!G17) -> 0 | H22: =IF(Overview!$I$16="Voluntary",'1'!H13,'2'!H17) -> 0 | I22: =SUM(E22:H22) -> 0
C23: Pre-project (ft2) | E23: =IF(Overview!$I$16="Voluntary",'1'!E9,'2'!E9) -> 0 | F23: =IF(Overview!$I$16="Voluntary",'1'!F9,'2'!F9) -> 0 | G23: =IF(Overview!$I$16="Voluntary",'1'!G12,'2'!G16) -> 0 | H23: =IF(Overview!$I$16="Voluntary",'1'!H12,'2'!H16) -> 0 | I23: =SUM(E23:H23) -> 0
G24: =IFERROR(IF(H22/I22>0.9,"BMP has little to no additional CDA"," ")," ") -> 
C25: Stormwater Retention Volume (SWRv) Requirement
C26: *This is a regulatory requirement and not applicable to voluntary projects. SRC generation is calculated for regulated projects for retention volume achieved beyond the regulatory requirement, up to a 1.7 inch rainfall event.
C27: SWRv | F27: ft3 | G27: gal | H27: Land Cover Change | I27: Regulatory Requirement
C28: =IF(Background!I5="MLD","Major Land Disturbing",IF(Background!I5="MSI","Major Substantial Improvement",IF(Background!I5="Voluntary","Voluntary Retrofit",""))) -> Voluntary Retrofit | F28: =IFERROR(I12/12*((E22*References!B16)+(F22*References!B17)+(G22*References!B18)+(H22*References!B18)),"N/A") -> N/A | G28: =IFERROR(F28*7.48,"N/A") -> N/A | H28: =(IF(I5="Voluntary",(1.7/12*(E22*1+F22*0.75+G22*0.05+H22*0.05)*7.48)-(1.7/12*(E23*1+F23*0.75+G23*0.05+H23*0.05)*7.48))) -> 0 | I28: =IF(I5<>"Voluntary",G28,0)+IF(I9="Yes",'2'!F16,0) -> 0
C29: *For MSI activities, the Stormwater Retention Volume (SWRv) requirement is based on the 1.0-inch storm event. For MLD activities the SWRv requirement is based on the 1.2-inch storm event. All AWDZ sites must meet a Water Quality Treatment Volume (WQTv) that is based on a 1.7-inch storm event.

Sheet References (hidden)
A1: Green Roof | B1: Extensive green roof | C1: Intensive green roof | G1: 1 | H1: 1 | U1: Green Roof
A2: Rainwater Harvesting | B2: Rainwater harvesting | E2: 2 | F2: Rv to Sv Coversion factor | G2: 1 | O2: Return to Instructions | Q2: Continue | U2: Rainwater Harvesting
A3: Impervious Surface Disconnection | B3: Disconnection to a pervious area | C3: Disconnection to a conservation area | D3: Disconnection to amended soils | G3: =(VLOOKUP(B3,BMPData,21,FALSE)/100)*2 ->  | H3: =(VLOOKUP(C3,BMPData,21,FALSE)/100)*6 ->  | I3: =(VLOOKUP(D3,BMPData,21,FALSE)/100)*4 ->  | R3: Appendix U | U3: Permeable Pavement
A4: Permeable Pavement | B4: Permeable pavement - Enhanced | C4: Permeable pavement - Standard | G4: 1 | H4: =(VLOOKUP(C4,PP,6,FALSE)/100)*5 ->  | O4: Visit SRC Registry | Q4: Go Back | S4: SRC Purchase Agreement | U4: Bioretention
A5: Bioretention | B5: Bioretention - Enhanced | C5: Bioretention - Standard | G5: 1 | H5: 0.6 | R5: AWDZ Map | U5: Infiltration
A6: Infiltration | B6: Infiltration trench | C6: Infiltration basin | G6: 1 | H6: 1 | O6: Visit SRC Homepage | Q6: MS4 Map | U6: Open Channel
A7: Open Channel | B7: Grass channel | C7: Grass channel - amended soils | D7: Dry swale | E7: Wet swale | G7: 0.1 | H7: 0.3 | I7: 0.6 | J7: 0.1 | U7: Ponds
A8: Ponds | B8: Micropool ED pond | C8: Wet pond | D8: Wet ED pond | G8: 0.1 | H8: 0.1 | I8: 0.1 | O8: Match | Q8: Match1 | U8: Wetlands
A9: Wetlands | B9: Shallow wetland | C9: ED shallow wetland | G9: 0.1 | H9: 0.1 | O9: Green Roof | P9: A | Q9: Extensive green roof | R9: A
A10: Tree Planting and Preservation | B10: Tree preservation | C10: Tree planting | G10: =VLOOKUP(B10,BMPData,24,0)*20 ->  | H10: =VLOOKUP(C10,BMPData,24,0)*10 ->  | O10: Rainwater Harvesting | P10: B | Q10: Intensive green roof | R10: A
O11: Impervious Surface Disconnection | P11: C | Q11: Rainwater harvesting | R11: B
A12: Yes | O12: Permeable Pavement | P12: D | Q12: Simple disconnection to a pervious area | R12: C
A13: No | O13: Bioretention | P13: E | Q13: Simple disconnection to a conservation area | R13: C
C14: =IFERROR(VLOOKUP(F18,BMPData,6,FALSE),0) -> 0 | O14: Infiltration | P14: F | Q14: Simple disconnection to amended soils | R14: C
A15: Land Cover Type | B15: Rv | C15: Costs | D15: ft2 or count | E15: ft2 or count | F15: Lookup Values | G15: $/ft2 | H15: Inflation | I15: $ | K15: Amortization Schedule | L15: ='Financial Input'!I15 -> 1694.3 | O15: Open Channel | P15: G | Q15: Permeable pavement - Enhanced | R15: D
A16: Natural Cover | B16: 0 | C16: ='BMP Design'!F7 -> 0 | D16: =IF(C16="Tree planting",'BMP Design'!AC7,IF(C16="Rainwater harvesting",'BMP Design'!V7,IF(C16="Simple disconnection to amended soils",'BMP Design'!AA7,IF(C16="Simple disconnection to a pervious area",'BMP Design'!AA7,IF(C16="Simple disconnection to conservation area",'BMP Design'!AA7,'BMP Design'!S7))))) -> 0 | F16: Extensive green roof | G16: 24 | H16: =G16*1.5 -> 36 | I16: =IFERROR((VLOOKUP(C16,BMPCost,3,0)*D16)*('BMP Design'!V7/'BMP Design'!X7),0) -> 0 | K16: Loan $ | L16: =IF(L15=722.58,0,L15) -> 1694.3 | O16: Ponds | P16: H | Q16: Permeable pavement - Standard | R16: D
A17: Compacted Cover | B17: 0.25 | C17: ='BMP Design'!F8 -> 0 | D17: =IF(C17="Tree planting",'BMP Design'!AC8,IF(C17="Rainwater harvesting",'BMP Design'!V8,IF(C17="Simple disconnection to amended soils",'BMP Design'!AA8,IF(C17="Simple disconnection to a pervious area",'BMP Design'!AA8,IF(C17="Simple disconnection to conservation area",'BMP Design'!AA8,'BMP Design'!S8))))) -> 0 | F17: Intensive green roof | G17: 36 | H17: =G17*1.5 -> 54 | I17: =IFERROR((VLOOKUP(C17,BMPCost,3,0)*D17)*('BMP Design'!V8/'BMP Design'!X8),0) -> 0 | K17: Interest % | L17: ='Financial Input'!I18 -> 0.0625 | O17: Wetlands | P17: I | Q17: Bioretention - Enhanced | R17: E
A18: Impervious Cover | B18: 0.95 | C18: ='BMP Design'!F9 -> 0 | D18: =IF(C18="Tree planting",'BMP Design'!AC9,IF(C18="Rainwater harvesting",'BMP Design'!V9,IF(C18="Simple disconnection to amended soils",'BMP Design'!AA9,IF(C18="Simple disconnection to a pervious area",'BMP Design'!AA9,IF(C18="Simple disconnection to conservation area",'BMP Design'!AA9,'BMP Design'!S9))))) -> 0 | F18: Rainwater harvesting | G18: 10.65 | H18: 15.975 | I18: =IFERROR((VLOOKUP(C18,BMPCost,3,0)*D18)*('BMP Design'!V9/'BMP Design'!X9),0) -> 0 | K18: Loan Term | L18: ='Financial Input'!I19*12 -> 72 | O18: Tree Planting and Preservation | P18: J | Q18: Bioretention - Standard | R18: E
C19: ='BMP Design'!F10 -> 0 | D19: =IF(C19="Tree planting",'BMP Design'!AC10,IF(C19="Rainwater harvesting",'BMP Design'!V10,IF(C19="Simple disconnection to amended soils",'BMP Design'!AA10,IF(C19="Simple disconnection to a pervious area",'BMP Design'!AA10,IF(C19="Simple disconnection to conservation area",'BMP Design'!AA10,'BMP Design'!S10))))) -> 0 | F19: Simple disconnection to a pervious area | G19: =95.5/1000 -> 0.0955 | H19: 0.14325 | I19: =IFERROR((VLOOKUP(C19,BMPCost,3,0)*D19)*('BMP Design'!V10/'BMP Design'!X10),0) -> 0 | K19: Payments | L19: =ROUND(PMT(L17/12,L18,-L16,0),2) -> 28.28 | Q19: Infiltration trench | R19: F
A20: Review Fees | C20: ='BMP Design'!F11 -> 0 | D20: =IF(C20="Tree planting",'BMP Design'!AC11,IF(C20="Rainwater harvesting",'BMP Design'!V11,IF(C20="Simple disconnection to amended soils",'BMP Design'!AA11,IF(C20="Simple disconnection to a pervious area",'BMP Design'!AA11,IF(C20="Simple disconnection to conservation area",'BMP Design'!AA11,'BMP Design'!S11))))) -> 0 | F20: Simple disconnection to a conservation area | G20: =95.5/1000 -> 0.0955 | H20: 0.14325 | I20: =IFERROR((VLOOKUP(C20,BMPCost,3,0)*D20)*('BMP Design'!V11/'BMP Design'!X11),0) -> 0 | K20: Annual | L20: =L19*12 -> 339.36 | M20: =L20*'Financial Input'!I8 -> 4072.32 | Q20: Infiltration basin | R20: F
C21: ='BMP Design'!F12 -> 0 | D21: =IF(C21="Tree planting",'BMP Design'!AC12,IF(C21="Rainwater harvesting",'BMP Design'!V12,IF(C21="Simple disconnection to amended soils",'BMP Design'!AA12,IF(C21="Simple disconnection to a pervious area",'BMP Design'!AA12,IF(C21="Simple disconnection to conservation area",'BMP Design'!AA12,'BMP Design'!S12))))) -> 0 | F21: Simple disconnection to amended soils | G21: =(50+1667)/1000 -> 1.717 | H21: 2.5755 | I21: =IFERROR((VLOOKUP(C21,BMPCost,3,0)*D21)*('BMP Design'!V12/'BMP Design'!X12),0) -> 0 | Q21: Grass channel | R21: G
C22: ='BMP Design'!F13 -> 0 | D22: =IF(C22="Tree planting",'BMP Design'!AC13,IF(C22="Rainwater harvesting",'BMP Design'!V13,IF(C22="Simple disconnection to amended soils",'BMP Design'!AA13,IF(C22="Simple disconnection to a pervious area",'BMP Design'!AA13,IF(C22="Simple disconnection to conservation area",'BMP Design'!AA13,'BMP Design'!S13))))) -> 0 | F22: Permeable pavement - Standard | G22: 7 | H22: 10.5 | I22: =IFERROR((VLOOKUP(C22,BMPCost,3,0)*D22)*('BMP Design'!V13/'BMP Design'!X13),0) -> 0 | Q22: Grass channel - amended soils | R22: G
A23: ESC | C23: ='BMP Design'!F14 -> 0 | D23: =IF(C23="Tree planting",'BMP Design'!AC14,IF(C23="Rainwater harvesting",'BMP Design'!V14,IF(C23="Simple disconnection to amended soils",'BMP Design'!AA14,IF(C23="Simple disconnection to a pervious area",'BMP Design'!AA14,IF(C23="Simple disconnection to conservation area",'BMP Design'!AA14,'BMP Design'!S14))))) -> 0 | F23: Permeable pavement - Enhanced | G23: 12 | H23: 18 | I23: =IFERROR((VLOOKUP(C23,BMPCost,3,0)*D23)*('BMP Design'!V14/'BMP Design'!X14),0) -> 0 | Q23: Dry swale | R23: G
A24: 50-5000 | B24: 5000+ | C24: ='BMP Design'!F15 -> 0 | D24: =IF(C24="Tree planting",'BMP Design'!AC15,IF(C24="Rainwater harvesting",'BMP Design'!V15,IF(C24="Simple disconnection to amended soils",'BMP Design'!AA15,IF(C24="Simple disconnection to a pervious area",'BMP Design'!AA15,IF(C24="Simple disconnection to conservation area",'BMP Design'!AA15,'BMP Design'!S15))))) -> 0 | F24: Bioretention - Standard | G24: 15 | H24: 22.5 | I24: =IFERROR((VLOOKUP(C24,BMPCost,3,0)*D24)*('BMP Design'!V15/'BMP Design'!X15),0) -> 0 | L24: Years 1-6 | M24: Years 7-12 | Q24: Wet swale | R24: G
A25: Initial | C25: ='BMP Design'!F16 -> 0 | D25: =IF(C25="Tree planting",'BMP Design'!AC16,IF(C25="Rainwater harvesting",'BMP Design'!V16,IF(C25="Simple disconnection to amended soils",'BMP Design'!AA16,IF(C25="Simple disconnection to a pervious area",'BMP Design'!AA16,IF(C25="Simple disconnection to conservation area",'BMP Design'!AA16,'BMP Design'!S16))))) -> 0 | F25: Bioretention - Enhanced | G25: 24 | H25: 36 | I25: =IFERROR((VLOOKUP(C25,BMPCost,3,0)*D25)*('BMP Design'!V16/'BMP Design'!X16),0) -> 0 | K25: MS4 Tidal | L25: 1.77 | M25: 0.42 | Q25: Micropool ED pond | R25: H
A26: 469.44 | B26: 1154.7 | C26: ='BMP Design'!F17 -> 0 | D26: =IF(C26="Tree planting",'BMP Design'!AC17,IF(C26="Rainwater harvesting",'BMP Design'!V17,IF(C26="Simple disconnection to amended soils",'BMP Design'!AA17,IF(C26="Simple disconnection to a pervious area",'BMP Design'!AA17,IF(C26="Simple disconnection to conservation area",'BMP Design'!AA17,'BMP Design'!S17))))) -> 0 | F26: Infiltration basin | G26: 24 | H26: 36 | I26: =IFERROR((VLOOKUP(C26,BMPCost,3,0)*D26)*('BMP Design'!V17/'BMP Design'!X17),0) -> 0 | K26: MS4 Non-Tidal | L26: 2.03 | M26: 0.42 | Q26: Wet pond | R26: H
A27: Final | C27: ='BMP Design'!F18 -> 0 | D27: =IF(C27="Tree planting",'BMP Design'!AC18,IF(C27="Rainwater harvesting",'BMP Design'!V18,IF(C27="Simple disconnection to amended soils",'BMP Design'!AA18,IF(C27="Simple disconnection to a pervious area",'BMP Design'!AA18,IF(C27="Simple disconnection to conservation area",'BMP Design'!AA18,'BMP Design'!S18))))) -> 0 | F27: Infiltration trench | G27: 15 | H27: 22.5 | I27: =IFERROR((VLOOKUP(C27,BMPCost,3,0)*D27)*('BMP Design'!V18/'BMP Design'!X18),0) -> 0 | Q27: Wet ED pond | R27: H
A28: 469.44 | B28: 469.44 | D28: =SUM(D16:D27) -> 0 | F28: Grass channel | G28: 10 | H28: 15 | I28: =(IFERROR(VLOOKUP(C28,BMPCost,3,0),0))*D28 -> 0 | Q28: Shallow wetland | R28: I
A29: V-SWMP | D29: =Background!H22-References!D28 -> 0 | F29: Grass channel - amended soils | G29: 25 | H29: 37.5 | I29: 0 | Q29: ED shallow wetland | R29: I
A30: <10000 | B30: >10000 | F30: Dry swale | G30: 24 | H30: 36 | I30: 0 | Q30: Tree preservation | R30: J
A31: Initial | F31: Wet Swale | G31: 15 | H31: 22.5 | I31: 0 | Q31: Tree planting | R31: J
A32: 620.52 | B32: 917.29 | F32: Wet pond | G32: 15 | H32: 22.5 | I32: 0
A33: Final | F33: Micropool ED pond | G33: 24 | H33: 36 | I33: 0
A34: 134.9 | B34: 215.83 | F34: Wet ED pond | G34: 15 | H34: 22.5 | I34: 0
A35: R-SWMP | F35: Shallow wetland | G35: 15 | H35: 22.5 | I35: 0
A36: <10000 | B36: >10000 | F36: ED shallow wetland | G36: 20 | H36: 30 | I36: 0
A37: Initial | F37: Tree preservation | I37: =IFERROR(D37*H37,0) -> 0
A38: 3561.24 | B38: 6582.9 | F38: Tree planting | G38: 325 | H38: 487.5 | I38: 0 | K38: + Unaccounted
A39: Final | I39: =SUM(I16:I27) -> 0 | J39: =IF(D29>0,D29*I41,0) -> 0 | K39: =I39+J39 -> 0
A40: 1618.75 | B40: 2589.99 | G40: Avg/ ft2 | H40: Inflation Rate | I40: Inflation adjusted | J40: 10% DC Increase | K40: =K39*1.1 -> 0
G41: =AVERAGE(G16:G17,G22:G36) -> 18.82352941 | H41: =(I41-G41)/G41 -> 0.1316 | I41: =G41*1.1316 -> 21.30070588
H42: 10% DC Increase | I42: =I41*1.1 -> 23.43077647
A43: Detailed Estimation Lookup Values
A44: Previous Year Average Sale Price of SRCs | C44: 2.02 | D44: =IF(AND($C$44>=0.01,'Financial Input'!$I$8>=2),C$44*(1+'Financial Input'!$R$8),0) -> 2.058582 | E44: =IF(AND($C$44>=0.01,'Financial Input'!$I$8>=3),D$44*(1+'Financial Input'!$R$8),0) -> 2.097900916 | F44: =IF(AND($C$44>=0.01,'Financial Input'!$I$8>=4),E$44*(1+'Financial Input'!$R$8),0) -> 2.137970824 | G44: =IF(AND($C$44>=0.01,'Financial Input'!$I$8>=5),F$44*(1+'Financial Input'!$R$8),0) -> 2.178806066 | H44: =IF(AND($C$44>=0.01,'Financial Input'!$I$8>=6),G$44*(1+'Financial Input'!$R$8),0) -> 2.220421262 | I44: =IF(AND($C$44>=0.01,'Financial Input'!$I$8>=7),H$44*(1+'Financial Input'!$R$8),0) -> 2.262831308 | J44: =IF(AND($C$44>=0.01,'Financial Input'!$I$8>=8),I$44*(1+'Financial Input'!$R$8),0) -> 2.306051386 | K44: =IF(AND($C$44>=0.01,'Financial Input'!$I$8>=9),J$44*(1+'Financial Input'!$R$8),0) -> 2.350096968 | L44: =IF(AND($C$44>=0.01,'Financial Input'!$I$8>=10),K$44*(1+'Financial Input'!$R$8),0) -> 2.39498382 | M44: =IF(AND($C$44>=0.01,'Financial Input'!$I$8>=11),L$44*(1+'Financial Input'!$R$8),0) -> 2.440728011 | N44: =IF(AND($C$44>=0.01,'Financial Input'!$I$8>=12),M$44*(1+'Financial Input'!$R$8),0) -> 2.487345916 | O44: =IF(AND($C$44>=0.01,'Financial Input'!$I$8>=13),N$44*(1+'Financial Input'!$R$8),0) -> 0 | P44: =IF(AND($C$44>=0.01,'Financial Input'!$I$8>=14),O$44*(1+'Financial Input'!$R$8),0) -> 0 | Q44: =IF(AND($C$44>=0.01,'Financial Input'!$I$8>=15),P$44*(1+'Financial Input'!$R$8),0) -> 0 | R44: =IF(AND($C$44>=0.01,'Financial Input'!$I$8>=16),Q$44*(1+'Financial Input'!$R$8),0) -> 0 | S44: =IF(AND($C$44>=0.01,'Financial Input'!$I$8>=17),R$44*(1+'Financial Input'!$R$8),0) -> 0 | T44: =IF(AND($C$44>=0.01,'Financial Input'!$I$8>=18),S$44*(1+'Financial Input'!$R$8),0) -> 0 | U44: =IF(AND($C$44>=0.01,'Financial Input'!$I$8>=19),T$44*(1+'Financial Input'!$R$8),0) -> 0 | V44: =IF(AND($C$44>=0.01,'Financial Input'!$I$8>=20),U$44*(1+'Financial Input'!$R$8),0) -> 0 | W44: =IF(AND($C$44>=0.01,'Financial Input'!$I$8>=20),V$44*(1+'Financial Input'!$R$8),0) -> 0 | X44: =IF(AND($C$44>=0.01,'Financial Input'!$I$8>=20),W$44*(1+'Financial Input'!$R$8),0) -> 0 | Y44: =IF(AND($C$44>=0.01,'Financial Input'!$I$8>=20),X$44*(1+'Financial Input'!$R$8),0) -> 0 | Z44: =IF(AND($C$44>=0.01,'Financial Input'!$I$8>=20),Y$44*(1+'Financial Input'!$R$8),0) -> 0 | AA44: =IF(AND($C$44>=0.01,'Financial Input'!$I$8>=20),Z$44*(1+'Financial Input'!$R$8),0) -> 0 | AB44: =IF(AND($C$44>=0.01,'Financial Input'!$I$8>=20),AA$44*(1+'Financial Input'!$R$8),0) -> 0 | AC44: =IF(AND($C$44>=0.01,'Financial Input'!$I$8>=20),AB$44*(1+'Financial Input'!$R$8),0) -> 0 | AD44: =IF(AND($C$44>=0.01,'Financial Input'!$I$8>=20),AC$44*(1+'Financial Input'!$R$8),0) -> 0 | AE44: =IF(AND($C$44>=0.01,'Financial Input'!$I$8>=20),AD$44*(1+'Financial Input'!$R$8),0) -> 0 | AF44: =IF(AND($C$44>=0.01,'Financial Input'!$I$8>=20),AE$44*(1+'Financial Input'!$R$8),0) -> 0
C45: 2018 | D45: 2019 | E45: 2020 | F45: 2021 | G45: 2022 | H45: 2023 | I45: 2024 | J45: 2025 | K45: 2026 | L45: 2027 | M45: 2028 | N45: 2029 | O45: 2030 | P45: 2031 | Q45: 2032 | R45: 2033 | S45: 2034 | T45: 2035 | U45: 2036 | V45: 2037 | W45: 2038 | X45: 2039 | Y45: 2040 | Z45: 2041 | AA45: 2042 | AB45: 2043 | AC45: 2044 | AD45: 2045 | AE45: 2046 | AF45: 2047
A46: Maximum Discount on IAC | B46: 0.04 | C46: 25.18 | D46: 23 | E46: 20.94 | F46: 19.52 | G46: 18.4 | H46: =G46*1.1 -> 20.24 | I46: =H46*1.1 -> 22.264 | J46: 24.4904 | K46: 26.93944 | L46: 26.93944 | M46: 26.93944 | N46: 26.93944 | O46: 26.93944 | P46: 26.93944 | Q46: 26.93944 | R46: 26.93944 | S46: 26.93944 | T46: 26.93944 | U46: 26.93944 | V46: 26.93944 | W46: 26.93944 | X46: 26.93944 | Y46: 26.93944 | Z46: 26.93944 | AA46: 26.93944 | AB46: 26.93944 | AC46: 26.93944 | AD46: 26.93944 | AE46: 26.93944 | AF46: 26.93944
A47: Maximum SW Fee Discount | B47: 0.55 | C47: 2.67 | D47: 2.67 | E47: 2.67 | F47: 2.67 | G47: 2.67 | H47: 2.67 | I47: 2.67 | J47: 2.67 | K47: 2.67 | L47: 2.67 | M47: 2.67 | N47: 2.67 | O47: 2.67 | P47: 2.67 | Q47: 2.67 | R47: 2.67 | S47: 2.67 | T47: 2.67 | U47: 2.67 | V47: 2.67 | W47: 2.67 | X47: 2.67 | Y47: 2.67 | Z47: 2.67 | AA47: 2.67 | AB47: 2.67 | AC47: 2.67 | AD47: 2.67 | AE47: 2.67 | AF47: 2.67
A48: ILF | B48: 3.61 | C48: 1 | D48: 2 | E48: 3 | F48: 4 | G48: 5 | H48: 6 | I48: 7 | J48: 8 | K48: 9 | L48: 10 | M48: 11 | N48: 12 | O48: 13 | P48: 14 | Q48: 15 | R48: 16 | S48: 17 | T48: 18 | U48: 19 | V48: 20 | W48: 21 | X48: 22 | Y48: 23 | Z48: 24 | AA48: 25 | AB48: 26 | AC48: 27 | AD48: 28 | AE48: 29 | AF48: 30
C49: Yes | D49: No | F49: Commercial | G49: Multi-family | H49: Residential
A50: GI Retention (gallons) | B50: =IF(ISBLANK('Financial Summary'!E6),1.7*((0.95*SUM(Background!G22:H22)+(0.25*Background!F22))*7.48/12),ROUND('Financial Summary'!E6,0)) -> 0
A51: One-Half of GI Retention (gallons) | B51: =B50*0.5 -> 0
A52: Pre-Project Residential Equivalent Residential Units (ERUs) | B52: =IF((SUM(Background!H23:'Background'!G23))/1000>11.1,13.5,IF((SUM(Background!H23:'Background'!G23))/1000>7.1,8.6,IF((SUM(Background!H23:'Background'!G23))/1000>3.1,3.8,IF((SUM(Background!H23:'Background'!G23))/1000>2.1,2.4,IF((SUM(Background!H23:'Background'!G23))/1000>0.7,1,0.6))))) -> 0.6
A53: Post-Project Residential ERUs | B53: =IF((SUM(Background!H22:'Background'!G22))/1000>11.1,13.5,IF((SUM(Background!H22:'Background'!G22))/1000>7.1,8.6,IF((SUM(Background!H22:'Background'!G22))/1000>3.1,3.8,IF((SUM(Background!H22:'Background'!G22))/1000>2.1,2.4,IF((SUM(Background!H22:'Background'!G22))/1000>0.7,1,0.6))))) -> 0.6
A54: DC Water IAC | C54: =IF('Financial Input'!$I$9="Residential",C46*$B$53*12*-1,C46*(SUM(Background!$G$23:$H$23)/1000)*12*-1) -> 0 | D54: =IF('Financial Input'!$I$9="Residential",D46*$B$53*12*-1,D46*(SUM(Background!$G$23:$H$23)/1000)*12*-1) -> 0 | E54: =IF('Financial Input'!$I$9="Residential",E46*$B$53*12*-1,E46*(SUM(Background!$G$23:$H$23)/1000)*12*-1) -> 0 | F54: =IF('Financial Input'!$I$9="Residential",F46*$B$53*12*-1,F46*(SUM(Background!$G$23:$H$23)/1000)*12*-1) -> 0 | G54: =IF('Financial Input'!$I$9="Residential",G46*$B$53*12*-1,G46*(SUM(Background!$G$23:$H$23)/1000)*12*-1) -> 0 | H54: =IF('Financial Input'!$I$9="Residential",H46*$B$53*12*-1,H46*(SUM(Background!$G$23:$H$23)/1000)*12*-1) -> 0 | I54: =IF('Financial Input'!$I$9="Residential",I46*$B$53*12*-1,I46*(SUM(Background!$G$23:$H$23)/1000)*12*-1) -> 0 | J54: =IF('Financial Input'!$I$9="Residential",J46*$B$53*12*-1,J46*(SUM(Background!$G$23:$H$23)/1000)*12*-1) -> 0 | K54: =IF('Financial Input'!$I$9="Residential",K46*$B$53*12*-1,K46*(SUM(Background!$G$23:$H$23)/1000)*12*-1) -> 0 | L54: =IF('Financial Input'!$I$9="Residential",L46*$B$53*12*-1,L46*(SUM(Background!$G$23:$H$23)/1000)*12*-1) -> 0 | M54: =IF('Financial Input'!$I$9="Residential",M46*$B$53*12*-1,M46*(SUM(Background!$G$23:$H$23)/1000)*12*-1) -> 0 | N54: =IF('Financial Input'!$I$9="Residential",N46*$B$53*12*-1,N46*(SUM(Background!$G$23:$H$23)/1000)*12*-1) -> 0 | O54: =IF('Financial Input'!$I$9="Residential",O46*$B$53*12*-1,O46*(SUM(Background!$G$23:$H$23)/1000)*12*-1) -> 0 | P54: =IF('Financial Input'!$I$9="Residential",P46*$B$53*12*-1,P46*(SUM(Background!$G$23:$H$23)/1000)*12*-1) -> 0 | Q54: =IF('Financial Input'!$I$9="Residential",Q46*$B$53*12*-1,Q46*(SUM(Background!$G$23:$H$23)/1000)*12*-1) -> 0 | R54: =IF('Financial Input'!$I$9="Residential",R46*$B$53*12*-1,R46*(SUM(Background!$G$23:$H$23)/1000)*12*-1) -> 0 | S54: =IF('Financial Input'!$I$9="Residential",S46*$B$53*12*-1,S46*(SUM(Background!$G$23:$H$23)/1000)*12*-1) -> 0 | T54: =IF('Financial Input'!$I$9="Residential",T46*$B$53*12*-1,T46*(SUM(Background!$G$23:$H$23)/1000)*12*-1) -> 0 | U54: =IF('Financial Input'!$I$9="Residential",U46*$B$53*12*-1,U46*(SUM(Background!$G$23:$H$23)/1000)*12*-1) -> 0 | V54: =IF('Financial Input'!$I$9="Residential",V46*$B$53*12*-1,V46*(SUM(Background!$G$23:$H$23)/1000)*12*-1) -> 0 | W54: =IF('Financial Input'!$I$9="Residential",W46*$B$53*12*-1,W46*(SUM(Background!$G$23:$H$23)/1000)*12*-1) -> 0 | X54: =IF('Financial Input'!$I$9="Residential",X46*$B$53*12*-1,X46*(SUM(Background!$G$23:$H$23)/1000)*12*-1) -> 0 | Y54: =IF('Financial Input'!$I$9="Residential",Y46*$B$53*12*-1,Y46*(SUM(Background!$G$23:$H$23)/1000)*12*-1) -> 0 | Z54: =IF('Financial Input'!$I$9="Residential",Z46*$B$53*12*-1,Z46*(SUM(Background!$G$23:$H$23)/1000)*12*-1) -> 0 | AA54: =IF('Financial Input'!$I$9="Residential",AA46*$B$53*12*-1,AA46*(SUM(Background!$G$23:$H$23)/1000)*12*-1) -> 0 | AB54: =IF('Financial Input'!$I$9="Residential",AB46*$B$53*12*-1,AB46*(SUM(Background!$G$23:$H$23)/1000)*12*-1) -> 0 | AC54: =IF('Financial Input'!$I$9="Residential",AC46*$B$53*12*-1,AC46*(SUM(Background!$G$23:$H$23)/1000)*12*-1) -> 0 | AD54: =IF('Financial Input'!$I$9="Residential",AD46*$B$53*12*-1,AD46*(SUM(Background!$G$23:$H$23)/1000)*12*-1) -> 0 | AE54: =IF('Financial Input'!$I$9="Residential",AE46*$B$53*12*-1,AE46*(SUM(Background!$G$23:$H$23)/1000)*12*-1) -> 0 | AF54: =IF('Financial Input'!$I$9="Residential",AF46*$B$53*12*-1,AF46*(SUM(Background!$G$23:$H$23)/1000)*12*-1) -> 0
A55: SW Fee | C55: =IF('Financial Input'!$I$9="Residential",C47*$B$53*12*-1,C47*(SUM(Background!$G$23:$H$23)/1000)*12*-1) -> 0 | D55: =IF('Financial Input'!$I$9="Residential",D47*$B$53*12*-1,D47*(SUM(Background!$G$23:$H$23)/1000)*12*-1) -> 0 | E55: =IF('Financial Input'!$I$9="Residential",E47*$B$53*12*-1,E47*(SUM(Background!$G$23:$H$23)/1000)*12*-1) -> 0 | F55: =IF('Financial Input'!$I$9="Residential",F47*$B$53*12*-1,F47*(SUM(Background!$G$23:$H$23)/1000)*12*-1) -> 0 | G55: =IF('Financial Input'!$I$9="Residential",G47*$B$53*12*-1,G47*(SUM(Background!$G$23:$H$23)/1000)*12*-1) -> 0 | H55: =IF('Financial Input'!$I$9="Residential",H47*$B$53*12*-1,H47*(SUM(Background!$G$23:$H$23)/1000)*12*-1) -> 0 | I55: =IF('Financial Input'!$I$9="Residential",I47*$B$53*12*-1,I47*(SUM(Background!$G$23:$H$23)/1000)*12*-1) -> 0 | J55: =IF('Financial Input'!$I$9="Residential",J47*$B$53*12*-1,J47*(SUM(Background!$G$23:$H$23)/1000)*12*-1) -> 0 | K55: =IF('Financial Input'!$I$9="Residential",K47*$B$53*12*-1,K47*(SUM(Background!$G$23:$H$23)/1000)*12*-1) -> 0 | L55: =IF('Financial Input'!$I$9="Residential",L47*$B$53*12*-1,L47*(SUM(Background!$G$23:$H$23)/1000)*12*-1) -> 0 | M55: =IF('Financial Input'!$I$9="Residential",M47*$B$53*12*-1,M47*(SUM(Background!$G$23:$H$23)/1000)*12*-1) -> 0 | N55: =IF('Financial Input'!$I$9="Residential",N47*$B$53*12*-1,N47*(SUM(Background!$G$23:$H$23)/1000)*12*-1) -> 0 | O55: =IF('Financial Input'!$I$9="Residential",O47*$B$53*12*-1,O47*(SUM(Background!$G$23:$H$23)/1000)*12*-1) -> 0 | P55: =IF('Financial Input'!$I$9="Residential",P47*$B$53*12*-1,P47*(SUM(Background!$G$23:$H$23)/1000)*12*-1) -> 0 | Q55: =IF('Financial Input'!$I$9="Residential",Q47*$B$53*12*-1,Q47*(SUM(Background!$G$23:$H$23)/1000)*12*-1) -> 0 | R55: =IF('Financial Input'!$I$9="Residential",R47*$B$53*12*-1,R47*(SUM(Background!$G$23:$H$23)/1000)*12*-1) -> 0 | S55: =IF('Financial Input'!$I$9="Residential",S47*$B$53*12*-1,S47*(SUM(Background!$G$23:$H$23)/1000)*12*-1) -> 0 | T55: =IF('Financial Input'!$I$9="Residential",T47*$B$53*12*-1,T47*(SUM(Background!$G$23:$H$23)/1000)*12*-1) -> 0 | U55: =IF('Financial Input'!$I$9="Residential",U47*$B$53*12*-1,U47*(SUM(Background!$G$23:$H$23)/1000)*12*-1) -> 0 | V55: =IF('Financial Input'!$I$9="Residential",V47*$B$53*12*-1,V47*(SUM(Background!$G$23:$H$23)/1000)*12*-1) -> 0 | W55: =IF('Financial Input'!$I$9="Residential",W47*$B$53*12*-1,W47*(SUM(Background!$G$23:$H$23)/1000)*12*-1) -> 0 | X55: =IF('Financial Input'!$I$9="Residential",X47*$B$53*12*-1,X47*(SUM(Background!$G$23:$H$23)/1000)*12*-1) -> 0 | Y55: =IF('Financial Input'!$I$9="Residential",Y47*$B$53*12*-1,Y47*(SUM(Background!$G$23:$H$23)/1000)*12*-1) -> 0 | Z55: =IF('Financial Input'!$I$9="Residential",Z47*$B$53*12*-1,Z47*(SUM(Background!$G$23:$H$23)/1000)*12*-1) -> 0 | AA55: =IF('Financial Input'!$I$9="Residential",AA47*$B$53*12*-1,AA47*(SUM(Background!$G$23:$H$23)/1000)*12*-1) -> 0 | AB55: =IF('Financial Input'!$I$9="Residential",AB47*$B$53*12*-1,AB47*(SUM(Background!$G$23:$H$23)/1000)*12*-1) -> 0 | AC55: =IF('Financial Input'!$I$9="Residential",AC47*$B$53*12*-1,AC47*(SUM(Background!$G$23:$H$23)/1000)*12*-1) -> 0 | AD55: =IF('Financial Input'!$I$9="Residential",AD47*$B$53*12*-1,AD47*(SUM(Background!$G$23:$H$23)/1000)*12*-1) -> 0 | AE55: =IF('Financial Input'!$I$9="Residential",AE47*$B$53*12*-1,AE47*(SUM(Background!$G$23:$H$23)/1000)*12*-1) -> 0 | AF55: =IF('Financial Input'!$I$9="Residential",AF47*$B$53*12*-1,AF47*(SUM(Background!$G$23:$H$23)/1000)*12*-1) -> 0
A56: Value of SRC-Eligible Retention Based on Selling Price | C56: =$B$50*'Detailed Estimation'!H12 -> 0 | D56: =$B$50*'Detailed Estimation'!I12 -> 0 | E56: =$B$50*'Detailed Estimation'!J12 -> 0 | F56: =$B$50*'Detailed Estimation'!K12 -> 0 | G56: =$B$50*'Detailed Estimation'!L12 -> 0 | H56: =$B$50*'Detailed Estimation'!M12 -> 0 | I56: =$B$50*'Detailed Estimation'!N12 -> 0 | J56: =$B$50*'Detailed Estimation'!O12 -> 0 | K56: =$B$50*'Detailed Estimation'!P12 -> 0 | L56: =$B$50*'Detailed Estimation'!Q12 -> 0 | M56: =$B$50*'Detailed Estimation'!R12 -> 0 | N56: =$B$50*'Detailed Estimation'!S12 -> 0 | O56: =$B$50*'Detailed Estimation'!T12 -> 0 | P56: =$B$50*'Detailed Estimation'!U12 -> 0 | Q56: =$B$50*'Detailed Estimation'!V12 -> 0 | R56: =$B$50*'Detailed Estimation'!W12 -> 0 | S56: =$B$50*'Detailed Estimation'!X12 -> 0 | T56: =$B$50*'Detailed Estimation'!Y12 -> 0 | U56: =$B$50*'Detailed Estimation'!Z12 -> 0 | V56: =$B$50*'Detailed Estimation'!AA12 -> 0 | W56: =$B$50*'Detailed Estimation'!AB12 -> 0 | X56: =$B$50*'Detailed Estimation'!AC12 -> 0 | Y56: =$B$50*'Detailed Estimation'!AD12 -> 0 | Z56: =$B$50*'Detailed Estimation'!AE12 -> 0 | AA56: =$B$50*'Detailed Estimation'!AF12 -> 0 | AB56: =$B$50*'Detailed Estimation'!AG12 -> 0 | AC56: =$B$50*'Detailed Estimation'!AH12 -> 0 | AD56: =$B$50*'Detailed Estimation'!AI12 -> 0 | AE56: =$B$50*'Detailed Estimation'!AJ12 -> 0 | AF56: =$B$50*'Detailed Estimation'!AK12 -> 0
A57: Value of GI Retention Based on Avg Price | C57: =$B$50*C44 -> 0 | D57: =$B$50*D44 -> 0 | E57: 0 | F57: =$B$50*F44 -> 0 | G57: 0 | H57: 0 | I57: 0 | J57: 0 | K57: 0 | L57: 0 | M57: 0 | N57: 0 | O57: =$B$50*O44 -> 0 | P57: 0 | Q57: 0 | R57: 0 | S57: 0 | T57: 0 | U57: 0 | V57: 0 | W57: 0 | X57: 0 | Y57: 0 | Z57: 0 | AA57: 0 | AB57: 0 | AC57: 0 | AD57: 0 | AE57: 0 | AF57: 0
A58: Value of One-Half of GI Retention Based on Avg Price | C58: =C57*0.5 -> 0 | D58: =D57*0.5 -> 0 | E58: 0 | F58: =F57*0.5 -> 0 | G58: 0 | H58: 0 | I58: 0 | J58: 0 | K58: 0 | L58: 0 | M58: 0 | N58: 0 | O58: =O57*0.5 -> 0 | P58: 0 | Q58: 0 | R58: 0 | S58: 0 | T58: 0 | U58: 0 | V58: 0 | W58: 0 | X58: 0 | Y58: 0 | Z58: 0 | AA58: 0 | AB58: 0 | AC58: 0 | AD58: 0 | AE58: 0 | AF58: 0
A59: Remaining Obligation to DDOE | C59: =IF('Financial Input'!$I$17-C58>=0,'Financial Input'!$I$17-C58,0) -> 0 | D59: =IF(C59-D58>=0,C59-D58,0) -> 0 | E59: =IF(D59-E58>=0,D59-E58,0) -> 0 | F59: 0 | G59: 0 | H59: 0 | I59: 0 | J59: 0 | K59: 0 | L59: 0 | M59: 0 | N59: 0 | O59: 0 | P59: 0 | Q59: 0 | R59: 0 | S59: 0 | T59: 0 | U59: 0 | V59: 0 | W59: 0 | X59: 0 | Y59: 0 | Z59: 0 | AA59: 0 | AB59: 0 | AC59: 0 | AD59: 0 | AE59: 0 | AF59: 0
A60: Cumulative Costs | C60: ='Detailed Estimation'!H10 -> -339.36 | D60: =SUM('Detailed Estimation'!$H$10:I10) -> -678.72 | E60: =SUM('Detailed Estimation'!$H$10:J10) -> -1018.08 | F60: =SUM('Detailed Estimation'!$H$10:K10) -> -1357.44 | G60: =SUM('Detailed Estimation'!$H$10:L10) -> -1696.8 | H60: =SUM('Detailed Estimation'!$H$10:M10) -> -2036.16 | I60: =SUM('Detailed Estimation'!$H$10:N10) -> -2036.16 | J60: =SUM('Detailed Estimation'!$H$10:O10) -> -2036.16 | K60: =SUM('Detailed Estimation'!$H$10:P10) -> -2036.16 | L60: =SUM('Detailed Estimation'!$H$10:Q10) -> -2036.16 | M60: =SUM('Detailed Estimation'!$H$10:R10) -> -2036.16 | N60: =SUM('Detailed Estimation'!$H$10:S10) -> -2036.16 | O60: =SUM('Detailed Estimation'!$H$10:T10) -> -2036.16 | P60: =SUM('Detailed Estimation'!$H$10:U10) -> -2036.16 | Q60: =SUM('Detailed Estimation'!$H$10:V10) -> -2036.16 | R60: =SUM('Detailed Estimation'!$H$10:W10) -> -2036.16 | S60: =SUM('Detailed Estimation'!$H$10:X10) -> -2036.16 | T60: =SUM('Detailed Estimation'!$H$10:Y10) -> -2036.16 | U60: =SUM('Detailed Estimation'!$H$10:Z10) -> -2036.16 | V60: =SUM('Detailed Estimation'!$H$10:AA10) -> -2036.16 | W60: =SUM('Detailed Estimation'!$H$10:AB10) -> -2036.16 | X60: =SUM('Detailed Estimation'!$H$10:AC10) -> -2036.16 | Y60: =SUM('Detailed Estimation'!$H$10:AD10) -> -2036.16 | Z60: =SUM('Detailed Estimation'!$H$10:AE10) -> -2036.16 | AA60: =SUM('Detailed Estimation'!$H$10:AF10) -> -2036.16 | AB60: =SUM('Detailed Estimation'!$H$10:AG10) -> -2036.16 | AC60: =SUM('Detailed Estimation'!$H$10:AH10) -> -2036.16 | AD60: =SUM('Detailed Estimation'!$H$10:AI10) -> -2036.16 | AE60: =SUM('Detailed Estimation'!$H$10:AJ10) -> -2036.16 | AF60: =SUM('Detailed Estimation'!$H$10:AK10) -> -2036.16
A61: Cumulative Revenue | C61: ='Detailed Estimation'!H17 -> 0 | D61: =SUM('Detailed Estimation'!$H$17:I17) -> 0 | E61: =SUM('Detailed Estimation'!$H$17:J17) -> 0 | F61: =SUM('Detailed Estimation'!$H$17:K17) -> 0 | G61: =SUM('Detailed Estimation'!$H$17:L17) -> 0 | H61: =SUM('Detailed Estimation'!$H$17:M17) -> 0 | I61: =SUM('Detailed Estimation'!$H$17:N17) -> 0 | J61: =SUM('Detailed Estimation'!$H$17:O17) -> 0 | K61: =SUM('Detailed Estimation'!$H$17:P17) -> 0 | L61: =SUM('Detailed Estimation'!$H$17:Q17) -> 0 | M61: =SUM('Detailed Estimation'!$H$17:R17) -> 0 | N61: =SUM('Detailed Estimation'!$H$17:S17) -> 0 | O61: =SUM('Detailed Estimation'!$H$17:T17) -> 0 | P61: =SUM('Detailed Estimation'!$H$17:U17) -> 0 | Q61: =SUM('Detailed Estimation'!$H$17:V17) -> 0 | R61: =SUM('Detailed Estimation'!$H$17:W17) -> 0 | S61: =SUM('Detailed Estimation'!$H$17:X17) -> 0 | T61: =SUM('Detailed Estimation'!$H$17:Y17) -> 0 | U61: =SUM('Detailed Estimation'!$H$17:Z17) -> 0 | V61: =SUM('Detailed Estimation'!$H$17:AA17) -> 0 | W61: =SUM('Detailed Estimation'!$H$17:AB17) -> 0 | X61: =SUM('Detailed Estimation'!$H$17:AC17) -> 0 | Y61: =SUM('Detailed Estimation'!$H$17:AD17) -> 0 | Z61: =SUM('Detailed Estimation'!$H$17:AE17) -> 0 | AA61: =SUM('Detailed Estimation'!$H$17:AF17) -> 0 | AB61: =SUM('Detailed Estimation'!$H$17:AG17) -> 0 | AC61: =SUM('Detailed Estimation'!$H$17:AH17) -> 0 | AD61: =SUM('Detailed Estimation'!$H$17:AI17) -> 0 | AE61: =SUM('Detailed Estimation'!$H$17:AJ17) -> 0 | AF61: =SUM('Detailed Estimation'!$H$17:AK17) -> 0
A62: Year | B62: =IF('Financial Summary'!$M$3="ROI vs. SRC Price","Price","Cost") -> Cost | C62: =IF('Financial Summary'!$M$3="ROI vs. SRC Price","IRR","Revenue") -> Revenue | E62: Cost | F62: Revenue
A63: =IF(AND(B63>0,B63<>""),D63,"") ->  | B63: =IF('Financial Summary'!$M$3="Cost vs. Revenue",IF(References!E63>0,E63,""),IF(References!E94>0,E94,"")) ->  | C63: =IF('Financial Summary'!$M$3="Cost vs. Revenue",IF(References!F63>0,F63,""),IF(References!F94>0,F94,"")) ->  | D63: 2018 | E63: =-('Detailed Estimation'!$H$10) -> 339.36 | F63: =('Detailed Estimation'!$H$17) -> 0 | G63: =-E63 -> -339.36 | H63: =F63 -> 0 | J63: Year | K63: Detailed Est Data | L63: Detailed Est Data | M63: Cost - BMP LC | N63: Revenue - BMP LC | O63: Cost - IP | P63: Revenue - IP | Q63: Year | R63: Year | S63: Investment Period Costs | T63: Investment Period Revenue | U63: BMP Life Cycle Costs | V63: BMP Life Cycle Revenue
A64: =IF(AND(B64>0,B64<>""),D64,"") ->  | B64: =IF('Financial Summary'!$M$3="Cost vs. Revenue",IF(References!E64>0,E64,""),IF(References!E95>0,E95,"")) ->  | C64: =IF('Financial Summary'!$M$3="Cost vs. Revenue",IF(References!F64>0,F64,""),IF(References!F95>0,F95,"")) ->  | D64: 2019 | E64: =-('Detailed Estimation'!$H$10) -> 339.36 | F64: =IF('Financial Input'!H8>=References!D48,SUM('Detailed Estimation'!$H$17:$I$17),0) -> 0 | G64: =-E64 -> -339.36 | H64: =F64 -> 0 | J64: 0 | K64: ='Detailed Estimation'!H6*-1 -> 0 | M64: =K64 -> 0 | O64: =K64 -> 0 | Q64: 0 | R64: 0 | S64: =K64 -> 0 | U64: =K64 -> 0 | W64: 0
B65: =IF('Financial Summary'!$M$3="Cost vs. Revenue",IF(References!E65>0,E65,""),IF(References!E96>0,E96,"")) ->  | C65: =IF('Financial Summary'!$M$3="Cost vs. Revenue",IF(References!F65>0,F65,""),IF(References!F96>0,F96,"")) ->  | D65: 2020 | E65: =-('Detailed Estimation'!$H$10) -> 339.36 | F65: =IF('Financial Input'!H8>=References!E48,SUM('Detailed Estimation'!$H$17:$J$17),0) -> 0 | G65: -339.36 | H65: 0 | I65: =IF(J65<='Financial Input'!$I$8,J65,'Financial Input'!$I$8) -> 1 | J65: 1 | K65: =(SUMIF('Detailed Estimation'!$H$4:$AK$4,"<="&I65,'Detailed Estimation'!$H$10:$AK$10))*-1 -> 339.36 | L65: =SUMIF('Detailed Estimation'!$H$4:$AK$4,"<="&I65,'Detailed Estimation'!$H$17:$AK$17) -> 0 | M65: =(SUMIF('Detailed Estimation'!$H$4:$AK$4,"<="&J65,'Detailed Estimation'!$H$10:$AK$10))*-1 -> 339.36 | N65: =SUMIF('Detailed Estimation'!$H$4:$AK$4,"<="&J65,'Detailed Estimation'!$H$17:$AK$17) -> 0 | O65: =IF(K65>0,K65,0) -> 339.36 | P65: =IF(L65>0,L65,0) -> 0 | Q65: 1 | R65: 1 | S65: =VLOOKUP(R65,$J$64:$O$94,6,0) -> 339.36 | T65: =P67 -> 0 | U65: =VLOOKUP(R65,$J$64:$M$94,4,0) -> 339.36 | V65: =N67 -> 0 | W65: 1
B66: =IF('Financial Summary'!$M$3="Cost vs. Revenue",IF(References!E66>0,E66,""),IF(References!E97>0,E97,"")) ->  | C66: =IF('Financial Summary'!$M$3="Cost vs. Revenue",IF(References!F66>0,F66,""),IF(References!F97>0,F97,"")) ->  | D66: 2021 | E66: =-('Detailed Estimation'!$H$10) -> 339.36 | F66: =IF('Financial Input'!H8>=References!F48,SUM('Detailed Estimation'!$H$17:$K$17),0) -> 0 | G66: -339.36 | H66: 0 | I66: =IF(J66<='Financial Input'!$I$8,J66,'Financial Input'!$I$8) -> 2 | J66: 2 | K66: =(SUMIF('Detailed Estimation'!$H$4:$AK$4,"<="&I66,'Detailed Estimation'!$H$10:$AK$10))*-1 -> 678.72 | L66: =SUMIF('Detailed Estimation'!$H$4:$AK$4,"<="&I66,'Detailed Estimation'!$H$17:$AK$17) -> 0 | M66: =(SUMIF('Detailed Estimation'!$H$4:$AK$4,"<="&J66,'Detailed Estimation'!$H$10:$AK$10))*-1 -> 678.72 | N66: =SUMIF('Detailed Estimation'!$H$4:$AK$4,"<="&J66,'Detailed Estimation'!$H$17:$AK$17) -> 0 | O66: =IF(J66=I66,K66,"") -> 678.72 | P66: =IF(I66=J66,L66,"") -> 0 | Q66: 2 | R66: 2 | S66: =VLOOKUP(R66,$J$64:$O$94,6,0) -> 678.72 | T66: =T65 -> 0 | U66: =VLOOKUP(R66,$J$64:$M$94,4,0) -> 678.72 | V66: =V65 -> 0 | W66: 4
B67: =IF('Financial Summary'!$M$3="Cost vs. Revenue",IF(References!E67>0,E67,""),IF(References!E98>0,E98,"")) ->  | C67: =IF('Financial Summary'!$M$3="Cost vs. Revenue",IF(References!F67>0,F67,""),IF(References!F98>0,F98,"")) ->  | D67: 2022 | E67: =-('Detailed Estimation'!$H$10) -> 339.36 | F67: =IF('Financial Input'!H8>=References!G48,SUM('Detailed Estimation'!$H$17:$L$17),0) -> 0 | G67: -339.36 | H67: 0 | I67: =IF(J67<='Financial Input'!$I$8,J67,'Financial Input'!$I$8) -> 3 | J67: 3 | K67: =(SUMIF('Detailed Estimation'!$H$4:$AK$4,"<="&I67,'Detailed Estimation'!$H$10:$AK$10))*-1 -> 1018.08 | L67: =SUMIF('Detailed Estimation'!$H$4:$AK$4,"<="&I67,'Detailed Estimation'!$H$17:$AK$17) -> 0 | M67: =(SUMIF('Detailed Estimation'!$H$4:$AK$4,"<="&J67,'Detailed Estimation'!$H$10:$AK$10))*-1 -> 1018.08 | N67: =SUMIF('Detailed Estimation'!$H$4:$AK$4,"<="&J67,'Detailed Estimation'!$H$17:$AK$17) -> 0 | O67: 1018.08 | P67: 0 | Q67: 3 | R67: 3 | S67: 1018.08 | T67: =T66 -> 0 | U67: 1018.08 | V67: =V66 -> 0 | W67: 7
B68: =IF('Financial Summary'!$M$3="Cost vs. Revenue",IF(References!E68>0,E68,""),IF(References!E99>0,E99,"")) ->  | C68: =IF('Financial Summary'!$M$3="Cost vs. Revenue",IF(References!F68>0,F68,""),IF(References!F99>0,F99,"")) ->  | D68: 2023 | E68: =-('Detailed Estimation'!$H$10) -> 339.36 | F68: =IF('Financial Input'!H8>=References!H48,SUM('Detailed Estimation'!$H$17:$M$17),0) -> 0 | G68: -339.36 | H68: 0 | I68: =IF(J68<='Financial Input'!$I$8,J68,'Financial Input'!$I$8) -> 4 | J68: 4 | K68: =(SUMIF('Detailed Estimation'!$H$4:$AK$4,"<="&I68,'Detailed Estimation'!$H$10:$AK$10))*-1 -> 1357.44 | L68: =SUMIF('Detailed Estimation'!$H$4:$AK$4,"<="&I68,'Detailed Estimation'!$H$17:$AK$17) -> 0 | M68: =(SUMIF('Detailed Estimation'!$H$4:$AK$4,"<="&J68,'Detailed Estimation'!$H$10:$AK$10))*-1 -> 1357.44 | N68: =SUMIF('Detailed Estimation'!$H$4:$AK$4,"<="&J68,'Detailed Estimation'!$H$17:$AK$17) -> 0 | O68: 1357.44 | P68: 0 | Q68: 4 | R68: 4 | S68: =S69 -> 1357.44 | T68: =P67 -> 0 | U68: =U69 -> 1357.44 | V68: =N67 -> 0 | W68: 10
B69: =IF('Financial Summary'!$M$3="Cost vs. Revenue",IF(References!E69>0,E69,""),IF(References!E100>0,E100,"")) ->  | C69: =IF('Financial Summary'!$M$3="Cost vs. Revenue",IF(References!F69>0,F69,""),IF(References!F100>0,F100,"")) ->  | D69: 2024 | E69: =-('Detailed Estimation'!$H$10) -> 339.36 | F69: =IF('Financial Input'!H8>=References!I48,SUM('Detailed Estimation'!$H$17:$N$17),0) -> 0 | G69: -339.36 | H69: 0 | I69: =IF(J69<='Financial Input'!$I$8,J69,'Financial Input'!$I$8) -> 5 | J69: 5 | K69: =(SUMIF('Detailed Estimation'!$H$4:$AK$4,"<="&I69,'Detailed Estimation'!$H$10:$AK$10))*-1 -> 1696.8 | L69: =SUMIF('Detailed Estimation'!$H$4:$AK$4,"<="&I69,'Detailed Estimation'!$H$17:$AK$17) -> 0 | M69: =(SUMIF('Detailed Estimation'!$H$4:$AK$4,"<="&J69,'Detailed Estimation'!$H$10:$AK$10))*-1 -> 1696.8 | N69: =SUMIF('Detailed Estimation'!$H$4:$AK$4,"<="&J69,'Detailed Estimation'!$H$17:$AK$17) -> 0 | O69: 1696.8 | P69: 0 | Q69: 5 | R69: 4 | S69: =VLOOKUP(R69,$J$64:$O$94,6,0) -> 1357.44 | T69: =P70 -> 0 | U69: =VLOOKUP(R69,$J$64:$M$94,4,0) -> 1357.44 | V69: =N70 -> 0 | W69: 13
B70: =IF('Financial Summary'!$M$3="Cost vs. Revenue",IF(References!E70>0,E70,""),IF(References!E101>0,E101,"")) ->  | C70: =IF('Financial Summary'!$M$3="Cost vs. Revenue",IF(References!F70>0,F70,""),IF(References!F101>0,F101,"")) ->  | D70: 2025 | E70: =-('Detailed Estimation'!$H$10) -> 339.36 | F70: =IF('Financial Input'!H8>=References!J48,SUM('Detailed Estimation'!$H$17:$O$17),0) -> 0 | G70: -339.36 | H70: 0 | I70: =IF(J70<='Financial Input'!$I$8,J70,'Financial Input'!$I$8) -> 6 | J70: 6 | K70: =(SUMIF('Detailed Estimation'!$H$4:$AK$4,"<="&I70,'Detailed Estimation'!$H$10:$AK$10))*-1 -> 2036.16 | L70: =SUMIF('Detailed Estimation'!$H$4:$AK$4,"<="&I70,'Detailed Estimation'!$H$17:$AK$17) -> 0 | M70: =(SUMIF('Detailed Estimation'!$H$4:$AK$4,"<="&J70,'Detailed Estimation'!$H$10:$AK$10))*-1 -> 2036.16 | N70: =SUMIF('Detailed Estimation'!$H$4:$AK$4,"<="&J70,'Detailed Estimation'!$H$17:$AK$17) -> 0 | O70: 2036.16 | P70: 0 | Q70: 6 | R70: 5 | S70: =VLOOKUP(R70,$J$65:$O$94,6,0) -> 1696.8 | T70: =T69 -> 0 | U70: =VLOOKUP(R70,$J$64:$M$94,4,0) -> 1696.8 | V70: =V69 -> 0 | W70: 16
B71: =IF('Financial Summary'!$M$3="Cost vs. Revenue",IF(References!E71>0,E71,""),IF(References!E102>0,E102,"")) ->  | C71: =IF('Financial Summary'!$M$3="Cost vs. Revenue",IF(References!F71>0,F71,""),IF(References!F102>0,F102,"")) ->  | D71: 2026 | E71: =-('Detailed Estimation'!$H$10) -> 339.36 | F71: =IF('Financial Input'!H8>=References!K48,SUM('Detailed Estimation'!$H$17:$P$17),0) -> 0 | G71: -339.36 | H71: 0 | I71: =IF(J71<='Financial Input'!$I$8,J71,'Financial Input'!$I$8) -> 7 | J71: 7 | K71: =(SUMIF('Detailed Estimation'!$H$4:$AK$4,"<="&I71,'Detailed Estimation'!$H$10:$AK$10))*-1 -> 2036.16 | L71: =SUMIF('Detailed Estimation'!$H$4:$AK$4,"<="&I71,'Detailed Estimation'!$H$17:$AK$17) -> 0 | M71: =(SUMIF('Detailed Estimation'!$H$4:$AK$4,"<="&J71,'Detailed Estimation'!$H$10:$AK$10))*-1 -> 2036.16 | N71: =SUMIF('Detailed Estimation'!$H$4:$AK$4,"<="&J71,'Detailed Estimation'!$H$17:$AK$17) -> 0 | O71: 2036.16 | P71: 0 | Q71: 7 | R71: 6 | S71: =VLOOKUP(R71,$J$65:$O$94,6,0) -> 2036.16 | T71: =T70 -> 0 | U71: =VLOOKUP(R71,$J$64:$M$94,4,0) -> 2036.16 | V71: =V70 -> 0 | W71: 19
B72: =IF('Financial Summary'!$M$3="Cost vs. Revenue",IF(References!E72>0,E72,""),IF(References!E103>0,E103,"")) ->  | C72: =IF('Financial Summary'!$M$3="Cost vs. Revenue",IF(References!F72>0,F72,""),IF(References!F103>0,F103,"")) ->  | D72: 2027 | E72: =-('Detailed Estimation'!$H$10) -> 339.36 | F72: =IF('Financial Input'!H8>=References!L48,SUM('Detailed Estimation'!$H$17:$Q$17),0) -> 0 | G72: -339.36 | H72: 0 | I72: =IF(J72<='Financial Input'!$I$8,J72,'Financial Input'!$I$8) -> 8 | J72: 8 | K72: =(SUMIF('Detailed Estimation'!$H$4:$AK$4,"<="&I72,'Detailed Estimation'!$H$10:$AK$10))*-1 -> 2036.16 | L72: =SUMIF('Detailed Estimation'!$H$4:$AK$4,"<="&I72,'Detailed Estimation'!$H$17:$AK$17) -> 0 | M72: =(SUMIF('Detailed Estimation'!$H$4:$AK$4,"<="&J72,'Detailed Estimation'!$H$10:$AK$10))*-1 -> 2036.16 | N72: =SUMIF('Detailed Estimation'!$H$4:$AK$4,"<="&J72,'Detailed Estimation'!$H$17:$AK$17) -> 0 | O72: 2036.16 | P72: 0 | Q72: 8 | R72: 7 | S72: =S73 -> 2036.16 | T72: =P70 -> 0 | U72: =U73 -> 2036.16 | V72: =N70 -> 0 | W72: 22
B73: =IF('Financial Summary'!$M$3="Cost vs. Revenue",IF(References!E73>0,E73,""),IF(References!E104>0,E104,"")) ->  | C73: =IF('Financial Summary'!$M$3="Cost vs. Revenue",IF(References!F73>0,F73,""),IF(References!F104>0,F104,"")) ->  | D73: 2028 | E73: =-('Detailed Estimation'!$H$10) -> 339.36 | F73: =IF('Financial Input'!H8>=References!M48,SUM('Detailed Estimation'!$H$17:$R$17),0) -> 0 | G73: -339.36 | H73: 0 | I73: =IF(J73<='Financial Input'!$I$8,J73,'Financial Input'!$I$8) -> 9 | J73: 9 | K73: =(SUMIF('Detailed Estimation'!$H$4:$AK$4,"<="&I73,'Detailed Estimation'!$H$10:$AK$10))*-1 -> 2036.16 | L73: =SUMIF('Detailed Estimation'!$H$4:$AK$4,"<="&I73,'Detailed Estimation'!$H$17:$AK$17) -> 0 | M73: =(SUMIF('Detailed Estimation'!$H$4:$AK$4,"<="&J73,'Detailed Estimation'!$H$10:$AK$10))*-1 -> 2036.16 | N73: =SUMIF('Detailed Estimation'!$H$4:$AK$4,"<="&J73,'Detailed Estimation'!$H$17:$AK$17) -> 0 | O73: 2036.16 | P73: 0 | Q73: 9 | R73: 7 | S73: =VLOOKUP(R73,$J$65:$O$94,6,0) -> 2036.16 | T73: =P73 -> 0 | U73: =VLOOKUP(R73,$J$64:$M$94,4,0) -> 2036.16 | V73: =N73 -> 0 | W73: 25
B74: =IF('Financial Summary'!$M$3="Cost vs. Revenue",IF(References!E74>0,E74,""),IF(References!E105>0,E105,"")) ->  | C74: =IF('Financial Summary'!$M$3="Cost vs. Revenue",IF(References!F74>0,F74,""),IF(References!F105>0,F105,"")) ->  | D74: 2029 | E74: =-('Detailed Estimation'!$H$10) -> 339.36 | F74: =IF('Financial Input'!H8>=References!N48,SUM('Detailed Estimation'!$H$17:$S$17),0) -> 0 | G74: -339.36 | H74: 0 | I74: =IF(J74<='Financial Input'!$I$8,J74,'Financial Input'!$I$8) -> 10 | J74: 10 | K74: =(SUMIF('Detailed Estimation'!$H$4:$AK$4,"<="&I74,'Detailed Estimation'!$H$10:$AK$10))*-1 -> 2036.16 | L74: =SUMIF('Detailed Estimation'!$H$4:$AK$4,"<="&I74,'Detailed Estimation'!$H$17:$AK$17) -> 0 | M74: =(SUMIF('Detailed Estimation'!$H$4:$AK$4,"<="&J74,'Detailed Estimation'!$H$10:$AK$10))*-1 -> 2036.16 | N74: =SUMIF('Detailed Estimation'!$H$4:$AK$4,"<="&J74,'Detailed Estimation'!$H$17:$AK$17) -> 0 | O74: 2036.16 | P74: 0 | Q74: 10 | R74: 8 | S74: =VLOOKUP(R74,$J$65:$O$94,6,0) -> 2036.16 | T74: =T73 -> 0 | U74: =VLOOKUP(R74,$J$64:$M$94,4,0) -> 2036.16 | V74: =V73 -> 0 | W74: 28
B75: =IF('Financial Summary'!$M$3="Cost vs. Revenue",IF(References!E75>0,E75,""),IF(References!E106>0,E106,"")) ->  | C75: =IF('Financial Summary'!$M$3="Cost vs. Revenue",IF(References!F75>0,F75,""),IF(References!F106>0,F106,"")) ->  | D75: 2030 | E75: =-('Detailed Estimation'!$H$10) -> 339.36 | F75: =IF('Financial Input'!H8>=References!O48,SUM('Detailed Estimation'!$H$17:$T$17),0) -> 0 | G75: -339.36 | H75: 0 | I75: =IF(J75<='Financial Input'!$I$8,J75,'Financial Input'!$I$8) -> 11 | J75: 11 | K75: =(SUMIF('Detailed Estimation'!$H$4:$AK$4,"<="&I75,'Detailed Estimation'!$H$10:$AK$10))*-1 -> 2036.16 | L75: =SUMIF('Detailed Estimation'!$H$4:$AK$4,"<="&I75,'Detailed Estimation'!$H$17:$AK$17) -> 0 | M75: =(SUMIF('Detailed Estimation'!$H$4:$AK$4,"<="&J75,'Detailed Estimation'!$H$10:$AK$10))*-1 -> 2036.16 | N75: =SUMIF('Detailed Estimation'!$H$4:$AK$4,"<="&J75,'Detailed Estimation'!$H$17:$AK$17) -> 0 | O75: 2036.16 | P75: 0 | Q75: 11 | R75: 9 | S75: =VLOOKUP(R75,$J$65:$O$94,6,0) -> 2036.16 | T75: =T74 -> 0 | U75: =VLOOKUP(R75,$J$64:$M$94,4,0) -> 2036.16 | V75: =V74 -> 0
B76: =IF('Financial Summary'!$M$3="Cost vs. Revenue",IF(References!E76>0,E76,""),IF(References!E107>0,E107,"")) ->  | C76: =IF('Financial Summary'!$M$3="Cost vs. Revenue",IF(References!F76>0,F76,""),IF(References!F107>0,F107,"")) ->  | D76: 2031 | E76: =-('Detailed Estimation'!$H$10) -> 339.36 | F76: =IF('Financial Input'!H8>=References!P48,SUM('Detailed Estimation'!$H$17:$U$17),0) -> 0 | G76: -339.36 | H76: 0 | I76: =IF(J76<='Financial Input'!$I$8,J76,'Financial Input'!$I$8) -> 12 | J76: 12 | K76: =(SUMIF('Detailed Estimation'!$H$4:$AK$4,"<="&I76,'Detailed Estimation'!$H$10:$AK$10))*-1 -> 2036.16 | L76: =SUMIF('Detailed Estimation'!$H$4:$AK$4,"<="&I76,'Detailed Estimation'!$H$17:$AK$17) -> 0 | M76: =(SUMIF('Detailed Estimation'!$H$4:$AK$4,"<="&J76,'Detailed Estimation'!$H$10:$AK$10))*-1 -> 2036.16 | N76: =SUMIF('Detailed Estimation'!$H$4:$AK$4,"<="&J76,'Detailed Estimation'!$H$17:$AK$17) -> 0 | O76: 2036.16 | P76: 0 | Q76: 12 | R76: 10 | S76: =S77 -> 2036.16 | T76: =P73 -> 0 | U76: =U77 -> 2036.16 | V76: =N73 -> 0
B77: =IF('Financial Summary'!$M$3="Cost vs. Revenue",IF(References!E77>0,E77,""),IF(References!E108>0,E108,"")) ->  | C77: =IF('Financial Summary'!$M$3="Cost vs. Revenue",IF(References!F77>0,F77,""),IF(References!F108>0,F108,"")) ->  | D77: 2032 | E77: =-('Detailed Estimation'!$H$10) -> 339.36 | F77: =IF('Financial Input'!H8>=References!Q48,SUM('Detailed Estimation'!$H$17:$V$17),0) -> 0 | G77: -339.36 | H77: 0 | I77: =IF(J77<='Financial Input'!$I$8,J77,'Financial Input'!$I$8) -> 12 | J77: 13 | K77: =(SUMIF('Detailed Estimation'!$H$4:$AK$4,"<="&I77,'Detailed Estimation'!$H$10:$AK$10))*-1 -> 2036.16 | L77: =SUMIF('Detailed Estimation'!$H$4:$AK$4,"<="&I77,'Detailed Estimation'!$H$17:$AK$17) -> 0 | M77: =(SUMIF('Detailed Estimation'!$H$4:$AK$4,"<="&J77,'Detailed Estimation'!$H$10:$AK$10))*-1 -> 2036.16 | N77: =SUMIF('Detailed Estimation'!$H$4:$AK$4,"<="&J77,'Detailed Estimation'!$H$17:$AK$17) -> 0 | Q77: 13 | R77: 10 | S77: =VLOOKUP(R77,$J$65:$O$94,6,0) -> 2036.16 | T77: =P76 -> 0 | U77: =VLOOKUP(R77,$J$64:$M$94,4,0) -> 2036.16 | V77: =N76 -> 0
B78: =IF('Financial Summary'!$M$3="Cost vs. Revenue",IF(References!E78>0,E78,""),IF(References!E109>0,E109,"")) ->  | C78: =IF('Financial Summary'!$M$3="Cost vs. Revenue",IF(References!F78>0,F78,""),IF(References!F109>0,F109,"")) ->  | D78: 2033 | E78: =-('Detailed Estimation'!$H$10) -> 339.36 | F78: =IF('Financial Input'!H8>=References!R48,SUM('Detailed Estimation'!$H$17:$W$17),0) -> 0 | G78: -339.36 | H78: 0 | I78: =IF(J78<='Financial Input'!$I$8,J78,'Financial Input'!$I$8) -> 12 | J78: 14 | K78: =(SUMIF('Detailed Estimation'!$H$4:$AK$4,"<="&I78,'Detailed Estimation'!$H$10:$AK$10))*-1 -> 2036.16 | L78: =SUMIF('Detailed Estimation'!$H$4:$AK$4,"<="&I78,'Detailed Estimation'!$H$17:$AK$17) -> 0 | M78: =(SUMIF('Detailed Estimation'!$H$4:$AK$4,"<="&J78,'Detailed Estimation'!$H$10:$AK$10))*-1 -> 2036.16 | N78: =SUMIF('Detailed Estimation'!$H$4:$AK$4,"<="&J78,'Detailed Estimation'!$H$17:$AK$17) -> 0 | Q78: 14 | R78: 11 | S78: =VLOOKUP(R78,$J$65:$O$94,6,0) -> 2036.16 | T78: =T77 -> 0 | U78: =VLOOKUP(R78,$J$64:$M$94,4,0) -> 2036.16 | V78: =V77 -> 0
B79: =IF('Financial Summary'!$M$3="Cost vs. Revenue",IF(References!E79>0,E79,""),IF(References!E110>0,E110,"")) ->  | C79: =IF('Financial Summary'!$M$3="Cost vs. Revenue",IF(References!F79>0,F79,""),IF(References!F110>0,F110,"")) ->  | D79: 2034 | E79: =-('Detailed Estimation'!$H$10) -> 339.36 | F79: =IF('Financial Input'!H8>=References!S48,SUM('Detailed Estimation'!$H$17:$X$17),0) -> 0 | G79: -339.36 | H79: 0 | I79: =IF(J79<='Financial Input'!$I$8,J79,'Financial Input'!$I$8) -> 12 | J79: 15 | K79: =(SUMIF('Detailed Estimation'!$H$4:$AK$4,"<="&I79,'Detailed Estimation'!$H$10:$AK$10))*-1 -> 2036.16 | L79: =SUMIF('Detailed Estimation'!$H$4:$AK$4,"<="&I79,'Detailed Estimation'!$H$17:$AK$17) -> 0 | M79: =(SUMIF('Detailed Estimation'!$H$4:$AK$4,"<="&J79,'Detailed Estimation'!$H$10:$AK$10))*-1 -> 2036.16 | N79: =SUMIF('Detailed Estimation'!$H$4:$AK$4,"<="&J79,'Detailed Estimation'!$H$17:$AK$17) -> 0 | Q79: 15 | R79: 12 | S79: =VLOOKUP(R79,$J$65:$O$94,6,0) -> 2036.16 | T79: =T78 -> 0 | U79: =VLOOKUP(R79,$J$64:$M$94,4,0) -> 2036.16 | V79: =V78 -> 0
B80: =IF('Financial Summary'!$M$3="Cost vs. Revenue",IF(References!E80>0,E80,""),IF(References!E111>0,E111,"")) ->  | C80: =IF('Financial Summary'!$M$3="Cost vs. Revenue",IF(References!F80>0,F80,""),IF(References!F111>0,F111,"")) ->  | D80: 2035 | E80: =-('Detailed Estimation'!$H$10) -> 339.36 | F80: =IF('Financial Input'!H8>=References!T48,SUM('Detailed Estimation'!$H$17:$Y$17),0) -> 0 | G80: -339.36 | H80: 0 | I80: =IF(J80<='Financial Input'!$I$8,J80,'Financial Input'!$I$8) -> 12 | J80: 16 | K80: =(SUMIF('Detailed Estimation'!$H$4:$AK$4,"<="&I80,'Detailed Estimation'!$H$10:$AK$10))*-1 -> 2036.16 | L80: =SUMIF('Detailed Estimation'!$H$4:$AK$4,"<="&I80,'Detailed Estimation'!$H$17:$AK$17) -> 0 | M80: =(SUMIF('Detailed Estimation'!$H$4:$AK$4,"<="&J80,'Detailed Estimation'!$H$10:$AK$10))*-1 -> 2036.16 | N80: =SUMIF('Detailed Estimation'!$H$4:$AK$4,"<="&J80,'Detailed Estimation'!$H$17:$AK$17) -> 0 | Q80: 16 | R80: 12 | S80: =S81 ->  | T80: =P76 -> 0 | U80: =U81 -> 2036.16 | V80: =N76 -> 0
B81: =IF('Financial Summary'!$M$3="Cost vs. Revenue",IF(References!E81>0,E81,""),IF(References!E112>0,E112,"")) ->  | C81: =IF('Financial Summary'!$M$3="Cost vs. Revenue",IF(References!F81>0,F81,""),IF(References!F112>0,F112,"")) ->  | D81: 2036 | E81: =-('Detailed Estimation'!$H$10) -> 339.36 | F81: =IF('Financial Input'!H8>=References!U48,SUM('Detailed Estimation'!$H$17:$Z$17),0) -> 0 | G81: -339.36 | H81: 0 | I81: =IF(J81<='Financial Input'!$I$8,J81,'Financial Input'!$I$8) -> 12 | J81: 17 | K81: =(SUMIF('Detailed Estimation'!$H$4:$AK$4,"<="&I81,'Detailed Estimation'!$H$10:$AK$10))*-1 -> 2036.16 | L81: =SUMIF('Detailed Estimation'!$H$4:$AK$4,"<="&I81,'Detailed Estimation'!$H$17:$AK$17) -> 0 | M81: =(SUMIF('Detailed Estimation'!$H$4:$AK$4,"<="&J81,'Detailed Estimation'!$H$10:$AK$10))*-1 -> 2036.16 | N81: =SUMIF('Detailed Estimation'!$H$4:$AK$4,"<="&J81,'Detailed Estimation'!$H$17:$AK$17) -> 0 | Q81: 17 | R81: 13 | S81: =VLOOKUP(R81,$J$65:$O$94,6,0) ->  | T81: =P79 ->  | U81: =VLOOKUP(R81,$J$64:$M$94,4,0) -> 2036.16 | V81: =N79 -> 0
B82: =IF('Financial Summary'!$M$3="Cost vs. Revenue",IF(References!E82>0,E82,""),IF(References!E113>0,E113,"")) ->  | C82: =IF('Financial Summary'!$M$3="Cost vs. Revenue",IF(References!F82>0,F82,""),IF(References!F113>0,F113,"")) ->  | D82: 2037 | E82: =-('Detailed Estimation'!$H$10) -> 339.36 | F82: =IF('Financial Input'!H8>=References!V48,SUM('Detailed Estimation'!$H$17:$AA$17),0) -> 0 | G82: -339.36 | H82: 0 | I82: =IF(J82<='Financial Input'!$I$8,J82,'Financial Input'!$I$8) -> 12 | J82: 18 | K82: =(SUMIF('Detailed Estimation'!$H$4:$AK$4,"<="&I82,'Detailed Estimation'!$H$10:$AK$10))*-1 -> 2036.16 | L82: =SUMIF('Detailed Estimation'!$H$4:$AK$4,"<="&I82,'Detailed Estimation'!$H$17:$AK$17) -> 0 | M82: =(SUMIF('Detailed Estimation'!$H$4:$AK$4,"<="&J82,'Detailed Estimation'!$H$10:$AK$10))*-1 -> 2036.16 | N82: =SUMIF('Detailed Estimation'!$H$4:$AK$4,"<="&J82,'Detailed Estimation'!$H$17:$AK$17) -> 0 | Q82: 18 | R82: 14 | S82: =VLOOKUP(R82,$J$64:$O$94,6,0) ->  | T82: =T81 ->  | U82: =VLOOKUP(R82,$J$64:$M$94,4,0) -> 2036.16 | V82: =V81 -> 0
B83: =IF('Financial Summary'!$M$3="Cost vs. Revenue",IF(References!E83>0,E83,""),IF(References!E114>0,E114,"")) ->  | D83: 2038 | E83: =-('Detailed Estimation'!$H$10) -> 339.36 | F83: =('Detailed Estimation'!$H$17) -> 0 | G83: -339.36 | H83: 0 | I83: =IF(J83<='Financial Input'!$I$8,J83,'Financial Input'!$I$8) -> 12 | J83: 19 | K83: =(SUMIF('Detailed Estimation'!$H$4:$AK$4,"<="&I83,'Detailed Estimation'!$H$10:$AK$10))*-1 -> 2036.16 | L83: =SUMIF('Detailed Estimation'!$H$4:$AK$4,"<="&I83,'Detailed Estimation'!$H$17:$AK$17) -> 0 | M83: =(SUMIF('Detailed Estimation'!$H$4:$AK$4,"<="&J83,'Detailed Estimation'!$H$10:$AK$10))*-1 -> 2036.16 | N83: =SUMIF('Detailed Estimation'!$H$4:$AK$4,"<="&J83,'Detailed Estimation'!$H$17:$AK$17) -> 0 | Q83: 19 | R83: 15 | S83: =VLOOKUP(R83,$J$64:$O$94,6,0) ->  | T83: =T82 ->  | U83: =VLOOKUP(R83,$J$64:$M$94,4,0) -> 2036.16 | V83: =V82 -> 0
B84: =IF('Financial Summary'!$M$3="Cost vs. Revenue",IF(References!E84>0,E84,""),IF(References!E115>0,E115,"")) ->  | D84: 2039 | E84: =-('Detailed Estimation'!$H$10) -> 339.36 | F84: =IF('Financial Input'!H24>=References!D68,SUM('Detailed Estimation'!$H$17:$I$17),0) -> 0 | G84: -339.36 | H84: 0 | I84: =IF(J84<='Financial Input'!$I$8,J84,'Financial Input'!$I$8) -> 12 | J84: 20 | K84: =(SUMIF('Detailed Estimation'!$H$4:$AK$4,"<="&I84,'Detailed Estimation'!$H$10:$AK$10))*-1 -> 2036.16 | L84: =SUMIF('Detailed Estimation'!$H$4:$AK$4,"<="&I84,'Detailed Estimation'!$H$17:$AK$17) -> 0 | M84: =(SUMIF('Detailed Estimation'!$H$4:$AK$4,"<="&J84,'Detailed Estimation'!$H$10:$AK$10))*-1 -> 2036.16 | N84: =SUMIF('Detailed Estimation'!$H$4:$AK$4,"<="&J84,'Detailed Estimation'!$H$17:$AK$17) -> 0 | Q84: 20 | R84: 16 | S84: =S85 ->  | T84: =P79 ->  | U84: =U85 -> 2036.16 | V84: =N79 -> 0
B85: =IF('Financial Summary'!$M$3="Cost vs. Revenue",IF(References!E85>0,E85,""),IF(References!E116>0,E116,"")) ->  | D85: 2040 | E85: =-('Detailed Estimation'!$H$10) -> 339.36 | F85: =IF('Financial Input'!H24>=References!E68,SUM('Detailed Estimation'!$H$17:$J$17),0) -> 0 | G85: -339.36 | H85: 0 | I85: =IF(J85<='Financial Input'!$I$8,J85,'Financial Input'!$I$8) -> 12 | J85: 21 | K85: =(SUMIF('Detailed Estimation'!$H$4:$AK$4,"<="&I85,'Detailed Estimation'!$H$10:$AK$10))*-1 -> 2036.16 | L85: =SUMIF('Detailed Estimation'!$H$4:$AK$4,"<="&I85,'Detailed Estimation'!$H$17:$AK$17) -> 0 | M85: =(SUMIF('Detailed Estimation'!$H$4:$AK$4,"<="&J85,'Detailed Estimation'!$H$10:$AK$10))*-1 -> 2036.16 | N85: =SUMIF('Detailed Estimation'!$H$4:$AK$4,"<="&J85,'Detailed Estimation'!$H$17:$AK$17) -> 0 | Q85: 21 | R85: 16 | S85: =VLOOKUP(R85,$J$64:$O$94,6,0) ->  | T85: =P82 ->  | U85: =VLOOKUP(R85,$J$64:$M$94,4,0) -> 2036.16 | V85: =N82 -> 0
B86: =IF('Financial Summary'!$M$3="Cost vs. Revenue",IF(References!E86>0,E86,""),IF(References!E117>0,E117,"")) ->  | D86: 2041 | E86: =-('Detailed Estimation'!$H$10) -> 339.36 | F86: =IF('Financial Input'!H24>=References!F68,SUM('Detailed Estimation'!$H$17:$K$17),0) -> 0 | G86: -339.36 | H86: 0 | I86: =IF(J86<='Financial Input'!$I$8,J86,'Financial Input'!$I$8) -> 12 | J86: 22 | K86: =(SUMIF('Detailed Estimation'!$H$4:$AK$4,"<="&I86,'Detailed Estimation'!$H$10:$AK$10))*-1 -> 2036.16 | L86: =SUMIF('Detailed Estimation'!$H$4:$AK$4,"<="&I86,'Detailed Estimation'!$H$17:$AK$17) -> 0 | M86: =(SUMIF('Detailed Estimation'!$H$4:$AK$4,"<="&J86,'Detailed Estimation'!$H$10:$AK$10))*-1 -> 2036.16 | N86: =SUMIF('Detailed Estimation'!$H$4:$AK$4,"<="&J86,'Detailed Estimation'!$H$17:$AK$17) -> 0 | Q86: 22 | R86: 17 | S86: =VLOOKUP(R86,$J$64:$O$94,6,0) ->  | T86: =T85 ->  | U86: =VLOOKUP(R86,$J$64:$M$94,4,0) -> 2036.16 | V86: =V85 -> 0
B87: =IF('Financial Summary'!$M$3="Cost vs. Revenue",IF(References!E87>0,E87,""),IF(References!E118>0,E118,"")) ->  | D87: 2042 | E87: =-('Detailed Estimation'!$H$10) -> 339.36 | F87: =IF('Financial Input'!H24>=References!G68,SUM('Detailed Estimation'!$H$17:$L$17),0) -> 0 | G87: -339.36 | H87: 0 | I87: =IF(J87<='Financial Input'!$I$8,J87,'Financial Input'!$I$8) -> 12 | J87: 23 | K87: =(SUMIF('Detailed Estimation'!$H$4:$AK$4,"<="&I87,'Detailed Estimation'!$H$10:$AK$10))*-1 -> 2036.16 | L87: =SUMIF('Detailed Estimation'!$H$4:$AK$4,"<="&I87,'Detailed Estimation'!$H$17:$AK$17) -> 0 | M87: =(SUMIF('Detailed Estimation'!$H$4:$AK$4,"<="&J87,'Detailed Estimation'!$H$10:$AK$10))*-1 -> 2036.16 | N87: =SUMIF('Detailed Estimation'!$H$4:$AK$4,"<="&J87,'Detailed Estimation'!$H$17:$AK$17) -> 0 | Q87: 23 | R87: 18 | S87: =VLOOKUP(R87,$J$64:$O$94,6,0) ->  | T87: =T86 ->  | U87: =VLOOKUP(R87,$J$64:$M$94,4,0) -> 2036.16 | V87: =V86 -> 0
B88: =IF('Financial Summary'!$M$3="Cost vs. Revenue",IF(References!E88>0,E88,""),IF(References!E119>0,E119,"")) ->  | D88: 2043 | E88: =-('Detailed Estimation'!$H$10) -> 339.36 | F88: =IF('Financial Input'!H24>=References!H68,SUM('Detailed Estimation'!$H$17:$M$17),0) -> 0 | G88: -339.36 | H88: 0 | I88: =IF(J88<='Financial Input'!$I$8,J88,'Financial Input'!$I$8) -> 12 | J88: 24 | K88: =(SUMIF('Detailed Estimation'!$H$4:$AK$4,"<="&I88,'Detailed Estimation'!$H$10:$AK$10))*-1 -> 2036.16 | L88: =SUMIF('Detailed Estimation'!$H$4:$AK$4,"<="&I88,'Detailed Estimation'!$H$17:$AK$17) -> 0 | M88: =(SUMIF('Detailed Estimation'!$H$4:$AK$4,"<="&J88,'Detailed Estimation'!$H$10:$AK$10))*-1 -> 2036.16 | N88: =SUMIF('Detailed Estimation'!$H$4:$AK$4,"<="&J88,'Detailed Estimation'!$H$17:$AK$17) -> 0 | Q88: 24 | R88: 19 | S88: =S89 ->  | T88: =P82 ->  | U88: =U89 -> 2036.16 | V88: =N82 -> 0
B89: =IF('Financial Summary'!$M$3="Cost vs. Revenue",IF(References!E89>0,E89,""),IF(References!E120>0,E120,"")) ->  | D89: 2044 | E89: =-('Detailed Estimation'!$H$10) -> 339.36 | F89: =IF('Financial Input'!H24>=References!I68,SUM('Detailed Estimation'!$H$17:$N$17),0) -> 0 | G89: -339.36 | H89: 0 | I89: =IF(J89<='Financial Input'!$I$8,J89,'Financial Input'!$I$8) -> 12 | J89: 25 | K89: =(SUMIF('Detailed Estimation'!$H$4:$AK$4,"<="&I89,'Detailed Estimation'!$H$10:$AK$10))*-1 -> 2036.16 | L89: =SUMIF('Detailed Estimation'!$H$4:$AK$4,"<="&I89,'Detailed Estimation'!$H$17:$AK$17) -> 0 | M89: =(SUMIF('Detailed Estimation'!$H$4:$AK$4,"<="&J89,'Detailed Estimation'!$H$10:$AK$10))*-1 -> 2036.16 | N89: =SUMIF('Detailed Estimation'!$H$4:$AK$4,"<="&J89,'Detailed Estimation'!$H$17:$AK$17) -> 0 | Q89: 25 | R89: 19 | S89: =VLOOKUP(R89,$J$64:$O$94,6,0) ->  | T89: =P85 ->  | U89: =VLOOKUP(R89,$J$64:$M$94,4,0) -> 2036.16 | V89: =N85 -> 0
B90: =IF('Financial Summary'!$M$3="Cost vs. Revenue",IF(References!E90>0,E90,""),IF(References!E121>0,E121,"")) ->  | D90: 2045 | E90: =-('Detailed Estimation'!$H$10) -> 339.36 | F90: =IF('Financial Input'!H24>=References!K68,SUM('Detailed Estimation'!$H$17:$O$17),0) -> 0 | G90: -339.36 | H90: 0 | I90: =IF(J90<='Financial Input'!$I$8,J90,'Financial Input'!$I$8) -> 12 | J90: 26 | K90: =(SUMIF('Detailed Estimation'!$H$4:$AK$4,"<="&I90,'Detailed Estimation'!$H$10:$AK$10))*-1 -> 2036.16 | L90: =SUMIF('Detailed Estimation'!$H$4:$AK$4,"<="&I90,'Detailed Estimation'!$H$17:$AK$17) -> 0 | M90: =(SUMIF('Detailed Estimation'!$H$4:$AK$4,"<="&J90,'Detailed Estimation'!$H$10:$AK$10))*-1 -> 2036.16 | N90: =SUMIF('Detailed Estimation'!$H$4:$AK$4,"<="&J90,'Detailed Estimation'!$H$17:$AK$17) -> 0 | Q90: 26 | R90: 20 | S90: =VLOOKUP(R90,$J$64:$O$94,6,0) ->  | T90: =T89 ->  | U90: =VLOOKUP(R90,$J$64:$M$94,4,0) -> 2036.16 | V90: =V89 -> 0
B91: =IF('Financial Summary'!$M$3="Cost vs. Revenue",IF(References!E91>0,E91,""),IF(References!E122>0,E122,"")) ->  | D91: 2046 | E91: =-('Detailed Estimation'!$H$10) -> 339.36 | F91: =IF('Financial Input'!H24>=References!L68,SUM('Detailed Estimation'!$H$17:$P$17),0) -> 0 | G91: -339.36 | H91: 0 | I91: =IF(J91<='Financial Input'!$I$8,J91,'Financial Input'!$I$8) -> 12 | J91: 27 | K91: =(SUMIF('Detailed Estimation'!$H$4:$AK$4,"<="&I91,'Detailed Estimation'!$H$10:$AK$10))*-1 -> 2036.16 | L91: =SUMIF('Detailed Estimation'!$H$4:$AK$4,"<="&I91,'Detailed Estimation'!$H$17:$AK$17) -> 0 | M91: =(SUMIF('Detailed Estimation'!$H$4:$AK$4,"<="&J91,'Detailed Estimation'!$H$10:$AK$10))*-1 -> 2036.16 | N91: =SUMIF('Detailed Estimation'!$H$4:$AK$4,"<="&J91,'Detailed Estimation'!$H$17:$AK$17) -> 0 | Q91: 27 | R91: 21 | S91: =VLOOKUP(R91,$J$64:$O$94,6,0) ->  | T91: =T90 ->  | U91: =VLOOKUP(R91,$J$64:$M$94,4,0) -> 2036.16 | V91: =V90 -> 0
D92: 2047 | E92: =-('Detailed Estimation'!$H$10) -> 339.36 | F92: =IF('Financial Input'!H24>=References!#REF!,SUM('Detailed Estimation'!$H$17:$Q$17),0) ->  | G92: -339.36 | I92: =IF(J92<='Financial Input'!$I$8,J92,'Financial Input'!$I$8) -> 12 | J92: 28 | K92: =(SUMIF('Detailed Estimation'!$H$4:$AK$4,"<="&I92,'Detailed Estimation'!$H$10:$AK$10))*-1 -> 2036.16 | L92: =SUMIF('Detailed Estimation'!$H$4:$AK$4,"<="&I92,'Detailed Estimation'!$H$17:$AK$17) -> 0 | M92: =(SUMIF('Detailed Estimation'!$H$4:$AK$4,"<="&J92,'Detailed Estimation'!$H$10:$AK$10))*-1 -> 2036.16 | N92: =SUMIF('Detailed Estimation'!$H$4:$AK$4,"<="&J92,'Detailed Estimation'!$H$17:$AK$17) -> 0 | Q92: 28 | R92: 22 | S92: =S93 ->  | T92: =P85 ->  | U92: =U93 -> 2036.16 | V92: =N85 -> 0
I93: =IF(J93<='Financial Input'!$I$8,J93,'Financial Input'!$I$8) -> 12 | J93: 29 | K93: =(SUMIF('Detailed Estimation'!$H$4:$AK$4,"<="&I93,'Detailed Estimation'!$H$10:$AK$10))*-1 -> 2036.16 | L93: =SUMIF('Detailed Estimation'!$H$4:$AK$4,"<="&I93,'Detailed Estimation'!$H$17:$AK$17) -> 0 | M93: =(SUMIF('Detailed Estimation'!$H$4:$AK$4,"<="&J93,'Detailed Estimation'!$H$10:$AK$10))*-1 -> 2036.16 | N93: =SUMIF('Detailed Estimation'!$H$4:$AK$4,"<="&J93,'Detailed Estimation'!$H$17:$AK$17) -> 0 | Q93: 29 | R93: 22 | S93: =VLOOKUP(R93,$J$64:$O$94,6,0) ->  | T93: =P88 ->  | U93: =VLOOKUP(R93,$J$64:$M$94,4,0) -> 2036.16 | V93: =N88 -> 0
D94: 2018 | E94: =SUMIF('Detailed Estimation'!H4:AK4,"<="&'Financial Input'!$I$8,'Detailed Estimation'!H10:AK10) -> -2036.16 | F94: =IRR(G63:H63) ->  | I94: =IF(J94<='Financial Input'!$I$8,J94,'Financial Input'!$I$8) -> 12 | J94: 30 | K94: =(SUMIF('Detailed Estimation'!$H$4:$AK$4,"<="&I94,'Detailed Estimation'!$H$10:$AK$10))*-1 -> 2036.16 | L94: =SUMIF('Detailed Estimation'!$H$4:$AK$4,"<="&I94,'Detailed Estimation'!$H$17:$AK$17) -> 0 | M94: =(SUMIF('Detailed Estimation'!$H$4:$AK$4,"<="&J94,'Detailed Estimation'!$H$10:$AK$10))*-1 -> 2036.16 | N94: =SUMIF('Detailed Estimation'!$H$4:$AK$4,"<="&J94,'Detailed Estimation'!$H$17:$AK$17) -> 0 | Q94: 30 | R94: 23 | S94: =VLOOKUP(R94,$J$64:$O$94,6,0) ->  | T94: =T93 ->  | U94: =VLOOKUP(R94,$J$64:$M$94,4,0) -> 2036.16 | V94: =V93 -> 0
D95: 2019 | E95: ='Financial Input'!K12 -> 0 | R95: 24 | S95: =VLOOKUP(R95,$J$64:$O$94,6,0) ->  | T95: =T94 ->  | U95: =VLOOKUP(R95,$J$64:$M$94,4,0) -> 2036.16 | V95: =V94 -> 0
D96: 2020 | E96: ='Financial Input'!K13 -> 0 | R96: 25 | S96: =S97 ->  | T96: =P88 ->  | U96: =U97 -> 2036.16 | V96: =N88 -> 0
D97: 2021 | E97: ='Financial Input'!K14 -> 0 | R97: 25 | S97: =VLOOKUP(R97,$J$64:$O$94,6,0) ->  | T97: =P91 ->  | U97: =VLOOKUP(R97,$J$64:$M$94,4,0) -> 2036.16 | V97: =N91 -> 0
D98: 2022 | E98: ='Financial Input'!K15 -> 0 | R98: 26 | S98: =VLOOKUP(R98,$J$64:$O$94,6,0) ->  | T98: =T97 ->  | U98: =VLOOKUP(R98,$J$64:$M$94,4,0) -> 2036.16 | V98: =V97 -> 0
D99: 2023 | E99: ='Financial Input'!K16 -> 0 | R99: 27 | S99: =VLOOKUP(R99,$J$64:$O$94,6,0) ->  | T99: =T98 ->  | U99: =VLOOKUP(R99,$J$64:$M$94,4,0) -> 2036.16 | V99: =V98 -> 0
D100: 2024 | E100: ='Financial Input'!K17 -> 0 | R100: 28 | S100: =S101 ->  | T100: =P91 ->  | U100: =U101 -> 2036.16 | V100: =N91 -> 0
D101: 2025 | E101: ='Financial Input'!K18 -> 0 | R101: 28 | S101: =VLOOKUP(R101,$J$64:$O$94,6,0) ->  | T101: =P94 ->  | U101: =VLOOKUP(R101,$J$64:$M$94,4,0) -> 2036.16 | V101: =N94 -> 0
D102: 2026 | E102: ='Financial Input'!K19 -> 0 | R102: 29 | S102: =VLOOKUP(R102,$J$64:$O$94,6,0) ->  | T102: =T101 ->  | U102: =VLOOKUP(R102,$J$64:$M$94,4,0) -> 2036.16 | V102: =V101 -> 0
D103: 2027 | E103: ='Financial Input'!K20 -> 0 | R103: 30 | S103: =VLOOKUP(R103,$J$64:$O$94,6,0) ->  | T103: =T102 ->  | U103: =VLOOKUP(R103,$J$64:$M$94,4,0) -> 2036.16 | V103: =N94 -> 0
D104: 2028 | E104: ='Financial Input'!K21 -> 0
D105: 2029 | E105: ='Financial Input'!K22 -> 0
A106: Investment Period | D106: 2030 | E106: ='Financial Input'!K23 -> 0
A107: 1 | D107: 2031 | E107: ='Financial Input'!K24 -> 0
A108: 2 | D108: 2032 | E108: ='Financial Input'!K25 -> 0
A109: 3 | D109: 2033 | E109: ='Financial Input'!R11 -> 0
A110: 4 | D110: 2034 | E110: ='Financial Input'!R12 -> 0
A111: 5 | D111: 2035 | E111: ='Financial Input'!R13 -> 0
A112: 6 | D112: 2036 | E112: ='Financial Input'!R14 -> 0
A113: 7 | D113: 2037 | E113: ='Financial Input'!R15 -> 0
A114: 8 | D114: 2038 | E114: ='Financial Input'!K29 -> 0
A115: 9 | D115: 2039 | E115: ='Financial Input'!K30 -> 0
A116: 10 | D116: 2040 | E116: ='Financial Input'!K31 -> 0
A117: 11 | D117: 2041 | E117: ='Financial Input'!K32 -> 0
A118: 12 | D118: 2042 | E118: ='Financial Input'!K33 -> 0
A119: 13 | D119: 2043 | E119: ='Financial Input'!K34 -> 0
A120: 14 | D120: 2044 | E120: ='Financial Input'!K35 -> 0
A121: 15 | D121: 2045 | E121: ='Financial Input'!K36 -> 0
A122: 16 | D122: 2046 | E122: ='Financial Input'!K37 -> 0
A123: 17 | D123: 2047 | E123: ='Financial Input'!K38 -> 0
A124: 18
A125: 19
A126: 20
A127: 21
A128: 22
A129: 23
A130: 24
A131: 25
A132: 26
A133: 27
A134: 28
A135: 29
A136: 30
B145: 123456 | C145: -Pre and post-project land cover square footage must be equivalent. -Total project Area does not match Pre and/or post project totals. -Retrofitting natural Area does not result in SRC eligibility. -Retrofitting compacted area results in less SRC eligibility than retrofitting impervious area. -BMP has little to no additional CDA. -Project may trigger stormwater regulations.
B146: 12345 | C146: -Pre and post-project land cover square footage must be equivalent. -Total project Area does not match Pre and/or post project totals. -Retrofitting natural Area does not result in SRC eligibility. -Retrofitting compacted area results in less SRC eligibility than retrofitting impervious area. -BMP has little to no additional CDA.
B147: 12346 | C147: -Pre and post-project land cover square footage must be equivalent. -Total project Area does not match Pre and/or post project totals. -Retrofitting natural Area does not result in SRC eligibility. -Retrofitting compacted area results in less SRC eligibility than retrofitting impervious area. -Project may trigger stormwater regulations.
B148: 12356 | C148: -Pre and post-project land cover square footage must be equivalent. -Total project Area does not match Pre and/or post project totals. -Retrofitting natural Area does not result in SRC eligibility. -BMP has little to no additional CDA. -Project may trigger stormwater regulations.
B149: 12456 | C149: -Pre and post-project land cover square footage must be equivalent. -Total project Area does not match Pre and/or post project totals. -Retrofitting compacted area results in less SRC eligibility than retrofitting impervious area. -BMP has little to no additional CDA. -Project may trigger stormwater regulations.
B150: 13456 | C150: -Pre and post-project land cover square footage must be equivalent. -Retrofitting natural Area does not result in SRC eligibility. -Retrofitting compacted area results in less SRC eligibility than retrofitting impervious area. -BMP has little to no additional CDA. -Project may trigger stormwater regulations.
B151: 23456 | C151: -Total project Area does not match Pre and/or post project totals. -Retrofitting natural Area does not result in SRC eligibility. -Retrofitting compacted area results in less SRC eligibility than retrofitting impervious area. -BMP has little to no additional CDA. -Project may trigger stormwater regulations.
B152: 1234 | C152: -Pre and post-project land cover square footage must be equivalent. -Total project Area does not match Pre and/or post project totals. -Retrofitting natural Area does not result in SRC eligibility. -Retrofitting compacted area results in less SRC eligibility than retrofitting impervious area.
B153: 1235 | C153: -Pre and post-project land cover square footage must be equivalent. -Total project Area does not match Pre and/or post project totals. -Retrofitting natural Area does not result in SRC eligibility. -BMP has little to no additional CDA.
B154: 1236 | C154: -Pre and post-project land cover square footage must be equivalent. -Total project Area does not match Pre and/or post project totals. -Retrofitting natural Area does not result in SRC eligibility. -Project may trigger stormwater regulations.
B155: 1245 | C155: -Pre and post-project land cover square footage must be equivalent. -Total project Area does not match Pre and/or post project totals. -Retrofitting compacted area results in less SRC eligibility than retrofitting impervious area. -BMP has little to no additional CDA.
B156: 1246 | C156: -Pre and post-project land cover square footage must be equivalent. -Total project Area does not match Pre and/or post project totals. -Retrofitting compacted area results in less SRC eligibility than retrofitting impervious area. -Project may trigger stormwater regulations.
B157: 1256 | C157: -Pre and post-project land cover square footage must be equivalent. -Total project Area does not match Pre and/or post project totals. -BMP has little to no additional CDA. -Project may trigger stormwater regulations.
B158: 1345 | C158: -Pre and post-project land cover square footage must be equivalent. -Retrofitting natural Area does not result in SRC eligibility. -Retrofitting compacted area results in less SRC eligibility than retrofitting impervious area. -BMP has little to no additional CDA.
B159: 1346 | C159: -Pre and post-project land cover square footage must be equivalent. -Retrofitting natural Area does not result in SRC eligibility. -Retrofitting compacted area results in less SRC eligibility than retrofitting impervious area. -Project may trigger stormwater regulations.
B160: 1356 | C160: -Pre and post-project land cover square footage must be equivalent. -Retrofitting natural Area does not result in SRC eligibility. -BMP has little to no additional CDA. -Project may trigger stormwater regulations.
B161: 1456 | C161: -Pre and post-project land cover square footage must be equivalent. -Retrofitting compacted area results in less SRC eligibility than retrofitting impervious area. -BMP has little to no additional CDA. -Project may trigger stormwater regulations.
B162: 2345 | C162: -Total project Area does not match Pre and/or post project totals. -Retrofitting natural Area does not result in SRC eligibility. -Retrofitting compacted area results in less SRC eligibility than retrofitting impervious area. -BMP has little to no additional CDA.
B163: 2346 | C163: -Total project Area does not match Pre and/or post project totals. -Retrofitting natural Area does not result in SRC eligibility. -Retrofitting compacted area results in less SRC eligibility than retrofitting impervious area. -Project may trigger stormwater regulations.
B164: 2456 | C164: -Total project Area does not match Pre and/or post project totals. -Retrofitting compacted area results in less SRC eligibility than retrofitting impervious area. -BMP has little to no additional CDA. -Project may trigger stormwater regulations.
B165: 3456 | C165: -Retrofitting natural Area does not result in SRC eligibility. -Retrofitting compacted area results in less SRC eligibility than retrofitting impervious area. -BMP has little to no additional CDA. -Project may trigger stormwater regulations.
B166: 123 | C166: -Pre and post-project land cover square footage must be equivalent. -Total project Area does not match Pre and/or post project totals. -Retrofitting natural Area does not result in SRC eligibility.
B167: 124 | C167: -Pre and post-project land cover square footage must be equivalent. -Total project Area does not match Pre and/or post project totals. -Retrofitting compacted area results in less SRC eligibility than retrofitting impervious area.
B168: 125 | C168: -Pre and post-project land cover square footage must be equivalent. -Total project Area does not match Pre and/or post project totals. -BMP has little to no additional CDA.
B169: 126 | C169: -Pre and post-project land cover square footage must be equivalent. -Total project Area does not match Pre and/or post project totals. -Project may trigger stormwater regulations.
B170: 134 | C170: -Pre and post-project land cover square footage must be equivalent. -Retrofitting natural Area does not result in SRC eligibility. -Retrofitting compacted area results in less SRC eligibility than retrofitting impervious area.
B171: 135 | C171: -Pre and post-project land cover square footage must be equivalent. -Retrofitting natural Area does not result in SRC eligibility. -BMP has little to no additional CDA.
B172: 136 | C172: -Pre and post-project land cover square footage must be equivalent. -Retrofitting natural Area does not result in SRC eligibility. -Project may trigger stormwater regulations.
B173: 145 | C173: -Pre and post-project land cover square footage must be equivalent. -Retrofitting compacted area results in less SRC eligibility than retrofitting impervious area. -BMP has little to no additional CDA.
B174: 146 | C174: -Pre and post-project land cover square footage must be equivalent. -Retrofitting compacted area results in less SRC eligibility than retrofitting impervious area. -Project may trigger stormwater regulations.
B175: 234 | C175: -Total project Area does not match Pre and/or post project totals. -Retrofitting natural Area does not result in SRC eligibility. -Retrofitting compacted area results in less SRC eligibility than retrofitting impervious area.
B176: 235 | C176: -Total project Area does not match Pre and/or post project totals. -Retrofitting natural Area does not result in SRC eligibility. -BMP has little to no additional CDA.
B177: 236 | C177: -Total project Area does not match Pre and/or post project totals. -Retrofitting natural Area does not result in SRC eligibility. -Project may trigger stormwater regulations.
B178: 245 | C178: -Total project Area does not match Pre and/or post project totals. -Retrofitting compacted area results in less SRC eligibility than retrofitting impervious area. -BMP has little to no additional CDA.
B179: 246 | C179: -Total project Area does not match Pre and/or post project totals. -Retrofitting compacted area results in less SRC eligibility than retrofitting impervious area. -Project may trigger stormwater regulations.
B180: 256 | C180: -Total project Area does not match Pre and/or post project totals. -BMP has little to no additional CDA. -Project may trigger stormwater regulations.
B181: 345 | C181: -Retrofitting natural Area does not result in SRC eligibility. -Retrofitting compacted area results in less SRC eligibility than retrofitting impervious area. -BMP has little to no additional CDA.
B182: 346 | C182: -Retrofitting natural Area does not result in SRC eligibility. -Retrofitting compacted area results in less SRC eligibility than retrofitting impervious area. -Project may trigger stormwater regulations.
B183: 456 | C183: -Retrofitting compacted area results in less SRC eligibility than retrofitting impervious area. -BMP has little to no additional CDA. -Project may trigger stormwater regulations.
B184: 12 | C184: -Pre and post-project land cover square footage must be equivalent. -Total project Area does not match Pre and/or post project totals.
B185: 13 | C185: -Pre and post-project land cover square footage must be equivalent. -Retrofitting natural Area does not result in SRC eligibility.
B186: 14 | C186: -Pre and post-project land cover square footage must be equivalent. -Retrofitting compacted area results in less SRC eligibility than retrofitting impervious area.
B187: 15 | C187: -Pre and post-project land cover square footage must be equivalent. -BMP has little to no additional CDA.
B188: 16 | C188: -Pre and post-project land cover square footage must be equivalent. -Project may trigger stormwater regulations.
B189: 23 | C189: -Total project Area does not match Pre and/or post project totals. -Retrofitting natural Area does not result in SRC eligibility.
B190: 24 | C190: -Total project Area does not match Pre and/or post project totals. -Retrofitting compacted area results in less SRC eligibility than retrofitting impervious area.
B191: 25 | C191: -Total project Area does not match Pre and/or post project totals. -BMP has little to no additional CDA.
B192: 26 | C192: -Total project Area does not match Pre and/or post project totals. -Project may trigger stormwater regulations.
B193: 34 | C193: -Retrofitting natural Area does not result in SRC eligibility. -Retrofitting compacted area results in less SRC eligibility than retrofitting impervious area.
B194: 35 | C194: -Retrofitting natural Area does not result in SRC eligibility. -BMP has little to no additional CDA.
B195: 36 | C195: -Retrofitting natural Area does not result in SRC eligibility. -Project may trigger stormwater regulations.
B196: 45 | C196: -Retrofitting compacted area results in less SRC eligibility than retrofitting impervious area. -BMP has little to no additional CDA.
B197: 46 | C197: -Retrofitting compacted area results in less SRC eligibility than retrofitting impervious area. -Project may trigger stormwater regulations.
B198: 56 | C198: -BMP has little to no additional CDA. -Project may trigger stormwater regulations.
B199: 1 | C199: -Pre and post-project land cover square footage must be equivalent.
B200: 2 | C200: -Total project Area does not match Pre and/or post project totals.
B201: 3 | C201: -Retrofitting natural Area does not result in SRC eligibility.
B202: 4 | C202: -Retrofitting compacted area results in less SRC eligibility than retrofitting impervious area.
B203: 5 | C203: -BMP has little to no additional CDA.
B204: 6 | C204: -Project may trigger stormwater regulations.
B211: 1 | C211: Pre and post-project land cover square footage must be equivalent.
B212: 2 | C212: Total Project Area does not match pre and/or post project totals.
B213: 3 | C213: Retrofitting natural area does not result in SRC eligibility.
B214: 4 | C214: Retrofitting compacted area results in less SRC eligibility than retrofitting impervious area.
... 2 more rows

Sheet Costs (hidden)
A1: Source: cnet.org
A2: Cost Sheet
B3: Construction Cost | G3: Maintenance Cost | J3: Component Lifespan
A4: Component | B4: Range | C4: Cost | E4: Source | G4: Range | H4: Cost | I4: Source | J4: Range | K4: Life | L4: Source
A5: Green Roof | B5: Low | C5: 8.75 | D5: sq. ft. | E5: Water Environment Research Federation Low Impact Development Best Management Practices Whole Life Cost Model 2007 | G5: Low | I5: City of Portland, Bureau of Environmental Services Cost Benefit Evaluation of Ecoroofs 2008 | J5: Long | K5: 50.0 years | L5: Water Environment Research Federation Low Impact Development Best Management Practices Whole Life Cost Model 2007
B6: Mid | C6: 15.75 | D6: sq. ft. | E6: City of Portland, Bureau of Environmental Services Cost Benefit Evaluation of Ecoroofs 2008 | G6: Mid | H6: $0.025/sq. ft. | I6: Low Impact Development Center, Inc.; Low Impact Development for Big Box Manufacturers November 2005 | J6: Mid | K6: 40.0 years | L6: PlaNYC 2030 Sustainable Stormwater Management Plan Accessed March 2009
B7: High | C7: 31.8 | D7: sq. ft. | E7: Wetland Studies and Solutions, Inc.; Virginia LID at WSSI 2007 | G7: High | H7: $0.412/sq. ft. | I7: Water Environment Research Federation Low Impact Development Best Management Practices Whole Life Cost Model 2007 | J7: Short | K7: 25.0 years | L7: Low Impact Development Center, Inc.; Low Impact Development for Big Box Manufacturers November 2005
A8: Permeable Pavement- Pavers | B8: Low | C8: 5.3 | D8: sq. ft. | E8: Sikich, Andrew J. and Patrick D. Kelsey. "The Morton Arboretum's "Green" Parking Lot." Accessed July 2005. | G8: Low | I8: Pelkonen, Peg. The Morton Arboretum Permeable Parking Lot Presentation at the US Cellular Field Lot L Paver Symposium April 8th, 2008 | J8: Long | K8: 50.0 years | L8: Pelkonen, Peg. The Morton Arboretum Permeable Parking Lot Presentation at the US Cellular Field Lot L Paver Symposium April 8th, 2008
B9: Mid | C9: 7.1 | D9: sq. ft. | E9: Wetland Studies and Solutions, Inc.; Virginia LID at WSSI 2007 | G9: Mid | H9: $0.036/sq. ft. | I9: Southeast Wisconsin Regional Planning Commission. "Costs of Urban Nonpoint Source Water Pollution Control Measures." Technical Report Number 31. June 1991. | J9: Mid | K9: 25.0 years | L9: Low Impact Development Center, Inc.; Low Impact Development for Big Box Manufacturers November 2005
B10: High | C10: 12 | D10: sq. ft. | E10: Rose Paving, email message to CNT, November 13th 2008 | G10: High | H10: $0.230/sq. ft. | I10: Low Impact Development Center, Inc.; Low Impact Development for Big Box Manufacturers November 2005 | J10: Short | K10: 15.0 years | L10: U.S. Department of Transportation, Federal Highway Administration. "Stormwater Best Management Practices in an Ultra-Urban Setting: Selection and Monitoring." Accessed July 2005.
A11: Rain Garden | B11: Low | C11: 5.15 | D11: sq. ft. | E11: Water Environment Research Federation Low Impact Development Best Management Practices Whole Life Cost Model 2007 (Self-install) | G11: Low | I11: City of Portland, Bureau of Environmental Services, Willamette Watershed Program - Task Memorandum 4.1 August 2005 | J11: Long | K11: 50.0 years | L11: Seattle Public Utilities, Decentralized Stormwater Control Unit Cost Model November 2008
B12: Mid | C12: 7 | D12: sq. ft. | E12: Center for Neighborhood Technology, "Green Infrastructure Data Quantification and Assessment on Chicago’s Far North Side" Accessed January 2009 | G12: Mid | H12: $0.340/sq. ft. | I12: U.S. Environmental Protection Agency. "Urban Stormwater Best Management Practices Study." EPA-821-R-99-012. August 1999. | J12: Mid | K12: 30.0 years | L12: City of Portland, Bureau of Environmental Services, Willamette Watershed Program - Task Memorandum 4.1 August 2005
B13: High | C13: 16.05 | D13: sq. ft. | E13: Water Environment Research Federation Low Impact Development Best Management Practices Whole Life Cost Model 2007 (Professional) | G13: High | H13: $0.610/sq. ft. | I13: Low Impact Development Center, Inc.; Low Impact Development for Big Box Manufacturers November 2005 | J13: Short | K13: 25.0 years | L13: Low Impact Development Center, Inc.; Low Impact Development for Big Box Manufacturers November 2005
A14: Bioswales (Parking Lot and Roadside) | B14: Low | C14: 5.5 | D14: sq. ft. | E14: City of Portland, Bureau of Environmental Services, Willamette Watershed Program - Task Memorandum 4.1 August 2005 | G14: Low | I14: Costs of Urban Nonpoint Source Water Pollution Control Measures | J14: Long | K14: 50.0 years | L14: Seattle Public Utilities, Decentralized Stormwater Control Unit Cost Model November 2008
B15: Mid | C15: 15 | D15: sq. ft. | E15: Water Environment Research Federation Low Impact Development Best Management Practices Whole Life Cost Model 2007 | G15: Mid | H15: $0.120/sq. ft. | I15: Water Environment Research Federation Low Impact Development Best Management Practices Whole Life Cost Model 2007 | J15: Mid | K15: 30.0 years | L15: City of Portland, Bureau of Environmental Services, Willamette Watershed Program - Task Memorandum 4.1 August 2005
B16: High | C16: 24 | D16: sq. ft. | E16: Center for Neighborhood Technology, "Green Infrastructure Data Quantification and Assessment In the Calumet Region" Accessed January 2009 | G16: High | H16: $0.210/sq. ft. | I16: City of Portland, Bureau of Environmental Services, Willamette Watershed Program - Task Memorandum 4.1 August 2005 | J16: Short | K16: 20.0 years | L16: PlaNYC 2030 Sustainable Stormwater Management Plan Accessed March 2009
A17: Downspout Disconnection | B17: Low | C17: 9 | D17: downspout | E17: Southwest Florida Water Management District, Downspout Disconnection Report Accessed March 2009 | G17: Low | I17: City of Portland, Bureau of Environmental Services, Willamette Watershed Program - Task Memorandum 4.1 August 2005 | J17: Long | K17: 100.0 years | L17: Seattle Public Utilities, Decentralized Stormwater Control Unit Cost Model November 2008
B18: Mid | C18: 35 | D18: downspout | E18: Milwaukee Metropolitan Sewerage District Stormwater Runoff Reduction Program December 2005 | G18: Mid | I18: Seattle Public Utilities, Decentralized Stormwater Control Unit Cost Model November 2008 | J18: Mid | K18: 50.0 years | L18: CNT Estimate
B19: High | C19: 156 | D19: downspout | E19: Milwaukee Metropolitan Sewerage District Stormwater Runoff Reduction Program December 2005 | G19: High | I19: Seattle Public Utilities, Decentralized Stormwater Control Unit Cost Model November 2008 | J19: Short | K19: 30.0 years | L19: City of Portland, Bureau of Environmental Services, Downspout Disconnection Factsheet July 2006
A20: Planter Boxes | B20: Low | C20: 0.55 | D20: sq. ft. | E20: New York Stormwater Management Design Manual Accessed March 2009 | G20: Low | I20: New York Stormwater Management Design Manual Accessed March 2009 | J20: Long | K20: 30.0 years | L20: CNT Estimate
B21: Mid | C21: 8 | D21: sq. ft. | E21: Low Impact Development Center, Inc.; Low Impact Development for Big Box Manufacturers November 2005 | G21: Mid | H21: $0.800/sq. ft. | I21: Low Impact Development Center, Inc.; Low Impact Development for Big Box Manufacturers November 2005 | J21: Mid | K21: 25.0 years | L21: Low Impact Development Center, Inc.; Low Impact Development for Big Box Manufacturers November 2005
B22: High | C22: 24.52 | D22: sq. ft. | E22: PlaNYC 2030 Sustainable Stormwater Management Plan Accessed March 2009 | G22: High | H22: $1.000/sq. ft. | I22: Charles River Watershed Association, Low Impact Best Management Practice (BMP) Information Sheet September 2008 | J22: Short | K22: 20.0 years | L22: PlaNYC 2030 Sustainable Stormwater Management Plan Accessed March 2009
A23: Rain Barrels | B23: Low | C23: 0.72 | D23: gallon | E23: Metropolitan Water Reclamation District of Greater Chicago Accessed March 2009 | G23: Low | I23: PlaNYC 2030 Sustainable Stormwater Management Plan Accessed March 2009 | J23: Long | K23: 20.0 years | L23: PlaNYC 2030 Sustainable Stormwater Management Plan Accessed March 2009
B24: Mid | C24: 1.09 | D24: gallon | E24: Milwaukee Metropolitan Sewerage District Stormwater Runoff Reduction Program December 2005 | G24: Mid | I24: PlaNYC 2030 Sustainable Stormwater Management Plan Accessed March 2009 | J24: Mid | K24: 20.0 years | L24: PlaNYC 2030 Sustainable Stormwater Management Plan Accessed March 2009
B25: High | C25: 2.54 | D25: gallon | E25: Milwaukee Metropolitan Sewerage District Stormwater Runoff Reduction Program December 2005 | G25: High | I25: PlaNYC 2030 Sustainable Stormwater Management Plan Accessed March 2009 | J25: Short | K25: 20.0 years | L25: PlaNYC 2030 Sustainable Stormwater Management Plan Accessed March 2009
A26: Cisterns | B26: Low | C26: 0.61 | D26: gallon | E26: Low Impact Development Center, Inc.; Low Impact Development for Big Box Manufacturers November 2005 | G26: Low | I26: PlaNYC 2030 Sustainable Stormwater Management Plan Accessed March 2009 | J26: Long | K26: 50.0 years | L26: City of Portland, Bureau of Environmental Services, Cisterns Factsheet July 2006
B27: Mid | C27: 1.45 | D27: gallon | E27: Water Environment Research Federation Low Impact Development Best Management Practices Whole Life Cost Model 2007 | G27: Mid | H27: $0.070/gallon | I27: Water Environment Research Federation Low Impact Development Best Management Practices Whole Life Cost Model 2007 | J27: Mid | K27: 25.0 years | L27: Seattle Public Utilities, Decentralized Stormwater Control Unit Cost Model November 2008
B28: High | C28: 2.88 | D28: gallon | E28: Wetland Studies and Solutions, Inc.; Virginia LID at WSSI 2007 | G28: High | H28: $0.070/gallon | I28: Water Environment Research Federation Low Impact Development Best Management Practices Whole Life Cost Model 2007 | J28: Short | K28: 20.0 years | L28: PlaNYC 2030 Sustainable Stormwater Management Plan Accessed March 2009
A29: Vegetated Filter Strips | B29: Low | C29: 0.03 | D29: sq. ft. | E29: USEPA, Office of Water National Management Measures to Control Non Point Source Pollution from Urban Areas November 2005 | G29: Low | H29: $0.070/ sq. ft. | I29: Low Impact Development Center, Inc.; Low Impact Development for Big Box Manufacturers November 2005 | J29: Long | K29: 50.0 years | L29: CNT Estimate
B30: Mid | C30: 1.45 | D30: sq. ft. | E30: USEPA, Office of Water National Management Measures to Control Non Point Source Pollution from Urban Areas November 2005 | G30: Mid | H30: $0.070/ sq. ft. | I30: Low Impact Development Center, Inc.; Low Impact Development for Big Box Manufacturers November 2005 | J30: Mid | K30: 25.0 years | L30: Low Impact Development Center, Inc.; Low Impact Development for Big Box Manufacturers November 2005
B31: High | C31: 3.33 | D31: sq. ft. | E31: Low Impact Development Center, Inc.; Low Impact Development for Big Box Manufacturers November 2005 | G31: High | I31: Low Impact Development Center, Inc.; Low Impact Development for Big Box Manufacturers November 2005 | J31: Short | K31: 20.0 years | L31: CNT Estimate
A32: Amended Soil | B32: Low | C32: =15/27 -> 0.5555555556 | D32: cubic foot | E32: Low Impact Development Center, Inc.; Low Impact Development for Big Box Manufacturers November 2005 | G32: Low | I32: City of Virginia, Fairfax County; LID BMP Factsheet - Soil Amendments February 2005 | J32: Long | K32: 50.0 years | L32: CNT Estimate
B33: Mid | C33: =30/27 -> 1.111111111 | D33: cubic foot | E33: Water Environment Research Federation Low Impact Development Best Management Practices Whole Life Cost Model 2007 | G33: Mid | I33: City of Virginia, Fairfax County; LID BMP Factsheet - Soil Amendments February 2006 | J33: Mid | K33: 30.0 years | L33: CNT Estimate
B34: High | C34: =60/27 -> 2.222222222 | D34: cubic foot | E34: Low Impact Development Center, Inc.; Low Impact Development for Big Box Manufacturers | G34: High | I34: City of Virginia, Fairfax County; LID BMP Factsheet - Soil Amendments February 2006 | J34: Short | K34: 25.0 years | L34: City of Virginia, Fairfax County; LID BMP Factsheet - Soil Amendments February 2005
B35: =C35*1000 -> 1666.666667 | C35: =AVERAGE(C33:C34) -> 1.666666667 | H35: $.29/sq. ft.
A36: Extensive green roof | H36: =0.29*1.1316 -> 0.328164 | I36: Inflation adjusted via RSMeans
A37: Intensive green roof
A38: Rainwater harvesting
A39: Simple disconnection to a pervious area
A40: Simple disconnection to a conservation area
A41: Simple disconnection to amended soils | E41: A | F41: 180.1 | G41: 0.29
A42: Permeable pavement - Standard | E42: B | F42: 208.5 | H42: =(F42/F41)*G41 -> 0.3357301499
A43: Permeable pavement - Enhanced
A44: Bioretention - Standard
A45: Bioretention - Enhanced
A46: Infiltration basin
A47: Infiltration trench
A48: Grass channel
A49: Grass channel - amended soils
A50: Dry swale
A51: Wet Swale
A52: Wet pond
A53: Micropool ED pond
A54: Wet ED pond
A55: Shallow wetland
A56: ED shallow wetland
A57: Tree preservation
A58: Tree planting
A60: source: https://uminfopoint.umsystem.edu
A61: Amount Available for Construction | B61: TYPE I Considerably less than average complexity | D61: Average of TYPE I & II | E61: TYPE II Less than average complexity | G61: TYPE III Average Complexity | I61: TYPE IV More than average complexity | K61: TYPE V Considerably more than average complexity | M61: TYPE VI Engineering Projects | O61: I | P61: II | Q61: III | R61: IV | S61: V | T61: VI
A62: ($) | B62: New % | C62: Reno. % | E62: New % | F62: Reno. % | G62: New % | H62: Reno. % | I62: New % | J62: Reno. % | K62: New % | L62: Reno. % | M62: New % | N62: Reno. % | O62: =AVERAGE(B63:C76) -> 7.531039936 | P62: =AVERAGE(E63:F76) -> 7.666640981 | Q62: =AVERAGE(G63:H76) -> 8.514765143 | R62: =AVERAGE(G63:H76) -> 8.514765143 | S62: =AVERAGE(K63:L76) -> 10.22006902 | T62: =AVERAGE(M63:N77) -> 9.504948718
A63: 10000 | B63: 6.217007505 | C63: 10.65 | D63: =(AVERAGE(E63:F63)+ AVERAGE(B63:C63))/2 -> 8.164723265 | E63: 7.01108818 | F63: 8.780797373 | G63: 7.786510319 | H63: 9.755056285 | I63: 8.560712946 | J63: 10.72652908 | K63: 9.352082552 | L63: 11.69319887 | M63: 8.74793621 | N63: 10.91014071
A64: 25000 | B64: 6.178499062 | C64: 10.4 | D64: =(AVERAGE(E64:F64)+ AVERAGE(B64:C64))/2 -> 8.067847092 | E64: 6.967363977 | F64: 8.725525328 | G64: 7.73793621 | H64: 9.693742964 | I64: 8.507410882 | J64: 10.65918386 | K64: 9.293489681 | L64: 11.62022514 | M64: 8.692757974 | N64: 10.84185741
A65: 50000 | B65: 6.139990619 | C65: 10.15 | D65: 7.970970919 | E65: 6.923639775 | F65: 8.670253283 | G65: 7.689362101 | H65: 9.632429644 | I65: 8.454108818 | J65: 10.59183865 | K65: 9.234896811 | L65: 11.54725141 | M65: 8.637579737 | N65: 10.77357411
A66: 100000 | B66: 6.101482176 | C66: 9.9 | D66: 7.874094747 | E66: 6.879915572 | F66: 8.614981238 | G66: 7.640787992 | H66: 9.571116323 | I66: 8.400806754 | J66: 10.52449343 | K66: 9.17630394 | L66: 11.47427767 | M66: 8.582401501 | N66: 10.70529081
A67: 150000 | B67: 6.062973734 | C67: 9.65 | D67: 7.777218574 | E67: 6.83619137 | F67: 8.559709193 | G67: 7.592213884 | H67: 9.509803002 | I67: 8.34750469 | J67: 10.45714822 | K67: 9.117711069 | L67: 11.40130394 | M67: 8.527223265 | N67: 10.6370075
A68: 200000 | B68: 6.024465291 | C68: 9.4 | D68: 7.680342402 | E68: 6.792467167 | F68: 8.504437148 | G68: 7.543639775 | H68: 9.448489681 | I68: 8.294202627 | J68: 10.389803 | K68: 9.059118199 | L68: 11.32833021 | M68: 8.472045028 | N68: 10.5687242
A69: 250000 | B69: 5.985956848 | C69: 9.15 | D69: 7.583466229 | E69: 6.748742964 | F69: 8.449165103 | G69: 7.495065666 | H69: 9.38717636 | I69: 8.240900563 | J69: 10.32245779 | K69: 9.000525328 | L69: 11.25535647 | M69: 8.416866792 | N69: 10.5004409
A70: 300000 | B70: 5.947448405 | C70: 8.9 | D70: 7.486590056 | E70: 6.705018762 | F70: 8.393893058 | G70: 7.446491557 | H70: 9.325863039 | I70: 8.187598499 | J70: 10.25511257 | K70: 8.941932458 | L70: 11.18238274 | M70: 8.361688555 | N70: 10.4321576
A71: 350000 | B71: 5.908939962 | C71: 8.65 | D71: 7.389713884 | E71: 6.661294559 | F71: 8.338621013 | G71: 7.397917448 | H71: 9.264549719 | I71: 8.134296435 | J71: 10.18776735 | K71: 8.883339587 | L71: 11.10940901 | M71: 8.306510319 | N71: 10.3638743
A72: 400000 | B72: 5.87043152 | C72: 8.4 | D72: 7.292837711 | E72: 6.617570356 | F72: 8.283348968 | G72: 7.34934334 | H72: 9.203236398 | I72: 8.080994371 | J72: 10.12042214 | K72: 8.824746717 | L72: 11.03643527 | M72: 8.251332083 | N72: 10.29559099
A73: 450000 | B73: 5.831923077 | C73: 8.15 | D73: =(AVERAGE(E73:F73)+ AVERAGE(B73:C73))/2 -> 7.195961538 | E73: 6.573846154 | F73: 8.228076923 | G73: 7.300769231 | H73: 9.141923077 | I73: 8.027692308 | J73: 10.05307692 | K73: 8.766153846 | L73: 10.96346154 | M73: 8.196153846 | N73: 10.22730769
A74: 500000 | B74: 6.4 | C74: 8 | D74: 7.65 | E74: 7.2 | F74: 9 | G74: 8 | H74: 10 | I74: 8.8 | J74: 11 | K74: 9.6 | L74: 12 | M74: 9 | N74: 11.2
A75: 750000 | B75: 6.1 | C75: 7.6 | D75: 7.275 | E75: 6.8 | F75: 8.6 | G75: 7.6 | H75: 9.5 | I75: 8.4 | J75: 10.5 | K75: 9.1 | L75: 11.4 | M75: 8.5 | N75: 10.6
A76: 1000000 | B76: 5.8 | C76: 7.3 | D76: 6.975 | E76: 6.6 | F76: 8.2 | G76: 7.3 | H76: 9.1 | I76: 8 | J76: 10 | K76: 8.8 | L76: 11 | M76: 8.2 | N76: 10.2
A77: 1250000 | B77: 5.7 | C77: 7.1 | D77: 6.8 | E77: 6.4 | F77: 8 | G77: 7.1 | H77: 8.9 | I77: 7.8 | J77: 9.8 | K77: 8.5 | L77: 10.7 | M77: 8 | N77: 10
A78: 1500000 | B78: 5.6 | C78: 7 | D78: 6.7 | E78: 6.3 | F78: 7.9 | G78: 7 | H78: 8.8 | I78: 7.7 | J78: 9.7 | K78: 8.4 | L78: 10.5 | M78: 7.9 | N78: 9.8
A79: 1750000 | B79: 5.5 | C79: 6.9 | D79: 6.6 | E79: 6.2 | F79: 7.8 | G79: 6.9 | H79: 8.7 | I79: 7.6 | J79: 9.5 | K79: 8.3 | L79: 10.4 | M79: 7.8 | N79: 9.7
A80: 2000000 | B80: 5.5 | C80: 6.9 | D80: 6.575 | E80: 6.2 | F80: 7.7 | G80: 6.9 | H80: 8.6 | I80: 7.5 | J80: 9.4 | K80: 8.2 | L80: 10.3 | M80: 7.7 | N80: 9.6
A81: 2250000 | B81: 5.4 | C81: 6.8 | D81: 6.5 | E81: 6.1 | F81: 7.7 | G81: 6.8 | H81: 8.5 | I81: 7.5 | J81: 9.4 | K81: 8.2 | L81: 10.2 | M81: 7.6 | N81: 9.5
A82: 2500000 | B82: 5.4 | C82: 6.7 | D82: 6.45 | E82: 6.1 | F82: 7.6 | G82: 6.7 | H82: 8.4 | I82: 7.4 | J82: 9.3 | K82: 8.1 | L82: 10.1 | M82: 7.5 | N82: 9.4
A83: 2750000 | B83: 5.3 | C83: 6.7 | D83: 6.375 | E83: 6 | F83: 7.5 | G83: 6.7 | H83: 8.4 | I83: 7.3 | J83: 9.2 | K83: 8 | L83: 10 | M83: 7.5 | N83: 9.4
A84: 3000000 | B84: 5.3 | C84: 6.6 | D84: 6.325 | E84: 6 | F84: 7.4 | G84: 6.6 | H84: 8.3 | I84: 7.3 | J84: 9.1 | K84: 7.9 | L84: 9.9 | M84: 7.4 | N84: 9.3
A85: 3500000 | B85: 5.3 | C85: 6.6 | D85: 6.3 | E85: 5.9 | F85: 7.4 | G85: 6.6 | H85: 8.2 | I85: 7.2 | J85: 9 | K85: 7.9 | L85: 9.9 | M85: 7.4 | N85: 9.2
A86: 4000000 | B86: 5.2 | C86: 6.5 | D86: 6.25 | E86: 5.9 | F86: 7.4 | G86: 6.5 | H86: 8.2 | I86: 7.2 | J86: 9 | K86: 7.8 | L86: 9.8 | M86: 7.3 | N86: 9.2
A87: 4500000 | B87: 5.2 | C87: 6.5 | D87: 6.225 | E87: 5.9 | F87: 7.3 | G87: 6.5 | H87: 8.1 | I87: 7.2 | J87: 8.9 | K87: 7.8 | L87: 9.8 | M87: 7.3 | N87: 9.1
A88: 5000000 | B88: 5.2 | C88: 6.5 | D88: 6.2 | E88: 5.8 | F88: 7.3 | G88: 6.5 | H88: 8.1 | I88: 7.1 | J88: 8.9 | K88: 7.8 | L88: 9.7 | M88: 7.2 | N88: 9
A89: 6000000 | B89: 5.1 | C89: 6.4 | D89: 6.125 | E89: 5.8 | F89: 7.2 | G89: 6.4 | H89: 8 | I89: 7.1 | J89: 8.8 | K89: 7.7 | L89: 9.6 | M89: 7.2 | N89: 9
A90: 7000000 | B90: 5.1 | C90: 6.4 | D90: 6.1 | E90: 5.7 | F90: 7.2 | G90: 6.4 | H90: 8 | I90: 7 | J90: 8.8 | K90: 7.7 | L90: 9.6 | M90: 7.1 | N90: 8.9
A91: 8000000 | B91: 5.1 | C91: 6.3 | D91: 6.05 | E91: 5.7 | F91: 7.1 | G91: 6.3 | H91: 7.9 | I91: 7 | J91: 8.7 | K91: 7.6 | L91: 9.5 | M91: 7.1 | N91: 8.9
A92: 9000000 | B92: 5 | C92: 6.3 | D92: 6.025 | E92: 5.7 | F92: 7.1 | G92: 6.3 | H92: 7.9 | I92: 6.9 | J92: 8.7 | K92: 7.6 | L92: 9.5 | M92: 7.1 | N92: 8.8
A93: 10000000 | B93: 5 | C93: 6.3 | D93: 5.975 | E93: 5.6 | F93: 7 | G93: 6.3 | H93: 7.8 | I93: 6.9 | J93: 8.6 | K93: 7.5 | L93: 9.4 | M93: 7 | N93: 8.8
A94: 11000000 | B94: 5 | C94: 6.2 | D94: 5.95 | E94: 5.6 | F94: 7 | G94: 6.2 | H94: 7.8 | I94: 6.8 | J94: 8.6 | K94: 7.5 | L94: 9.3 | M94: 7 | N94: 8.7
A95: 12000000 | B95: 4.9 | C95: 6.2 | D95: 5.925 | E95: 5.6 | F95: 7 | G95: 6.2 | H95: 7.7 | I95: 6.8 | J95: 8.5 | K95: 7.4 | L95: 9.3 | M95: 6.9 | N95: 8.7
A96: 13000000 | B96: 4.9 | C96: 6.1 | D96: 5.85 | E96: 5.5 | F96: 6.9 | G96: 6.1 | H96: 7.7 | I96: 6.8 | J96: 8.4 | K96: 7.4 | L96: 9.2 | M96: 6.9 | N96: 8.6
A97: 14000000 | B97: 4.9 | C97: 6.1 | D97: 5.85 | E97: 5.5 | F97: 6.9 | G97: 6.1 | H97: 7.6 | I97: 6.7 | J97: 8.4 | K97: 7.3 | L97: 9.2 | M97: 6.8 | N97: 8.5
A98: 15000000 | B98: 4.8 | C98: 6.1 | D98: 5.8 | E98: 5.5 | F98: 6.8 | G98: 6.1 | H98: 7.6 | I98: 6.7 | J98: 8.3 | K98: 7.3 | L98: 9.1 | M98: 6.8 | N98: 8.5
A99: 16000000 | B99: 4.8 | C99: 6 | D99: 5.75 | E99: 5.4 | F99: 6.8 | G99: 6 | H99: 7.5 | I99: 6.6 | J99: 8.3 | K99: 7.2 | L99: 9 | M99: 6.7 | N99: 8.4
A100: 17000000 | B100: 4.8 | C100: 6 | D100: 5.725 | E100: 5.4 | F100: 6.7 | G100: 6 | H100: 7.5 | I100: 6.6 | J100: 8.2 | K100: 7.2 | L100: 9 | M100: 6.7 | N100: 8.4
A101: 18000000 | B101: 4.8 | C101: 5.9 | D101: 5.675 | E101: 5.3 | F101: 6.7 | G101: 5.9 | H101: 7.4 | I101: 6.5 | J101: 8.2 | K101: 7.1 | L101: 8.9 | M101: 6.7 | N101: 8.3
A102: 19000000 | B102: 4.7 | C102: 5.9 | D102: 5.625 | E102: 5.3 | F102: 6.6 | G102: 5.9 | H102: 7.4 | I102: 6.5 | J102: 8.1 | K102: 7.1 | L102: 8.9 | M102: 6.6 | N102: 8.3
A103: 20000000 | B103: 4.7 | C103: 5.9 | D103: 5.625 | E103: 5.3 | F103: 6.6 | G103: 5.9 | H103: 7.3 | I103: 6.4 | J103: 8.1 | K103: 7 | L103: 8.8 | M103: 6.6 | N103: 8.2
A104: 21000000 | B104: 4.7 | C104: 5.8 | D104: 5.55 | E104: 5.2 | F104: 6.5 | G104: 5.8 | H104: 7.3 | I104: 6.4 | J104: 8 | K104: 7 | L104: 8.7 | M104: 6.5 | N104: 8.1
A105: 22000000 | B105: 4.6 | C105: 5.8 | D105: =(AVERAGE(E105:F105)+ AVERAGE(B105:C105))/2 -> 5.525 | E105: 5.2 | F105: 6.5 | G105: 5.8 | H105: 7.2 | I105: 6.4 | J105: 7.9 | K105: 6.9 | L105: 8.7 | M105: 6.5 | N105: 8.1
A106: 23000000 | B106: 4.6 | C106: 5.7 | D106: 5.5 | E106: 5.2 | F106: 6.5 | G106: 5.7 | H106: 7.2 | I106: 6.3 | J106: 7.9 | K106: 6.9 | L106: 8.6 | M106: 6.4 | N106: 8
A107: 24000000 | B107: 4.6 | C107: 5.7 | D107: 5.45 | E107: 5.1 | F107: 6.4 | G107: 5.7 | H107: 7.1 | I107: 6.3 | J107: 7.8 | K107: 6.8 | L107: 8.6 | M107: 6.4 | N107: 8
A108: 25000000 | B108: 4.5 | C108: 5.7 | D108: 5.425 | E108: 5.1 | F108: 6.4 | G108: 5.7 | H108: 7.1 | I108: 6.2 | J108: 7.8 | K108: 6.8 | L108: 8.5 | M108: 6.3 | N108: 7.9
A109: 26000000 | B109: 4.5 | C109: 5.6 | D109: 5.375 | E109: 5.1 | F109: 6.3 | G109: 5.6 | H109: 7 | I109: 6.2 | J109: 7.7 | K109: 6.7 | L109: 8.4 | M109: 6.3 | N109: 7.9
A110: 27000000 | B110: 4.5 | C110: 5.6 | D110: 5.35 | E110: 5 | F110: 6.3 | G110: 5.6 | H110: 7 | I110: 6.1 | J110: 7.7 | K110: 6.7 | L110: 8.4 | M110: 6.2 | N110: 7.8
A111: 28000000 | B111: 4.4 | C111: 5.5 | D111: 5.275 | E111: 5 | F111: 6.2 | G111: 5.5 | H111: 6.9 | I111: 6.1 | J111: 7.6 | K111: 6.6 | L111: 8.3 | M111: 6.2 | N111: 7.8
A112: 29000000 | B112: 4.4 | C112: 5.5 | D112: 5.275 | E112: 5 | F112: 6.2 | G112: 5.5 | H112: 6.9 | I112: 6.1 | J112: 7.6 | K112: 6.6 | L112: 8.3 | M112: 6.2 | N112: 7.7
A113: 30000000 | B113: 4.4 | C113: 5.5 | D113: =(AVERAGE(E113:F113)+ AVERAGE(B113:C113))/2 -> 5.225 | E113: 4.9 | F113: 6.1 | G113: 5.5 | H113: 6.8 | I113: 6 | J113: 7.5 | K113: 6.6 | L113: 8.2 | M113: 6.1 | N113: 7.6
A114: Avg of projects less than $1,000,000 | D114: =AVERAGE(D63:D76)/100 -> 0.07598840458
C115: 2 rounds of design | D115: =D114*2 -> 0.1519768092
A116: Added field and Survey work | D116: =D115*0.4 -> 0.06079072367
B117: Added Permitting | D117: =D115*0.25 -> 0.03799420229
C118: DC Local | D118: =SUM(D115:D117)*1.1 -> 0.2758379086
